Workbook

Sheet Version (hidden)
A1: Service | B1: =MID(CELL("dateiname"),FIND("[",CELL("dateiname"))+1,FIND("]",CELL("dateiname"))-FIND("[",CELL("dateiname"))-1) -> 650_Auslegungstool_Draller_201030.xlsm
A2: Version: | B2: 1.0

Sheet Vorgaben
A1: Auslegung Kampmann Drallluftdurchlässe
A3: Eingabefelder sind gelb gekennzeichnet
A4: Ergebnisfelder sind blau gekennzeichnet
A6: Vorgaben
A7: Lüftungstechnik und Akustik | B7: Symbol | C7: Einheit | D7: Wert
A8: Gesamtvolumenstrom | B8: V·SUP | C8: m³/h | D8: 550
A9: Anzahl Luftdurchlässe (nur Zuluft) | B9: n | C9: 1 | D9: 1
A10: Temperatur Zuluft | B10: tSUP | C10: °C | D10: 16
A11: Temperatur Raum | B11: tRaum | C11: °C | D11: 26
A12: Maximaler Einzel-Schallleistungspegel | B12: LW,Amax | C12: dB(A) | D12: 35
A13: Raumdaten
A14: Raumhöhe | B14: H1 | C14: m | D14: 3.05
A15: Obergrenze Aufenthaltsbereich | B15: H2 | C15: m | D15: 1.83
A16: Raumlänge | B16: LR | C16: m | D16: 7.4
A17: Raumbreite | B17: BR | C17: m | D17: 5.6
A18: Abstand Durchlass zur nächstgelegenen Wand | B18: a | C18: m | D18: 3
A19: kleinster Abstand zwischen 2 Durchlässen | B19: smin | C19: m | D19: 5
A21: Akustikdaten
A22: Raumart nach VDI 2081 | D22: Großraumbüro
C23: Einzelbüro | H23: 5 | I23: min. Abmessung Frontblende rund | J23: =Grunddaten!Q33 -> 800 | K23: mm
C24: Großraumbüro
C25: Werkstätten
C26: Ruheraum, Pausenraum
C27: Untersuchungsraum Krankenhaus
C28: Rundfunk-, Fernsehstudio
C29: Chemielabor
C30: Wasch- und WC-Raum, Umkleide
C31: Schwimmbad
C32: EDV-Raum
C33: Konzertsaal
C34: Lesesaal
C35: Museum
C36: Küche
C37: Theater, Kino
C38: Klassen- Seminarraum
C39: Gaststätte
C40: kein Typ
C41: Konferenzraum
C42: Hotelzimmer
C43: Hörsaal
C44: Bettenzimmer Krankenhaus
C45: Verkaufsraum
C46: Sporthalle
A47: Maximaler Schallleistungspegel | D47: Zuluft
A48: Abstand zur Schallquelle | B48: r | C48: m | D48: 3
A49: Zusatzdaten
A50: Funktion | E50: =VLOOKUP(B50,Eingabe!$A$45:$B$48,2,FALSE) ->  | F50: =VLOOKUP($B$50,$B$51:$F$53,6,0) -> 
B51: =IF(#REF!=500,"Zuluft","") ->  | F51: Z
B52: =IF(#REF!=500,"Abluft","") ->  | F52: A
B53: =IF(#REF!>500,"Zuluft/Abluft-Kombination","") ->  | F53: K
A54: Farbe Abdeckprofil und Endwinkel | B54: 9010 | E54: =VLOOKUP(B54,Eingabe!A45:B48,2,FALSE) ->  | F54: =$B$54 -> 9010
A55: Farbe Luftlenkelement | B55: schwarz | F55: =VLOOKUP(B55,B56:F58,6,FALSE) -> 
B56: schwarz | F56: S
B57: weiß | F57: W
B58: grau | F58: G
A59: Einstellung Luftlenkelement | F59: =VLOOKUP(B59,B60:F63,6,FALSE) -> 
B60: Deckenstrahl D / E | F60: D
B61: Sondereinstellung | F61: S
A63: Werkstoff Anschlusskasten | B63: Stahl verzinkt | F63: V
B64: Stahl verzinkt
A65: frontseitig bedienbare Drossel | B65: ohne | E65: =VLOOKUP(B65,Eingabe!$A$45:$B$51,2,FALSE) ->  | F65: =VLOOKUP(B65,B66:F68,6,FALSE) -> 
B66: mit | F66: 1
B67: ohne | F67: 0
A68: Innenauskleidung | B68: Baustoffklasse B1 (Standard) | F68: =VLOOKUP(B68,B69:F72,6,FALSE) -> 
B69: Baustoffklasse B1 (Standard) | F69: B1
B70: Baustoffklasse A2 (optional) | F70: A2
A72: Merkmalschlüssel | B72: =CONCATENATE(1,"KSW","0",#REF!,F72,F50,"A",F54,F55,F59,F63,F65,F68,1,F73) ->  | F72: =IF(#REF!<1000,CONCATENATE(0,#REF!),#REF!) -> 
A73: Informationen zu den Vorgaben | F73: =IF(J18=78,"080",100) -> 100
A74: Raumvolumen | B74: VR | C74: m³ | D74: =$D$14*$D$16*$D$17 -> 126.392
A75: Luftwechselzahl | B75: W | C75: 1 | D75: =$D$8/$D$74 -> 4.351541237
A76: Kühlleistung | B76: Q°K | C76: W | D76: =$D$8*1.2*1.006*($D$11-$D$10)/3.6 -> 1844.333333
A79: Verfügbare Luftdurchlässe, Treffen Sie Ihre Auswahl! | D79: =Grunddaten!AC4 -> DAL 359 DN 600
D80: =Grunddaten!AC5 -> DAL 358 DN 800
D81: =Grunddaten!AC6 -> DRS DN 315
D82: =Grunddaten!AC7 -> DRS DN 355
D83: =Grunddaten!AC8 -> MSA DN 600
D84: =Grunddaten!AC9 -> 
D85: =Grunddaten!AC10 -> 
D86: =Grunddaten!AC11 -> 
D87: =Grunddaten!AC12 -> 
D88: =Grunddaten!AC13 -> 
D89: =Grunddaten!AC14 -> 
D90: =Grunddaten!AC15 -> 
A91: Änderungen vorbehalten | D91: =Grunddaten!AC16 -> 
A92: Stand: | B92: =Grunddaten!E36 -> 2020-10-30 | D92: =Grunddaten!AC17 -> 
A93: =Grunddaten!E36 -> 2020-10-30 | D93: =Grunddaten!AC18 ->  | E93: =Grunddaten!AE18 -> 0
D94: =Grunddaten!AC19 ->  | E94: =Grunddaten!AE19 -> 0
E95: =Grunddaten!AE20 -> 0
E96: =Grunddaten!AE21 -> 0
E97: =Grunddaten!AE22 -> 0
E98: =Grunddaten!AE23 -> 0
E99: =Grunddaten!AE24 -> 0

Sheet Hinweise zum Programm (hidden)
A1: Hinweise zur Bedienung
A3: Allgemeine Hinweise:
A4: Das Auslegungstool Draller dient als Hilfsmittel zur Technischen Planung des emcoair KSW.
A6: Auslegung:
A7: Im Tabellenblatt "Auslegung" erfolgt die Festlegung des gewünschten Auslasstyps. Bei Eingabe der Vorgabedaten, wie z.B. dem benötigten Luftvolumenstrom werden die technischen Daten des gewählten Luftdurchlasses berechnet.
A9: Strömungsformen:
A10: Die im Tabellenblatt "Auslegung" ermittelten Strömungsgeschwindigkeiten gelten für einen deckenbündig montierten Luftdurchlass mit horizontaler Ausblascharakteristik.
A12: Funktion:
A13: Im Tabellenblatt "Funktion" finden Sie eine kurze Funktionsbeschreibung zum emcoair KSW.
A15: Maße:
A16: Das Tabellenblatt "Maße" gibt einen Überblick über die wählbare Größen und Varianten des emcoair KSW mit detaillierten Bemaßungen.
A18: Hinweise zur Funktion:
A19: Für eine ordnungsgemäße Funktion des Auslegungstools muss die Ausführung von Makros und MS Excel aktiviert sein. Die Aktivierung von Makros erfolgt im Menü Makrosicherheit.
A20: Einstellung unter MS Excel 97-2003: Extras → Makro → Sicherheit
A21: Einstellung unter MS Excel 2007: Entwicklertools* → Makrosicherheit
A22: *Das Menü Entwicklertools muss unter Umständen eingefügt werden unter Excel-Optionen

Sheet Auslegung
A1: Auslegung Kampmann Drallluftdurchlässe
A3: Eingabefelder sind gelb gekennzeichnet
A4: Ergebnisfelder sind blau gekennzeichnet
A6: Vorgaben
A7: Lüftungstechnik | B7: Symbol | C7: Einheit | D7: Wert
A8: Bezeichung | B8: Symbol | C8: Einheit
B9: L | C9: mm
B10: L | C10: mm
B11: L | C11: mm
A12: Durchlass Typ | D12: DAL 358
D13: DAL 359
D14: DAL 358
D15: DRS
D16: MSA
D17: DIA
A18: Nenn-Abmessung Frontblende | B18: DN | C18: [-] | D18: 800
D19: 300
D20: 400
D21: 500
D22: 600
D23: 625
D24: 800
A25: Lochbild / Nenndurchmesser | B25: DN | C25: [-] | D25: 800
D26: =IF(AND(OR($D$12="DRS",$D$12="DIA"),OR($D$18=300,$D$18=400,$D$18=500,$D$18=600,$D$18=625,$D$18=800)),100,IF(OR($D$12="DAL 359",$D$12="DAL 358",$D$12="MSA"),300,"")) -> 300
D27: =IF(AND(OR($D$12="DRS",$D$12="DIA"),OR($D$18=300,$D$18=400,$D$18=500,$D$18=600,$D$18=625,$D$18=800)),125,IF(AND(OR($D$12="DAL 359",$D$12="DAL 358",$D$12="MSA"),OR($D$18=400,$D$18=500,$D$18=600,$D$18=625,$D$18=800)),400,"")) -> 400
D28: =IF(AND(OR($D$12="DRS",$D$12="DIA"),OR($D$18=300,$D$18=400,$D$18=500,$D$18=600,$D$18=625,$D$18=800)),180,IF(AND(OR($D$12="DAL 359",$D$12="DAL 358",$D$12="MSA"),OR($D$18=500,$D$18=600,$D$18=625,$D$18=800)),500,"")) -> 500
D29: =IF(AND(OR($D$12="DRS",$D$12="DIA"),OR($D$18=400,$D$18=500,$D$18=600,$D$18=625,$D$18=800)),250,IF(AND(OR($D$12="DAL 359",$D$12="DAL 358",$D$12="MSA"),OR($D$18=600,$D$18=625,$D$18=800)),600,"")) -> 600
D30: =IF(AND(OR($D$12="DRS",$D$12="DIA"),OR($D$18=500,$D$18=600,$D$18=625,$D$18=800)),315,IF(AND(OR($D$12="DAL 359",$D$12="DAL 358"),$D$18=800),800,"")) -> 800
D31: =IF(AND(OR($D$12="DRS",$D$12="DIA"),OR($D$18=600,$D$18=625,$D$18=800)),355,IF(AND(OR($D$12="DAL 359",$D$12="DAL 358",$D$12="MSA"),$D$18=800),"","")) -> 
A32: Luftvolumenstrom, Einzeldurchlass | B32: V·SUP | C32: m³/h | D32: =Vorgaben!$D$8/Vorgaben!$D$9 -> 550
A33: max. Luftgeschwindigkeit im Aufenthaltsbereich | B33: vMax | C33: m/s | D33: 0.2
A34: Temperatur Zuluft | B34: tSUP | C34: °C | D34: =Vorgaben!D10 -> 16
A35: Temperatur Raum | B35: tRaum | C35: °C | D35: =Vorgaben!$D$11 -> 26
A36: Raumdaten
A37: Raumhöhe | B37: H1 | C37: m | D37: =Vorgaben!$D$14 -> 3.05
A38: Obergrenze Aufenthaltsbereich | B38: H2 | C38: m | D38: =Vorgaben!$D$15 -> 1.83
A39: Raumlänge | B39: LR | C39: m | D39: =Vorgaben!$D$16 -> 7.4 | I39: 1 | J39: Breite Anschlusskasten | K39: =Grunddaten!O33 -> 794 | L39: mm
A40: Raumbreite | B40: BR | C40: m | D40: =Vorgaben!$D$17 -> 5.6 | I40: 2 | J40: Höhe Anschlusskasten | K40: =Grunddaten!N33 -> 430 | L40: mm
A41: Abstand Durchlass zur nächstgelegenen Wand | B41: a | C41: m | D41: 0.91 | I41: 3 | J41: Durchmesser Anschlussstutzen | K41: =Grunddaten!J33 -> 315 | L41: mm
A42: kleinster Abstand zwischen 2 Durchlässen | B42: smin | C42: m | D42: 2 | I42: 4 | J42: min. Abmessung Frontblende quadr. | K42: =Grunddaten!P33 -> 800 | L42: mm
I43: 5 | J43: min. Abmessung Frontblende rund | K43: =Grunddaten!Q33 -> 800 | L43: mm
A44: Akustikdaten | I44: 6 | J44: Minimaler Volumenstrom | K44: =Grunddaten!$H$33 -> 400 | L44: m³/h
A45: Raumart nach VDI 2081 | D45: Großraumbüro | I45: 7 | J45: Maximaler Volumenstrom | K45: =Grunddaten!$I$33 -> 1750 | L45: m³/h
C46: Einzelbüro | I46: 5 | J46: min. Abmessung Frontblende rund | K46: =Grunddaten!Q33 -> 800 | L46: mm
C47: Großraumbüro
C48: Werkstätten
C49: Ruheraum, Pausenraum
C50: Untersuchungsraum Krankenhaus
C51: Rundfunk-, Fernsehstudio
C52: Chemielabor
C53: Wasch- und WC-Raum, Umkleide
C54: Schwimmbad
C55: EDV-Raum
C56: Konzertsaal
C57: Lesesaal
C58: Museum
C59: Küche
C60: Theater, Kino
C61: Klassen- Seminarraum
C62: Gaststätte
C63: kein Typ
C64: Konferenzraum
C65: Hotelzimmer
C66: Hörsaal
C67: Bettenzimmer Krankenhaus
C68: Verkaufsraum
C69: Sporthalle
A70: Betrachteter Durchlass | D70: Zuluft
D71: Zuluft
D72: Abluft
A73: Abstand zur Schallquelle | B73: r | C73: m | D73: 3
A74: Zusatzdaten
A75: Funktion | F75: =VLOOKUP(B75,Eingabe!$A$45:$B$48,2,FALSE) ->  | G75: =VLOOKUP($B$75,$B$76:$G$78,6,0) -> Z
B76: =IF(D12=500,"Zuluft","") ->  | G76: Z
B77: =IF(D12=500,"Abluft","") ->  | G77: A
B78: =IF(D12>500,"Zuluft/Abluft-Kombination","") -> Zuluft/Abluft-Kombination | G78: K
A79: Farbe Abdeckprofil und Endwinkel | B79: 9010 | F79: =VLOOKUP(B79,Eingabe!A45:B48,2,FALSE) ->  | G79: =$B$79 -> 9010
A80: Farbe Luftlenkelement | B80: schwarz | G80: =VLOOKUP(B80,B81:G83,6,FALSE) -> S
B81: schwarz | G81: S
B82: weiß | G82: W
B83: grau | G83: G
A84: Einstellung Luftlenkelement | B84: Deckenstrahl D / E | G84: =VLOOKUP(B84,B85:G88,6,FALSE) -> D
B85: Deckenstrahl D / E | G85: D
B86: Sondereinstellung | G86: S
A88: Werkstoff Anschlusskasten | B88: Stahl verzinkt | G88: V
B89: Stahl verzinkt
A90: frontseitig bedienbare Drossel | B90: ohne | F90: =VLOOKUP(B90,Eingabe!$A$45:$B$51,2,FALSE) ->  | G90: =VLOOKUP(B90,B91:G93,6,FALSE) -> 0
B91: mit | G91: 1
B92: ohne | G92: 0
A93: Innenauskleidung | B93: Baustoffklasse B1 (Standard) | G93: =VLOOKUP(B93,B94:G97,6,FALSE) -> B1
B94: Baustoffklasse B1 (Standard) | G94: B1
B95: Baustoffklasse A2 (optional) | G95: A2
A97: Merkmalschlüssel | B97: =CONCATENATE(1,"KSW","0",D18,G97,G75,"A",G79,G80,G84,G88,G90,G93,1,G98) -> 1KSW0800DAL 358ZA9010SDV0B11100 | G97: =IF(D12<1000,CONCATENATE(0,D12),D12) -> DAL 358
G98: =IF(K41=78,"080",100) -> 100
A99: Berechnung strömungstechnische und Akustische Daten | D99: Zuluft | E99: Abluft
A100: Druckverlust | B100: Dpt | C100: Pa | D100: =IF(D70="Zuluft",Grunddaten!$L$33,"") -> 12.08859461 | E100: =IF(D70="Abluft",IF(Grunddaten!M33=0,"a. Anf",Grunddaten!M33),"") -> 
A101: kritischer Strahlweg | B101: xkr. | C101: m | D101: =IF(D70="Zuluft",IF(D34>=D35,"Heizfall",xkr._vx!$F$11),"") -> 1.052271238
A102: Laufweg bis Fußbodenbereich | B102: xx | C102: m | D102: =xkr._vx!L24 -> 4.46
A103: Laufweg bis Aufenthaltsbereich nach Stoßpunkt | B103: xx+y | C103: m | D103: =xkr._vx!L26 -> 3.22
A104: Laufweg bis Aufenthaltsbereich nach xkrit | B104: xxkr | C104: m | D104: =IF(D34>=D35,"Heizfall",xkr._vx!L28) -> 2.777611784
A105: Geschwindigkeit im Fußbodenbereich in Wandnähe | B105: vx1 | C105: m/s | D105: =IF(D70="Zuluft",IF(xkr._vx!$N$24< 0.1,"< 0,1",xkr._vx!$N$24),"") -> < 0,1
A106: Zugluftrisiko am Fußboden** | B106: DR1 | C106: % | D106: =IF(D70="Zuluft",IF($D$34>$D$35,"Heizfall",DR!$C$16),"") -> 5.720514717
A107: =IF(AND(D34>D35,D12="MSA"),"Eindringtiefe (Walzenstellung CD)","Geschwindigkeit im Aufenthaltsbereich*") -> Geschwindigkeit im Aufenthaltsbereich* | B107: vx2 | C107: =IF(AND(D35<=D34,D12="MSA"),"m","m/s") -> m/s | D107: =IF(D42=0,"",IF(D70="Zuluft",IF($D$34>$D$35,xkr._vx!M31,IF(xkr._vx!$O$26<0.1,"< 0,1",xkr._vx!$O$26)),"")) -> 0.1537957905
A108: Zugluftrisiko im Aufenthaltsbereich** | B108: DR2 | C108: % | D108: =IF(D42=0,"",IF(D70="Zuluft",IF($D$34>$D$35,"Heizfall",DR!$D$24),"")) -> 11.68999597
A109: Geschwindigkeit nach Ablösen an Xkr. | B109: vx3 | C109: m/s | D109: =IF(D70="Zuluft",IF(xkr._vx!$N$28<0.1,"<0,1",IF($D$34>=$D$35,"Heizfall",xkr._vx!$N$28)),"") -> 0.1537957905
A110: Zugluftrisiko nach Ablösepunkt** | B110: DR3 | C110: % | D110: =IF(D70="Zuluft",IF($D$34>=$D$35,"Heizfall",DR!$C$32),"") -> 11.68999597
A111: Resultierende Raumkategorie | B111: RAL | C111: [-] | D111: =IF(D70="Zuluft",IF(D34>=D35,"Heizfall",IF(AND($D$106<9.95,$D$108<9.95,$D$110<9.95),"A",IF(AND($D$106<19.95,$D$108<19.95,$D$110<19.95),"B",IF(AND($D$106<29.95,$D$108<29.95,$D$110<29.95),"C","Außerhalb C")))),"") -> B
A112: =CONCATENATE("Schallleistungspegel, ",D70,"durchlass") -> Schallleistungspegel, Zuluftdurchlass | B112: LWA_SUP/ETA | C112: dB(A) | D112: =IF(D70="Zuluft",Lw!I89,"") -> 29.79045721 | E112: =IF(D70="Abluft",IFERROR(Lw!I90,"a. Anf"),"") -> 
A113: Schalldruckpegel, Zahlenwert Zuluft + Abluft | D113: =D112+10*LOG(Lw!$F$127/(4*PI()*Auslegung!D73^2)+4/(Lw!$H$127)) -> 21.01085253 | E113: =E112+10*LOG(Lw!$F$127/(4*PI()*Auslegung!E73^2)+4/(Lw!$H$127)) -> 
A114: =CONCATENATE("Schallldruckpegel in ",D73,"m Entfernung, ",D70,"durchlass") -> Schallldruckpegel in 3m Entfernung, Zuluftdurchlass | B114: LPA_SUP/ETA | C114: dB(A) | D114: =IF(D70="Zuluft",IF(D112="<25","<25",IF(D112+10*LOG(Lw!$F$127/(4*PI()*Auslegung!D73^2)+4/(Lw!$H$127))>=25,D112+10*LOG(Lw!$F$127/(4*PI()*Auslegung!D73^2)+4/(Lw!$H$127)),"<25")),"") -> <25 | E114: =IF(D70="Abluft",IFERROR(IF(E112="<25","<25",IF(E112+10*LOG(Lw!$F$127/(4*PI()*Auslegung!D73^2)+4/(Lw!$H$127))>=25,E112+10*LOG(Lw!$F$127/(4*PI()*Auslegung!D73^2)+4/(Lw!$H$127)),"<25")),"a. Anf"),"") -> 
A115: Schalldruckpegel rechnerisch | D115: =IF(10*LOG(10^(D113/10)+10^(E113/10))<25,"<25",10*LOG(10^(D113/10)+10^(E113/10))) -> 
A116: Summen-Schallldruckpegel im betrachteten Punkt | B116: LPA | C116: dB(A) | D116: =IFERROR(IF(E113-D113>6,MAX(E113,D113),D115),IF(E114="a. Anf",D114,IF(AND(D114="<25",E114="<25"),"<25","a. Anf"))) -> a. Anf
A117: *Gilt für Eintritt der Luftströmung in den Aufenthaltbereich nach dem Stoßpunkt
A118: ** Berechnung gemäß DIN EN ISO 7730
A120: Oktavspektrum Schallleistung | B120: LW_Okt | C120: dB | D120: =D99 -> Zuluft | E120: =E99 -> Abluft
B121: LW_125 | C121: dB | D121: =IF($D$70="Zuluft",IFERROR(Lw!B$91,"a. Anf"),"") -> 33.28685525 | E121: =IF($D$70="Abluft",IFERROR(Lw!B$92,"a. Anf"),"") -> 
B122: LW_250 | C122: dB | D122: =IF($D$70="Zuluft",IFERROR(Lw!C$91,"a. Anf"),"") -> 31.89651649 | E122: =IF($D$70="Abluft",IFERROR(Lw!C$92,"a. Anf"),"") -> 
B123: LW_500 | C123: dB | D123: =IF($D$70="Zuluft",IFERROR(Lw!D$91,"a. Anf"),"") -> 27.73762647 | E123: =IF($D$70="Abluft",IFERROR(Lw!D$92,"a. Anf"),"") -> 
B124: LW_1000 | C124: dB | D124: =IF($D$70="Zuluft",IFERROR(Lw!E$91,"a. Anf"),"") -> 23.68256059 | E124: =IF($D$70="Abluft",IFERROR(Lw!E$92,"a. Anf"),"") -> 
B125: LW_2000 | C125: dB | D125: =IF($D$70="Zuluft",IFERROR(Lw!F$91,"a. Anf"),"") -> 17.00258038 | E125: =IF($D$70="Abluft",IFERROR(Lw!F$92,"a. Anf"),"") -> 
B126: LW_4000 | C126: dB | D126: =IF($D$70="Zuluft",IFERROR(Lw!G$91,"a. Anf"),"") -> 14.52418234 | E126: =IF($D$70="Abluft",IFERROR(Lw!G$92,"a. Anf"),"") -> 
B127: LW_8000 | C127: dB | D127: =IF($D$70="Zuluft",IFERROR(Lw!H$91,"a. Anf"),"") -> 9.040149646 | E127: =IF($D$70="Abluft",IFERROR(Lw!H$92,"a. Anf"),"") -> 
A129: Änderungen vorbehalten
A130: Stand: | E130: =IF(D12=500,KSW(),"") -> 
A131: =Grunddaten!E36 -> 2020-10-30

Sheet Funktion (hidden)

Sheet Maße (hidden)

Sheet Datenblatt
A2: Typ | B2: =Auslegung!$D$12 -> DAL 358 | I2: =TODAY() -> 2021-01-05
A3: Projekt | B3: bitte Projektname / VIS-Nr. eintragen
A5: Definition:
A6: Durchlass, Typ: | B6: =Auslegung!$D$12 -> DAL 358 | C6: Nenndurchmesser: | F6: =Auslegung!$D$18 -> 800 | G6: Lochbild: | I6: =Auslegung!D25 -> 800
A7: Schlitzanzahl: | B7: =Auslegung!D18 -> 800 | C7: Farbe Abdeckprofil: | E7: =Auslegung!B79 -> 9010
A8: Innenauskleidung: | B8: =Auslegung!G93 -> B1 | C8: Drossel fb: | E8: =Auslegung!B90 -> ohne
A10: Beschreibung: Hochinduktiver Drallluftdurchlass für den Einbau in Zwischendecken (Einlegedecken) Mit optionalem Anschlusskasten in quadratischer oder runder Bauform
A11: Einsatzbereich
A12: Minimalvolumenstrom | B12: V°min | C12: =Auslegung!K44 -> 400 | D12: m³/h
A13: Maximalvolumenstrom | B13: V°max | C13: =Auslegung!K45 -> 1750 | D13: m³/h
A15: technische Vorgaben | F15: Raumdaten
A16: Luftvolumenstrom Zuluft | B16: V·SUP | C16: =Auslegung!D32 -> 550 | D16: m³/h | F16: Raumhöhe | G16: =Auslegung!D37 -> 3.05 | H16: m
A17: Temperatur Zuluft | B17: tZUL | C17: =Auslegung!D34 -> 16 | D17: °C | F17: Raumbreite | G17: =Auslegung!D40 -> 5.6 | H17: m
A18: Temperatur Raum | B18: tRAUM | C18: =Auslegung!D35 -> 26 | D18: °C | F18: Raumlänge | G18: =Auslegung!D39 -> 7.4 | H18: m
A19: =Auslegung!A41 -> Abstand Durchlass zur nächstgelegenen Wand | B19: =Auslegung!B41 -> a | C19: =Auslegung!D41 -> 0.91 | D19: m | F19: Nutzungsart | G19: =Auslegung!D45 -> Großraumbüro
A20: =Auslegung!A42 -> kleinster Abstand zwischen 2 Durchlässen | B20: smin | C20: =Auslegung!D42 -> 2 | D20: m
A22: technische Daten
A23: =CONCATENATE("Druckverlust ",Auslegung!D70,"durchlass") -> Druckverlust Zuluftdurchlass | B23: Dp_SUP/ETA | C23: =IF(Auslegung!D100="",Auslegung!E100,Auslegung!D100) -> 12.08859461 | E23: Pa
A24: kritischer Strahlweg | B24: xkr. | C24: =Auslegung!D101 -> 1.052271238 | E24: m
A25: =Auslegung!A105 -> Geschwindigkeit im Fußbodenbereich in Wandnähe | B25: vx1 | C25: =Auslegung!D105 -> < 0,1 | E25: m/s
A26: =Auslegung!A106 -> Zugluftrisiko am Fußboden** | B26: DR1 | C26: =Auslegung!$D$106 -> 5.720514717 | E26: %
A27: =Auslegung!A107 -> Geschwindigkeit im Aufenthaltsbereich* | B27: vx2 | C27: =Auslegung!$D$107 -> 0.1537957905 | E27: m/s
A28: =Auslegung!A108 -> Zugluftrisiko im Aufenthaltsbereich** | B28: DR2 | C28: =Auslegung!$D$108 -> 11.68999597 | E28: %
A29: =Auslegung!A109 -> Geschwindigkeit nach Ablösen an Xkr. | B29: vx3 | C29: =Auslegung!$D$109 -> 0.1537957905 | E29: m/s | F29: Maße
A30: =Auslegung!A110 -> Zugluftrisiko nach Ablösepunkt** | B30: DR3 | C30: =Auslegung!$D$110 -> 11.68999597 | E30: % | F30: =Auslegung!J42 -> min. Abmessung Frontblende quadr. | H30: =Auslegung!K42 -> 800 | I30: mm
A31: Raumkategorie** | B31: RAL | C31: =Auslegung!D111 -> B | E31: ="-/-" -> -/- | F31: =Auslegung!J43 -> min. Abmessung Frontblende rund | H31: =Auslegung!K43 -> 800 | I31: mm
A32: =Auslegung!$A$112 -> Schallleistungspegel, Zuluftdurchlass | B32: LWA_SUP/ETA | C32: =IF(Auslegung!D112="",Auslegung!E112,Auslegung!D112) -> 29.79045721 | E32: dB(A) | F32: =Auslegung!J39 -> Breite Anschlusskasten | H32: =Auslegung!K39 -> 794 | I32: mm
A33: =Auslegung!A114 -> Schallldruckpegel in 3m Entfernung, Zuluftdurchlass | B33: LPA_SUP | C33: =IF(Auslegung!D114="",Auslegung!E114,Auslegung!D114) -> <25 | E33: dB(A) | F33: =Auslegung!J40 -> Höhe Anschlusskasten | H33: =Auslegung!K40 -> 430 | I33: mm
F34: =Auslegung!J41 -> Durchmesser Anschlussstutzen | H34: =Auslegung!K41 -> 315 | I34: mm
A36: *Gilt für Eintritt der Luftströmung in den Aufenthaltbereich nach dem Stoßpunkt
A37: ** Raumkategorie nach DIN EN ISO 7730: DR<10 % = A; DR<20 % = B; DR<30 % = C
A40: Oktavspektrum Schallleistungspegel | B40: f [Hz] | C40: 125 | D40: 250 | E40: 500 | F40: 1000 | G40: 2000 | H40: 4000 | I40: 8000
A41: =Auslegung!D70 -> Zuluft | B41: LWA_Okt | C41: =IF(Auslegung!$D$121="",Auslegung!$E$121,Auslegung!$D$121) -> 33.28685525 | D41: =IF(Auslegung!$D$122="",Auslegung!$E$122,Auslegung!$D$122) -> 31.89651649 | E41: =IF(Auslegung!$D$123="",Auslegung!$E$123,Auslegung!$D$123) -> 27.73762647 | F41: =IF(Auslegung!$D$124="",Auslegung!$E$124,Auslegung!$D$124) -> 23.68256059 | G41: =IF(Auslegung!$D$125="",Auslegung!$E$125,Auslegung!$D$125) -> 17.00258038 | H41: =IF(Auslegung!$D$126="",Auslegung!$E$126,Auslegung!$D$126) -> 14.52418234 | I41: =IF(Auslegung!$D$127="",Auslegung!$E$127,Auslegung!$D$127) -> 9.040149646
I43: technische Änderungen vorbehalten
H44: Stand: | I44: =Grunddaten!$E$36 -> 2020-10-30

Sheet Grunddaten (hidden)
A1: Typ | B1: DN | D1: Baulänge | E1: Schlitzanzahl | F1: Schlitzlänge | G1: Soll-Volumenstrom | H1: V° Auslegung min | I1: V° Auslegung max | J1: Durchmesser Anschluss | K1: Anströmgeschwindigkeit | L1: Druckverlust, Zuluft | M1: Druckverlust, Abluft | N1: Höhe Anschlusskasten | O1: Breite Anschlusskasten | P1: min. Abmessungen Frontblende quadratisch | Q1: min. Abmessungen Frontblende rund | R1: Vorauswahlkriterien | Z1: Vorauswahl zur Anzeige
B2: Lochbild | D2: l | E2: n | F2: L | G2: V° | H2: V°min | I2: V°max | J2: d | K2: v | L2: Dp | M2: Dp | N2: h | O2: b | P2: b1 | Q2: x | R2: Volumenstrom | T2: Schallleistungspegel | Y2: Auslass freigegeben?
D3: mm | E3: 1 | F3: mm | G3: m³/h | H3: m³/h | I3: m³/h | J3: mm | K3: m/s | L3: Pa | M3: Pa | N3: mm | O3: mm | P3: mm | Q3: mm | R3: größer als v°min? | S3: kleiner als V°max? | T3: K021 | U3: K022 | V3: dB | W3: größer als 0dB(A)? | X3: kleiner als LW,Amax? | AB3: =IF(ROW(AA3)>COUNTA(AA:AA),"",INDEX(AA3:AA28,SMALL(IF(AA$4:AA$29<>"",ROW($4:$29)),ROW($AA3)))) -> 
A4: DAL 359 | B4: 300 | C4: =CONCATENATE(A4,B4) -> DAL 359300 | G4: =Auslegung!$D$32 -> 550 | H4: 50 | I4: 300 | J4: 160 | K4: =Auslegung!$D$32/(PI()/4*(Grunddaten!J4/1000)^2*3600) -> 7.59854329 | L4: =SUM('DAL359-CAP'!$C$40,'DAL358-CAP'!$C$40,'DRS-CAP'!$C$40,'DIA-CAP'!$C$40,'MSA-CAP'!$C$40)*Grunddaten!G4^(SUM('DAL359-CAP'!$C$41,'DAL358-CAP'!$C$41,'DRS-CAP'!$C$41,'DIA-CAP'!$C$41,'MSA-CAP'!$C$41)) -> 12.08859461 | M4: =SUM('DAL359-CAP'!$C$68,'DAL358-CAP'!$C$68,'DRS-CAP'!$C$68,'DIA-CAP'!$C$68,'MSA-CAP'!$C$68)*Grunddaten!G4^(SUM('DAL359-CAP'!$C$69,'DAL358-CAP'!$C$69,'DRS-CAP'!$C$69,'DIA-CAP'!$C$69,'MSA-CAP'!$C$69)) -> 0 | N4: 275 | O4: 292 | P4: 298 | Q4: 300 | R4: =IF(Vorgaben!$D$8/Vorgaben!$D$9>=Grunddaten!$H4,"x","") -> x | S4: =IF(Vorgaben!$D$8/Vorgaben!$D$9<=Grunddaten!$I4,"x","") ->  | T4: -93.24172886 | U4: 61.29519545 | V4: =T4+U4*LOG(Vorgaben!$D$8/Vorgaben!$D$9) -> 74.7293378 | W4: =IF(V4>0,"x","") -> x | X4: =IF(V4<=Vorgaben!$D$12,"x","") ->  | Y4: x | Z4: =IF(AND(R4="x",S4="x",W4="x",X4="x",Y4="x"),"x","") ->  | AA4: =IF(Z4="x",CONCATENATE(A4," DN ",B4),"") ->  | AB4: =IF(ROW(AA1)>COUNTA(AA:AA),"",INDEX(AA:AA,SMALL(IF(AA$1:AA$29<>"",ROW($1:$29)),ROW($AA1)))) -> DAL 359 DN 600 | AC4: =IFERROR(AB4,"") -> DAL 359 DN 600
A5: DAL 359 | B5: 400 | C5: =CONCATENATE(A5,B5) -> DAL 359400 | G5: =Auslegung!$D$32 -> 550 | H5: 200 | I5: 500 | J5: 200 | K5: =Auslegung!$D$32/(PI()/4*(Grunddaten!J5/1000)^2*3600) -> 4.863067706 | L5: =SUM('DAL359-CAP'!$C$40,'DAL358-CAP'!$C$40,'DRS-CAP'!$C$40,'DIA-CAP'!$C$40,'MSA-CAP'!$C$40)*Grunddaten!G5^(SUM('DAL359-CAP'!$C$41,'DAL358-CAP'!$C$41,'DRS-CAP'!$C$41,'DIA-CAP'!$C$41,'MSA-CAP'!$C$41)) -> 12.08859461 | M5: =SUM('DAL359-CAP'!$C$68,'DAL358-CAP'!$C$68,'DRS-CAP'!$C$68,'DIA-CAP'!$C$68,'MSA-CAP'!$C$68)*Grunddaten!G5^(SUM('DAL359-CAP'!$C$69,'DAL358-CAP'!$C$69,'DRS-CAP'!$C$69,'DIA-CAP'!$C$69,'MSA-CAP'!$C$69)) -> 0 | N5: 315 | O5: 392 | P5: 398 | Q5: 400 | R5: =IF(Vorgaben!$D$8/Vorgaben!$D$9>=Grunddaten!$H5,"x","") -> x | S5: =IF(Vorgaben!$D$8/Vorgaben!$D$9<=Grunddaten!$I5,"x","") ->  | T5: -113.4 | U5: 58.16 | V5: =T5+U5*LOG(Vorgaben!$D$8/Vorgaben!$D$9) -> 45.97949402 | W5: =IF(V5>0,"x","") -> x | X5: =IF(V5<=Vorgaben!$D$12,"x","") ->  | Y5: x | Z5: =IF(AND(R5="x",S5="x",W5="x",X5="x",Y5="x"),"x","") ->  | AA5: =IF(Z5="x",CONCATENATE(A5," DN ",B5),"") ->  | AB5: =IF(ROW(AA2)>COUNTA(AA:AA),"",INDEX(AA:AA,SMALL(IF(AA$1:AA$29<>"",ROW($1:$29)),ROW($AA2)))) -> DAL 358 DN 800 | AC5: =IFERROR(AB5,"") -> DAL 358 DN 800
A6: DAL 359 | B6: 500 | C6: DAL 359500 | G6: =Auslegung!$D$32 -> 550 | H6: 300 | I6: 700 | J6: 225 | K6: =Auslegung!$D$32/(PI()/4*(Grunddaten!J6/1000)^2*3600) -> 3.842423866 | L6: =SUM('DAL359-CAP'!$C$40,'DAL358-CAP'!$C$40,'DRS-CAP'!$C$40,'DIA-CAP'!$C$40,'MSA-CAP'!$C$40)*Grunddaten!G6^(SUM('DAL359-CAP'!$C$41,'DAL358-CAP'!$C$41,'DRS-CAP'!$C$41,'DIA-CAP'!$C$41,'MSA-CAP'!$C$41)) -> 12.08859461 | M6: =SUM('DAL359-CAP'!$C$68,'DAL358-CAP'!$C$68,'DRS-CAP'!$C$68,'DIA-CAP'!$C$68,'MSA-CAP'!$C$68)*Grunddaten!G6^(SUM('DAL359-CAP'!$C$69,'DAL358-CAP'!$C$69,'DRS-CAP'!$C$69,'DIA-CAP'!$C$69,'MSA-CAP'!$C$69)) -> 0 | N6: 340 | O6: 492 | P6: 498 | Q6: 500 | R6: =IF(Vorgaben!$D$8/Vorgaben!$D$9>=Grunddaten!$H6,"x","") -> x | S6: =IF(Vorgaben!$D$8/Vorgaben!$D$9<=Grunddaten!$I6,"x","") -> x | T6: -125.2 | U6: 58.87 | V6: =T6+U6*LOG(Vorgaben!$D$8/Vorgaben!$D$9) -> 36.12515153 | W6: x | X6: =IF(V6<=Vorgaben!$D$12,"x","") ->  | Y6: x | AB6: =IF(ROW(AA3)>COUNTA(AA:AA),"",INDEX(AA:AA,SMALL(IF(AA$1:AA$29<>"",ROW($1:$29)),ROW($AA3)))) -> DRS DN 315 | AC6: DRS DN 315
A7: DAL 359 | B7: 600 | C7: DAL 359600 | G7: =Auslegung!$D$32 -> 550 | H7: 500 | I7: 1200 | J7: 250 | K7: =Auslegung!$D$32/(PI()/4*(Grunddaten!J7/1000)^2*3600) -> 3.112363332 | L7: =SUM('DAL359-CAP'!$C$40,'DAL358-CAP'!$C$40,'DRS-CAP'!$C$40,'DIA-CAP'!$C$40,'MSA-CAP'!$C$40)*Grunddaten!G7^(SUM('DAL359-CAP'!$C$41,'DAL358-CAP'!$C$41,'DRS-CAP'!$C$41,'DIA-CAP'!$C$41,'MSA-CAP'!$C$41)) -> 12.08859461 | M7: =SUM('DAL359-CAP'!$C$68,'DAL358-CAP'!$C$68,'DRS-CAP'!$C$68,'DIA-CAP'!$C$68,'MSA-CAP'!$C$68)*Grunddaten!G7^(SUM('DAL359-CAP'!$C$69,'DAL358-CAP'!$C$69,'DRS-CAP'!$C$69,'DIA-CAP'!$C$69,'MSA-CAP'!$C$69)) -> 0 | N7: 365 | O7: 614 | P7: 595 | Q7: 600 | R7: =IF(Vorgaben!$D$8/Vorgaben!$D$9>=Grunddaten!$H7,"x","") -> x | S7: =IF(Vorgaben!$D$8/Vorgaben!$D$9<=Grunddaten!$I7,"x","") -> x | T7: -142.406 | U7: 63.15 | V7: =T7+U7*LOG(Vorgaben!$D$8/Vorgaben!$D$9) -> 30.64790384 | W7: x | X7: =IF(V7<=Vorgaben!$D$12,"x","") -> x | Y7: x | Z7: x | AA7: DAL 359 DN 600 | AB7: =IF(ROW(AA4)>COUNTA(AA:AA),"",INDEX(AA:AA,SMALL(IF(AA$1:AA$29<>"",ROW($1:$29)),ROW($AA4)))) -> DRS DN 355 | AC7: DRS DN 355
A8: DAL 359 | B8: 800 | C8: DAL 359800 | G8: =Auslegung!$D$32 -> 550 | H8: 800 | I8: 2000 | J8: 315 | K8: =Auslegung!$D$32/(PI()/4*(Grunddaten!J8/1000)^2*3600) -> 1.96042034 | L8: =SUM('DAL359-CAP'!$C$40,'DAL358-CAP'!$C$40,'DRS-CAP'!$C$40,'DIA-CAP'!$C$40,'MSA-CAP'!$C$40)*Grunddaten!G8^(SUM('DAL359-CAP'!$C$41,'DAL358-CAP'!$C$41,'DRS-CAP'!$C$41,'DIA-CAP'!$C$41,'MSA-CAP'!$C$41)) -> 12.08859461 | M8: =SUM('DAL359-CAP'!$C$68,'DAL358-CAP'!$C$68,'DRS-CAP'!$C$68,'DIA-CAP'!$C$68,'MSA-CAP'!$C$68)*Grunddaten!G8^(SUM('DAL359-CAP'!$C$69,'DAL358-CAP'!$C$69,'DRS-CAP'!$C$69,'DIA-CAP'!$C$69,'MSA-CAP'!$C$69)) -> 0 | N8: 430 | O8: 794 | P8: 800 | Q8: 800 | R8: =IF(Vorgaben!$D$8/Vorgaben!$D$9>=Grunddaten!$H8,"x","") ->  | S8: =IF(Vorgaben!$D$8/Vorgaben!$D$9<=Grunddaten!$I8,"x","") -> x | T8: -142.9 | U8: 56.58 | V8: =T8+U8*LOG(Vorgaben!$D$8/Vorgaben!$D$9) -> 12.14972097 | W8: x | X8: =IF(V8<=Vorgaben!$D$12,"x","") -> x | Y8: x | AB8: =IF(ROW(AA5)>COUNTA(AA:AA),"",INDEX(AA:AA,SMALL(IF(AA$1:AA$29<>"",ROW($1:$29)),ROW($AA5)))) -> MSA DN 600 | AC8: MSA DN 600
A9: DAL 358 | B9: 300 | C9: DAL 358300 | G9: =Auslegung!$D$32 -> 550 | H9: 40 | I9: 250 | J9: 160 | K9: =Auslegung!$D$32/(PI()/4*(Grunddaten!J9/1000)^2*3600) -> 7.59854329 | L9: =SUM('DAL359-CAP'!$C$40,'DAL358-CAP'!$C$40,'DRS-CAP'!$C$40,'DIA-CAP'!$C$40,'MSA-CAP'!$C$40)*Grunddaten!G9^(SUM('DAL359-CAP'!$C$41,'DAL358-CAP'!$C$41,'DRS-CAP'!$C$41,'DIA-CAP'!$C$41,'MSA-CAP'!$C$41)) -> 12.08859461 | M9: =SUM('DAL359-CAP'!$C$68,'DAL358-CAP'!$C$68,'DRS-CAP'!$C$68,'DIA-CAP'!$C$68,'MSA-CAP'!$C$68)*Grunddaten!G9^(SUM('DAL359-CAP'!$C$69,'DAL358-CAP'!$C$69,'DRS-CAP'!$C$69,'DIA-CAP'!$C$69,'MSA-CAP'!$C$69)) -> 0 | N9: 275 | O9: 292 | P9: 298 | Q9: 300 | R9: =IF(Vorgaben!$D$8/Vorgaben!$D$9>=Grunddaten!$H9,"x","") -> x | S9: =IF(Vorgaben!$D$8/Vorgaben!$D$9<=Grunddaten!$I9,"x","") ->  | T9: -65.68376336 | U9: 48.46618874 | V9: =T9+U9*LOG(Vorgaben!$D$8/Vorgaben!$D$9) -> 67.13117198 | W9: x | X9: =IF(V9<=Vorgaben!$D$12,"x","") ->  | Y9: x | AB9: =IF(ROW(AA6)>COUNTA(AA:AA),"",INDEX(AA:AA,SMALL(IF(AA$1:AA$29<>"",ROW($1:$29)),ROW($AA6)))) -> 
A10: DAL 358 | B10: 400 | C10: DAL 358400 | G10: =Auslegung!$D$32 -> 550 | H10: 130 | I10: 700 | J10: 200 | K10: =Auslegung!$D$32/(PI()/4*(Grunddaten!J10/1000)^2*3600) -> 4.863067706 | L10: =SUM('DAL359-CAP'!$C$40,'DAL358-CAP'!$C$40,'DRS-CAP'!$C$40,'DIA-CAP'!$C$40,'MSA-CAP'!$C$40)*Grunddaten!G10^(SUM('DAL359-CAP'!$C$41,'DAL358-CAP'!$C$41,'DRS-CAP'!$C$41,'DIA-CAP'!$C$41,'MSA-CAP'!$C$41)) -> 12.08859461 | M10: =SUM('DAL359-CAP'!$C$68,'DAL358-CAP'!$C$68,'DRS-CAP'!$C$68,'DIA-CAP'!$C$68,'MSA-CAP'!$C$68)*Grunddaten!G10^(SUM('DAL359-CAP'!$C$69,'DAL358-CAP'!$C$69,'DRS-CAP'!$C$69,'DIA-CAP'!$C$69,'MSA-CAP'!$C$69)) -> 0 | N10: 315 | O10: 392 | P10: 398 | Q10: 400 | R10: =IF(Vorgaben!$D$8/Vorgaben!$D$9>=Grunddaten!$H10,"x","") -> x | S10: =IF(Vorgaben!$D$8/Vorgaben!$D$9<=Grunddaten!$I10,"x","") -> x | T10: -97.77 | U10: 56.79 | V10: =T10+U10*LOG(Vorgaben!$D$8/Vorgaben!$D$9) -> 57.85519714 | W10: x | X10: =IF(V10<=Vorgaben!$D$12,"x","") ->  | Y10: x | AB10: =IF(ROW(AA7)>COUNTA(AA:AA),"",INDEX(AA:AA,SMALL(IF(AA$1:AA$29<>"",ROW($1:$29)),ROW($AA7)))) -> 
A11: DAL 358 | B11: 500 | C11: DAL 358500 | G11: =Auslegung!$D$32 -> 550 | H11: 200 | I11: 800 | J11: 225 | K11: =Auslegung!$D$32/(PI()/4*(Grunddaten!J11/1000)^2*3600) -> 3.842423866 | L11: =SUM('DAL359-CAP'!$C$40,'DAL358-CAP'!$C$40,'DRS-CAP'!$C$40,'DIA-CAP'!$C$40,'MSA-CAP'!$C$40)*Grunddaten!G11^(SUM('DAL359-CAP'!$C$41,'DAL358-CAP'!$C$41,'DRS-CAP'!$C$41,'DIA-CAP'!$C$41,'MSA-CAP'!$C$41)) -> 12.08859461 | M11: =SUM('DAL359-CAP'!$C$68,'DAL358-CAP'!$C$68,'DRS-CAP'!$C$68,'DIA-CAP'!$C$68,'MSA-CAP'!$C$68)*Grunddaten!G11^(SUM('DAL359-CAP'!$C$69,'DAL358-CAP'!$C$69,'DRS-CAP'!$C$69,'DIA-CAP'!$C$69,'MSA-CAP'!$C$69)) -> 0 | N11: 340 | O11: 492 | P11: 498 | Q11: 500 | R11: =IF(Vorgaben!$D$8/Vorgaben!$D$9>=Grunddaten!$H11,"x","") -> x | S11: =IF(Vorgaben!$D$8/Vorgaben!$D$9<=Grunddaten!$I11,"x","") -> x | T11: -124.54 | U11: 62.47 | V11: =T11+U11*LOG(Vorgaben!$D$8/Vorgaben!$D$9) -> 46.65045721 | W11: x | X11: =IF(V11<=Vorgaben!$D$12,"x","") ->  | Y11: x | AB11: =IF(ROW(AA8)>COUNTA(AA:AA),"",INDEX(AA:AA,SMALL(IF(AA$1:AA$29<>"",ROW($1:$29)),ROW($AA8)))) -> 
A12: DAL 358 | B12: 600 | C12: DAL 358600 | G12: =Auslegung!$D$32 -> 550 | H12: 300 | I12: 1000 | J12: 250 | K12: =Auslegung!$D$32/(PI()/4*(Grunddaten!J12/1000)^2*3600) -> 3.112363332 | L12: =SUM('DAL359-CAP'!$C$40,'DAL358-CAP'!$C$40,'DRS-CAP'!$C$40,'DIA-CAP'!$C$40,'MSA-CAP'!$C$40)*Grunddaten!G12^(SUM('DAL359-CAP'!$C$41,'DAL358-CAP'!$C$41,'DRS-CAP'!$C$41,'DIA-CAP'!$C$41,'MSA-CAP'!$C$41)) -> 12.08859461 | M12: =SUM('DAL359-CAP'!$C$68,'DAL358-CAP'!$C$68,'DRS-CAP'!$C$68,'DIA-CAP'!$C$68,'MSA-CAP'!$C$68)*Grunddaten!G12^(SUM('DAL359-CAP'!$C$69,'DAL358-CAP'!$C$69,'DRS-CAP'!$C$69,'DIA-CAP'!$C$69,'MSA-CAP'!$C$69)) -> 0 | N12: 365 | O12: 614 | P12: 595 | Q12: 600 | R12: =IF(Vorgaben!$D$8/Vorgaben!$D$9>=Grunddaten!$H12,"x","") -> x | S12: =IF(Vorgaben!$D$8/Vorgaben!$D$9<=Grunddaten!$I12,"x","") -> x | T12: -136.3 | U12: 63.1 | V12: =T12+U12*LOG(Vorgaben!$D$8/Vorgaben!$D$9) -> 36.61688571 | W12: x | X12: =IF(V12<=Vorgaben!$D$12,"x","") ->  | Y12: x | AB12: =IF(ROW(AA9)>COUNTA(AA:AA),"",INDEX(AA:AA,SMALL(IF(AA$1:AA$29<>"",ROW($1:$29)),ROW($AA9)))) -> 
A13: DAL 358 | B13: 800 | C13: DAL 358800 | G13: =Auslegung!$D$32 -> 550 | H13: 400 | I13: 1750 | J13: 315 | K13: =Auslegung!$D$32/(PI()/4*(Grunddaten!J13/1000)^2*3600) -> 1.96042034 | L13: =SUM('DAL359-CAP'!$C$40,'DAL358-CAP'!$C$40,'DRS-CAP'!$C$40,'DIA-CAP'!$C$40,'MSA-CAP'!$C$40)*Grunddaten!G13^(SUM('DAL359-CAP'!$C$41,'DAL358-CAP'!$C$41,'DRS-CAP'!$C$41,'DIA-CAP'!$C$41,'MSA-CAP'!$C$41)) -> 12.08859461 | M13: =SUM('DAL359-CAP'!$C$68,'DAL358-CAP'!$C$68,'DRS-CAP'!$C$68,'DIA-CAP'!$C$68,'MSA-CAP'!$C$68)*Grunddaten!G13^(SUM('DAL359-CAP'!$C$69,'DAL358-CAP'!$C$69,'DRS-CAP'!$C$69,'DIA-CAP'!$C$69,'MSA-CAP'!$C$69)) -> 0 | N13: 430 | O13: 794 | P13: 800 | Q13: 800 | R13: =IF(Vorgaben!$D$8/Vorgaben!$D$9>=Grunddaten!$H13,"x","") -> x | S13: =IF(Vorgaben!$D$8/Vorgaben!$D$9<=Grunddaten!$I13,"x","") -> x | T13: -141.4 | U13: 62.47 | V13: =T13+U13*LOG(Vorgaben!$D$8/Vorgaben!$D$9) -> 29.79045721 | W13: x | X13: =IF(V13<=Vorgaben!$D$12,"x","") -> x | Y13: x | Z13: x | AA13: DAL 358 DN 800 | AB13: =IF(ROW(AA10)>COUNTA(AA:AA),"",INDEX(AA:AA,SMALL(IF(AA$1:AA$29<>"",ROW($1:$29)),ROW($AA10)))) -> 
A14: DRS | B14: 100 | C14: DRS100 | G14: =Auslegung!$D$32 -> 550 | H14: 25 | I14: 100 | J14: 100 | K14: =Auslegung!$D$32/(PI()/4*(Grunddaten!J14/1000)^2*3600) -> 19.45227082 | L14: =SUM('DAL359-CAP'!$C$40,'DAL358-CAP'!$C$40,'DRS-CAP'!$C$40,'DIA-CAP'!$C$40,'MSA-CAP'!$C$40)*Grunddaten!G14^(SUM('DAL359-CAP'!$C$41,'DAL358-CAP'!$C$41,'DRS-CAP'!$C$41,'DIA-CAP'!$C$41,'MSA-CAP'!$C$41)) -> 12.08859461 | M14: =SUM('DAL359-CAP'!$C$68,'DAL358-CAP'!$C$68,'DRS-CAP'!$C$68,'DIA-CAP'!$C$68,'MSA-CAP'!$C$68)*Grunddaten!G14^(SUM('DAL359-CAP'!$C$69,'DAL358-CAP'!$C$69,'DRS-CAP'!$C$69,'DIA-CAP'!$C$69,'MSA-CAP'!$C$69)) -> 0 | N14: 177 | O14: 122 | P14: 620 | Q14: 155 | R14: =IF(Vorgaben!$D$8/Vorgaben!$D$9>=Grunddaten!$H14,"x","") -> x | S14: =IF(Vorgaben!$D$8/Vorgaben!$D$9<=Grunddaten!$I14,"x","") ->  | T14: -63.18 | U14: 49.43 | V14: =T14+U14*LOG(Vorgaben!$D$8/Vorgaben!$D$9) -> 72.27612774 | W14: x | X14: =IF(V14<=Vorgaben!$D$12,"x","") ->  | Y14: x | AB14: =IF(ROW(AA11)>COUNTA(AA:AA),"",INDEX(AA:AA,SMALL(IF(AA$1:AA$29<>"",ROW($1:$29)),ROW($AA11)))) -> 
A15: DRS | B15: 125 | C15: DRS125 | G15: =Auslegung!$D$32 -> 550 | H15: 50 | I15: 150 | J15: 125 | K15: =Auslegung!$D$32/(PI()/4*(Grunddaten!J15/1000)^2*3600) -> 12.44945333 | L15: =SUM('DAL359-CAP'!$C$40,'DAL358-CAP'!$C$40,'DRS-CAP'!$C$40,'DIA-CAP'!$C$40,'MSA-CAP'!$C$40)*Grunddaten!G15^(SUM('DAL359-CAP'!$C$41,'DAL358-CAP'!$C$41,'DRS-CAP'!$C$41,'DIA-CAP'!$C$41,'MSA-CAP'!$C$41)) -> 12.08859461 | M15: =SUM('DAL359-CAP'!$C$68,'DAL358-CAP'!$C$68,'DRS-CAP'!$C$68,'DIA-CAP'!$C$68,'MSA-CAP'!$C$68)*Grunddaten!G15^(SUM('DAL359-CAP'!$C$69,'DAL358-CAP'!$C$69,'DRS-CAP'!$C$69,'DIA-CAP'!$C$69,'MSA-CAP'!$C$69)) -> 0 | N15: 207 | O15: 148 | P15: 620 | Q15: 185 | R15: =IF(Vorgaben!$D$8/Vorgaben!$D$9>=Grunddaten!$H15,"x","") -> x | S15: =IF(Vorgaben!$D$8/Vorgaben!$D$9<=Grunddaten!$I15,"x","") ->  | T15: -84.65 | U15: 56.22 | V15: =T15+U15*LOG(Vorgaben!$D$8/Vorgaben!$D$9) -> 69.4131904 | W15: x | X15: =IF(V15<=Vorgaben!$D$12,"x","") ->  | Y15: x | AB15: =IF(ROW(AA12)>COUNTA(AA:AA),"",INDEX(AA:AA,SMALL(IF(AA$1:AA$29<>"",ROW($1:$29)),ROW($AA12)))) -> 
A16: DRS | B16: 180 | C16: DRS180 | G16: =Auslegung!$D$32 -> 550 | H16: 100 | I16: 275 | J16: 180 | K16: =Auslegung!$D$32/(PI()/4*(Grunddaten!J16/1000)^2*3600) -> 6.003787291 | L16: =SUM('DAL359-CAP'!$C$40,'DAL358-CAP'!$C$40,'DRS-CAP'!$C$40,'DIA-CAP'!$C$40,'MSA-CAP'!$C$40)*Grunddaten!G16^(SUM('DAL359-CAP'!$C$41,'DAL358-CAP'!$C$41,'DRS-CAP'!$C$41,'DIA-CAP'!$C$41,'MSA-CAP'!$C$41)) -> 12.08859461 | M16: =SUM('DAL359-CAP'!$C$68,'DAL358-CAP'!$C$68,'DRS-CAP'!$C$68,'DIA-CAP'!$C$68,'MSA-CAP'!$C$68)*Grunddaten!G16^(SUM('DAL359-CAP'!$C$69,'DAL358-CAP'!$C$69,'DRS-CAP'!$C$69,'DIA-CAP'!$C$69,'MSA-CAP'!$C$69)) -> 0 | N16: 252 | O16: 231 | P16: 620 | Q16: 280 | R16: =IF(Vorgaben!$D$8/Vorgaben!$D$9>=Grunddaten!$H16,"x","") -> x | S16: =IF(Vorgaben!$D$8/Vorgaben!$D$9<=Grunddaten!$I16,"x","") ->  | T16: -124.9 | U16: 67.27 | V16: =T16+U16*LOG(Vorgaben!$D$8/Vorgaben!$D$9) -> 59.44419812 | W16: x | X16: =IF(V16<=Vorgaben!$D$12,"x","") ->  | Y16: x | AB16: =IF(ROW(AA13)>COUNTA(AA:AA),"",INDEX(AA:AA,SMALL(IF(AA$1:AA$29<>"",ROW($1:$29)),ROW($AA13)))) -> 
A17: DRS | B17: 250 | C17: DRS250 | G17: =Auslegung!$D$32 -> 550 | H17: 150 | I17: 450 | J17: 250 | K17: =Auslegung!$D$32/(PI()/4*(Grunddaten!J17/1000)^2*3600) -> 3.112363332 | L17: =SUM('DAL359-CAP'!$C$40,'DAL358-CAP'!$C$40,'DRS-CAP'!$C$40,'DIA-CAP'!$C$40,'MSA-CAP'!$C$40)*Grunddaten!G17^(SUM('DAL359-CAP'!$C$41,'DAL358-CAP'!$C$41,'DRS-CAP'!$C$41,'DIA-CAP'!$C$41,'MSA-CAP'!$C$41)) -> 12.08859461 | M17: =SUM('DAL359-CAP'!$C$68,'DAL358-CAP'!$C$68,'DRS-CAP'!$C$68,'DIA-CAP'!$C$68,'MSA-CAP'!$C$68)*Grunddaten!G17^(SUM('DAL359-CAP'!$C$69,'DAL358-CAP'!$C$69,'DRS-CAP'!$C$69,'DIA-CAP'!$C$69,'MSA-CAP'!$C$69)) -> 0 | N17: 302 | O17: 316 | P17: 620 | Q17: 380 | R17: =IF(Vorgaben!$D$8/Vorgaben!$D$9>=Grunddaten!$H17,"x","") -> x | S17: =IF(Vorgaben!$D$8/Vorgaben!$D$9<=Grunddaten!$I17,"x","") ->  | T17: -125 | U17: 60.59 | V17: =T17+U17*LOG(Vorgaben!$D$8/Vorgaben!$D$9) -> 41.03857536 | W17: x | X17: =IF(V17<=Vorgaben!$D$12,"x","") ->  | Y17: x | AB17: =IF(ROW(AA14)>COUNTA(AA:AA),"",INDEX(AA:AA,SMALL(IF(AA$1:AA$29<>"",ROW($1:$29)),ROW($AA14)))) -> 
A18: DRS | B18: 315 | C18: DRS315 | G18: =Auslegung!$D$32 -> 550 | H18: 225 | I18: 725 | J18: 315 | K18: =Auslegung!$D$32/(PI()/4*(Grunddaten!J18/1000)^2*3600) -> 1.96042034 | L18: =SUM('DAL359-CAP'!$C$40,'DAL358-CAP'!$C$40,'DRS-CAP'!$C$40,'DIA-CAP'!$C$40,'MSA-CAP'!$C$40)*Grunddaten!G18^(SUM('DAL359-CAP'!$C$41,'DAL358-CAP'!$C$41,'DRS-CAP'!$C$41,'DIA-CAP'!$C$41,'MSA-CAP'!$C$41)) -> 12.08859461 | M18: =SUM('DAL359-CAP'!$C$68,'DAL358-CAP'!$C$68,'DRS-CAP'!$C$68,'DIA-CAP'!$C$68,'MSA-CAP'!$C$68)*Grunddaten!G18^(SUM('DAL359-CAP'!$C$69,'DAL358-CAP'!$C$69,'DRS-CAP'!$C$69,'DIA-CAP'!$C$69,'MSA-CAP'!$C$69)) -> 0 | N18: 367 | O18: 405 | P18: 620 | Q18: 490 | R18: =IF(Vorgaben!$D$8/Vorgaben!$D$9>=Grunddaten!$H18,"x","") -> x | S18: =IF(Vorgaben!$D$8/Vorgaben!$D$9<=Grunddaten!$I18,"x","") -> x | T18: -131.8 | U18: 59.05 | V18: =T18+U18*LOG(Vorgaben!$D$8/Vorgaben!$D$9) -> 30.01841681 | W18: x | X18: =IF(V18<=Vorgaben!$D$12,"x","") -> x | Y18: x | Z18: x | AA18: DRS DN 315 | AB18: =IF(ROW(AA15)>COUNTA(AA:AA),"",INDEX(AA:AA,SMALL(IF(AA$1:AA$29<>"",ROW($1:$29)),ROW($AA15)))) -> 
A19: DRS | B19: 355 | C19: DRS355 | G19: =Auslegung!$D$32 -> 550 | H19: 350 | I19: 925 | J19: 355 | K19: =Auslegung!$D$32/(PI()/4*(Grunddaten!J19/1000)^2*3600) -> 1.543524763 | L19: =SUM('DAL359-CAP'!$C$40,'DAL358-CAP'!$C$40,'DRS-CAP'!$C$40,'DIA-CAP'!$C$40,'MSA-CAP'!$C$40)*Grunddaten!G19^(SUM('DAL359-CAP'!$C$41,'DAL358-CAP'!$C$41,'DRS-CAP'!$C$41,'DIA-CAP'!$C$41,'MSA-CAP'!$C$41)) -> 12.08859461 | M19: =SUM('DAL359-CAP'!$C$68,'DAL358-CAP'!$C$68,'DRS-CAP'!$C$68,'DIA-CAP'!$C$68,'MSA-CAP'!$C$68)*Grunddaten!G19^(SUM('DAL359-CAP'!$C$69,'DAL358-CAP'!$C$69,'DRS-CAP'!$C$69,'DIA-CAP'!$C$69,'MSA-CAP'!$C$69)) -> 0 | N19: 402 | O19: 453 | P19: 620 | Q19: 550 | R19: =IF(Vorgaben!$D$8/Vorgaben!$D$9>=Grunddaten!$H19,"x","") -> x | S19: =IF(Vorgaben!$D$8/Vorgaben!$D$9<=Grunddaten!$I19,"x","") -> x | T19: -140 | U19: 59.15 | V19: =T19+U19*LOG(Vorgaben!$D$8/Vorgaben!$D$9) -> 22.09245308 | W19: x | X19: =IF(V19<=Vorgaben!$D$12,"x","") -> x | Y19: x | Z19: x | AA19: DRS DN 355 | AB19: =IF(ROW(AA16)>COUNTA(AA:AA),"",INDEX(AA:AA,SMALL(IF(AA$1:AA$29<>"",ROW($1:$29)),ROW($AA16)))) -> 
A20: DIA | B20: 100 | C20: DIA100 | G20: =Auslegung!$D$32 -> 550 | H20: 25 | I20: 100 | J20: 100 | K20: =Auslegung!$D$32/(PI()/4*(Grunddaten!J20/1000)^2*3600) -> 19.45227082 | L20: =(SUM('DAL359-CAP'!$C$40,'DAL358-CAP'!$C$40,'DRS-CAP'!$C$40,'DIA-CAP'!$C$40,'MSA-CAP'!$C$40)*Grunddaten!G20^(SUM('DAL359-CAP'!$C$41,'DAL358-CAP'!$C$41,'DRS-CAP'!$C$41,'DIA-CAP'!$C$41,'MSA-CAP'!$C$41)))*1.1 -> 13.29745408 | M20: =SUM('DAL359-CAP'!$C$68,'DAL358-CAP'!$C$68,'DRS-CAP'!$C$68,'DIA-CAP'!$C$68,'MSA-CAP'!$C$68)*Grunddaten!G20^(SUM('DAL359-CAP'!$C$69,'DAL358-CAP'!$C$69,'DRS-CAP'!$C$69,'DIA-CAP'!$C$69,'MSA-CAP'!$C$69)) -> 0 | N20: 177 | O20: 122 | P20: 620 | Q20: 155 | R20: =IF(Vorgaben!$D$8/Vorgaben!$D$9>=Grunddaten!$H20,"x","") -> x | S20: =IF(Vorgaben!$D$8/Vorgaben!$D$9<=Grunddaten!$I20,"x","") ->  | T20: -60.68 | U20: 49.43 | V20: =T20+U20*LOG(Vorgaben!$D$8/Vorgaben!$D$9) -> 74.77612774 | W20: x | X20: =IF(V20<=Vorgaben!$D$12,"x","") ->  | Y20: gesperrt | AB20: =IF(ROW(AA17)>COUNTA(AA:AA),"",INDEX(AA:AA,SMALL(IF(AA$1:AA$29<>"",ROW($1:$29)),ROW($AA17)))) -> 
A21: DIA | B21: 125 | C21: DIA125 | G21: =Auslegung!$D$32 -> 550 | H21: 50 | I21: 150 | J21: 125 | K21: =Auslegung!$D$32/(PI()/4*(Grunddaten!J21/1000)^2*3600) -> 12.44945333 | L21: =(SUM('DAL359-CAP'!$C$40,'DAL358-CAP'!$C$40,'DRS-CAP'!$C$40,'DIA-CAP'!$C$40,'MSA-CAP'!$C$40)*Grunddaten!G21^(SUM('DAL359-CAP'!$C$41,'DAL358-CAP'!$C$41,'DRS-CAP'!$C$41,'DIA-CAP'!$C$41,'MSA-CAP'!$C$41)))*1.1 -> 13.29745408 | M21: =SUM('DAL359-CAP'!$C$68,'DAL358-CAP'!$C$68,'DRS-CAP'!$C$68,'DIA-CAP'!$C$68,'MSA-CAP'!$C$68)*Grunddaten!G21^(SUM('DAL359-CAP'!$C$69,'DAL358-CAP'!$C$69,'DRS-CAP'!$C$69,'DIA-CAP'!$C$69,'MSA-CAP'!$C$69)) -> 0 | N21: 207 | O21: 148 | P21: 620 | Q21: 185 | R21: =IF(Vorgaben!$D$8/Vorgaben!$D$9>=Grunddaten!$H21,"x","") -> x | S21: =IF(Vorgaben!$D$8/Vorgaben!$D$9<=Grunddaten!$I21,"x","") ->  | T21: -82.15 | U21: 56.22 | V21: =T21+U21*LOG(Vorgaben!$D$8/Vorgaben!$D$9) -> 71.9131904 | W21: x | X21: =IF(V21<=Vorgaben!$D$12,"x","") ->  | Y21: gesperrt | AB21: =IF(ROW(AA18)>COUNTA(AA:AA),"",INDEX(AA:AA,SMALL(IF(AA$1:AA$29<>"",ROW($1:$29)),ROW($AA18)))) -> 
A22: DIA | B22: 180 | C22: DIA180 | G22: =Auslegung!$D$32 -> 550 | H22: 100 | I22: 275 | J22: 180 | K22: =Auslegung!$D$32/(PI()/4*(Grunddaten!J22/1000)^2*3600) -> 6.003787291 | L22: =(SUM('DAL359-CAP'!$C$40,'DAL358-CAP'!$C$40,'DRS-CAP'!$C$40,'DIA-CAP'!$C$40,'MSA-CAP'!$C$40)*Grunddaten!G22^(SUM('DAL359-CAP'!$C$41,'DAL358-CAP'!$C$41,'DRS-CAP'!$C$41,'DIA-CAP'!$C$41,'MSA-CAP'!$C$41)))*1.1 -> 13.29745408 | M22: =SUM('DAL359-CAP'!$C$68,'DAL358-CAP'!$C$68,'DRS-CAP'!$C$68,'DIA-CAP'!$C$68,'MSA-CAP'!$C$68)*Grunddaten!G22^(SUM('DAL359-CAP'!$C$69,'DAL358-CAP'!$C$69,'DRS-CAP'!$C$69,'DIA-CAP'!$C$69,'MSA-CAP'!$C$69)) -> 0 | N22: 252 | O22: 231 | P22: 620 | Q22: 280 | R22: =IF(Vorgaben!$D$8/Vorgaben!$D$9>=Grunddaten!$H22,"x","") -> x | S22: =IF(Vorgaben!$D$8/Vorgaben!$D$9<=Grunddaten!$I22,"x","") ->  | T22: -122.4 | U22: 67.27 | V22: =T22+U22*LOG(Vorgaben!$D$8/Vorgaben!$D$9) -> 61.94419812 | W22: x | X22: =IF(V22<=Vorgaben!$D$12,"x","") ->  | Y22: gesperrt | AB22: =IF(ROW(AA19)>COUNTA(AA:AA),"",INDEX(AA:AA,SMALL(IF(AA$1:AA$29<>"",ROW($1:$29)),ROW($AA19)))) -> 
A23: DIA | B23: 250 | C23: DIA250 | G23: =Auslegung!$D$32 -> 550 | H23: 150 | I23: 450 | J23: 250 | K23: =Auslegung!$D$32/(PI()/4*(Grunddaten!J23/1000)^2*3600) -> 3.112363332 | L23: =(SUM('DAL359-CAP'!$C$40,'DAL358-CAP'!$C$40,'DRS-CAP'!$C$40,'DIA-CAP'!$C$40,'MSA-CAP'!$C$40)*Grunddaten!G23^(SUM('DAL359-CAP'!$C$41,'DAL358-CAP'!$C$41,'DRS-CAP'!$C$41,'DIA-CAP'!$C$41,'MSA-CAP'!$C$41)))*1.1 -> 13.29745408 | M23: =SUM('DAL359-CAP'!$C$68,'DAL358-CAP'!$C$68,'DRS-CAP'!$C$68,'DIA-CAP'!$C$68,'MSA-CAP'!$C$68)*Grunddaten!G23^(SUM('DAL359-CAP'!$C$69,'DAL358-CAP'!$C$69,'DRS-CAP'!$C$69,'DIA-CAP'!$C$69,'MSA-CAP'!$C$69)) -> 0 | N23: 302 | O23: 316 | P23: 620 | Q23: 380 | R23: =IF(Vorgaben!$D$8/Vorgaben!$D$9>=Grunddaten!$H23,"x","") -> x | S23: =IF(Vorgaben!$D$8/Vorgaben!$D$9<=Grunddaten!$I23,"x","") ->  | T23: -122.5 | U23: 60.59 | V23: =T23+U23*LOG(Vorgaben!$D$8/Vorgaben!$D$9) -> 43.53857536 | W23: x | X23: =IF(V23<=Vorgaben!$D$12,"x","") ->  | Y23: gesperrt | AB23: =IF(ROW(AA20)>COUNTA(AA:AA),"",INDEX(AA:AA,SMALL(IF(AA$1:AA$29<>"",ROW($1:$29)),ROW($AA20)))) -> 
A24: DIA | B24: 315 | C24: DIA315 | G24: =Auslegung!$D$32 -> 550 | H24: 225 | I24: 725 | J24: 315 | K24: =Auslegung!$D$32/(PI()/4*(Grunddaten!J24/1000)^2*3600) -> 1.96042034 | L24: =(SUM('DAL359-CAP'!$C$40,'DAL358-CAP'!$C$40,'DRS-CAP'!$C$40,'DIA-CAP'!$C$40,'MSA-CAP'!$C$40)*Grunddaten!G24^(SUM('DAL359-CAP'!$C$41,'DAL358-CAP'!$C$41,'DRS-CAP'!$C$41,'DIA-CAP'!$C$41,'MSA-CAP'!$C$41)))*1.1 -> 13.29745408 | M24: =SUM('DAL359-CAP'!$C$68,'DAL358-CAP'!$C$68,'DRS-CAP'!$C$68,'DIA-CAP'!$C$68,'MSA-CAP'!$C$68)*Grunddaten!G24^(SUM('DAL359-CAP'!$C$69,'DAL358-CAP'!$C$69,'DRS-CAP'!$C$69,'DIA-CAP'!$C$69,'MSA-CAP'!$C$69)) -> 0 | N24: 367 | O24: 405 | P24: 620 | Q24: 490 | R24: =IF(Vorgaben!$D$8/Vorgaben!$D$9>=Grunddaten!$H24,"x","") -> x | S24: =IF(Vorgaben!$D$8/Vorgaben!$D$9<=Grunddaten!$I24,"x","") -> x | T24: -129.3 | U24: 59.05 | V24: =T24+U24*LOG(Vorgaben!$D$8/Vorgaben!$D$9) -> 32.51841681 | W24: x | X24: =IF(V24<=Vorgaben!$D$12,"x","") -> x | Y24: gesperrt | AB24: =IF(ROW(AA21)>COUNTA(AA:AA),"",INDEX(AA:AA,SMALL(IF(AA$1:AA$29<>"",ROW($1:$29)),ROW($AA21)))) -> 
A25: DIA | B25: 355 | C25: DIA355 | G25: =Auslegung!$D$32 -> 550 | H25: 350 | I25: 950 | J25: 355 | K25: =Auslegung!$D$32/(PI()/4*(Grunddaten!J25/1000)^2*3600) -> 1.543524763 | L25: =(SUM('DAL359-CAP'!$C$40,'DAL358-CAP'!$C$40,'DRS-CAP'!$C$40,'DIA-CAP'!$C$40,'MSA-CAP'!$C$40)*Grunddaten!G25^(SUM('DAL359-CAP'!$C$41,'DAL358-CAP'!$C$41,'DRS-CAP'!$C$41,'DIA-CAP'!$C$41,'MSA-CAP'!$C$41)))*1.1 -> 13.29745408 | M25: =SUM('DAL359-CAP'!$C$68,'DAL358-CAP'!$C$68,'DRS-CAP'!$C$68,'DIA-CAP'!$C$68,'MSA-CAP'!$C$68)*Grunddaten!G25^(SUM('DAL359-CAP'!$C$69,'DAL358-CAP'!$C$69,'DRS-CAP'!$C$69,'DIA-CAP'!$C$69,'MSA-CAP'!$C$69)) -> 0 | N25: 402 | O25: 453 | P25: 620 | Q25: 550 | R25: =IF(Vorgaben!$D$8/Vorgaben!$D$9>=Grunddaten!$H25,"x","") -> x | S25: =IF(Vorgaben!$D$8/Vorgaben!$D$9<=Grunddaten!$I25,"x","") -> x | T25: -137.5 | U25: 59.15 | V25: =T25+U25*LOG(Vorgaben!$D$8/Vorgaben!$D$9) -> 24.59245308 | W25: x | X25: =IF(V25<=Vorgaben!$D$12,"x","") -> x | Y25: gesperrt | AB25: =IF(ROW(AA22)>COUNTA(AA:AA),"",INDEX(AA:AA,SMALL(IF(AA$1:AA$29<>"",ROW($1:$29)),ROW($AA22)))) -> 
A26: MSA | B26: 300 | C26: MSA300 | G26: =Auslegung!$D$32 -> 550 | H26: 75 | I26: 600 | J26: 160 | K26: =Auslegung!$D$32/(PI()/4*(Grunddaten!J26/1000)^2*3600) -> 7.59854329 | L26: =SUM('DAL359-CAP'!$C$40,'DAL358-CAP'!$C$40,'DRS-CAP'!$C$40,'DIA-CAP'!$C$40,'MSA-CAP'!$C$40)*Grunddaten!G26^(SUM('DAL359-CAP'!$C$41,'DAL358-CAP'!$C$41,'DRS-CAP'!$C$41,'DIA-CAP'!$C$41,'MSA-CAP'!$C$41)) -> 12.08859461 | M26: =SUM('DAL359-CAP'!$C$68,'DAL358-CAP'!$C$68,'DRS-CAP'!$C$68,'DIA-CAP'!$C$68,'MSA-CAP'!$C$68)*Grunddaten!G26^(SUM('DAL359-CAP'!$C$69,'DAL358-CAP'!$C$69,'DRS-CAP'!$C$69,'DIA-CAP'!$C$69,'MSA-CAP'!$C$69)) -> 0 | N26: 275 | O26: 292 | P26: 298 | Q26: ="-/-" -> -/- | R26: =IF(Vorgaben!$D$8/Vorgaben!$D$9>=Grunddaten!$H26,"x","") -> x | S26: =IF(Vorgaben!$D$8/Vorgaben!$D$9<=Grunddaten!$I26,"x","") -> x | T26: -102.8910841 | U26: 60.56077098 | V26: =T26+U26*LOG(Vorgaben!$D$8/Vorgaben!$D$9) -> 63.06739311 | W26: x | X26: =IF(V26<=Vorgaben!$D$12,"x","") ->  | Y26: x | AB26: =IF(ROW(AA23)>COUNTA(AA:AA),"",INDEX(AA:AA,SMALL(IF(AA$1:AA$29<>"",ROW($1:$29)),ROW($AA23)))) -> 
A27: MSA | B27: 400 | C27: MSA400 | G27: =Auslegung!$D$32 -> 550 | H27: 130 | I27: 700 | J27: 200 | K27: =Auslegung!$D$32/(PI()/4*(Grunddaten!J27/1000)^2*3600) -> 4.863067706 | L27: =SUM('DAL359-CAP'!$C$40,'DAL358-CAP'!$C$40,'DRS-CAP'!$C$40,'DIA-CAP'!$C$40,'MSA-CAP'!$C$40)*Grunddaten!G27^(SUM('DAL359-CAP'!$C$41,'DAL358-CAP'!$C$41,'DRS-CAP'!$C$41,'DIA-CAP'!$C$41,'MSA-CAP'!$C$41)) -> 12.08859461 | M27: =SUM('DAL359-CAP'!$C$68,'DAL358-CAP'!$C$68,'DRS-CAP'!$C$68,'DIA-CAP'!$C$68,'MSA-CAP'!$C$68)*Grunddaten!G27^(SUM('DAL359-CAP'!$C$69,'DAL358-CAP'!$C$69,'DRS-CAP'!$C$69,'DIA-CAP'!$C$69,'MSA-CAP'!$C$69)) -> 0 | N27: 315 | O27: 392 | P27: 398 | Q27: ="-/-" -> -/- | R27: =IF(Vorgaben!$D$8/Vorgaben!$D$9>=Grunddaten!$H27,"x","") -> x | S27: =IF(Vorgaben!$D$8/Vorgaben!$D$9<=Grunddaten!$I27,"x","") -> x | T27: -124.0497211 | U27: 65.35058246 | V27: =T27+U27*LOG(Vorgaben!$D$8/Vorgaben!$D$9) -> 55.03457676 | W27: x | X27: =IF(V27<=Vorgaben!$D$12,"x","") ->  | Y27: x | AB27: =IF(ROW(AA24)>COUNTA(AA:AA),"",INDEX(AA:AA,SMALL(IF(AA$1:AA$29<>"",ROW($1:$29)),ROW($AA24)))) -> 
A28: MSA | B28: 500 | C28: MSA500 | G28: =Auslegung!$D$32 -> 550 | H28: 200 | I28: 800 | J28: 225 | K28: =Auslegung!$D$32/(PI()/4*(Grunddaten!J28/1000)^2*3600) -> 3.842423866 | L28: =SUM('DAL359-CAP'!$C$40,'DAL358-CAP'!$C$40,'DRS-CAP'!$C$40,'DIA-CAP'!$C$40,'MSA-CAP'!$C$40)*Grunddaten!G28^(SUM('DAL359-CAP'!$C$41,'DAL358-CAP'!$C$41,'DRS-CAP'!$C$41,'DIA-CAP'!$C$41,'MSA-CAP'!$C$41)) -> 12.08859461 | M28: =SUM('DAL359-CAP'!$C$68,'DAL358-CAP'!$C$68,'DRS-CAP'!$C$68,'DIA-CAP'!$C$68,'MSA-CAP'!$C$68)*Grunddaten!G28^(SUM('DAL359-CAP'!$C$69,'DAL358-CAP'!$C$69,'DRS-CAP'!$C$69,'DIA-CAP'!$C$69,'MSA-CAP'!$C$69)) -> 0 | N28: 340 | O28: 492 | P28: 498 | Q28: -/- | R28: =IF(Vorgaben!$D$8/Vorgaben!$D$9>=Grunddaten!$H28,"x","") -> x | S28: =IF(Vorgaben!$D$8/Vorgaben!$D$9<=Grunddaten!$I28,"x","") -> x | T28: -116.9152717 | U28: 56.58966645 | V28: =T28+U28*LOG(Vorgaben!$D$8/Vorgaben!$D$9) -> 38.16093885 | W28: x | X28: =IF(V28<=Vorgaben!$D$12,"x","") ->  | Y28: x | AB28: =IF(ROW(AA25)>COUNTA(AA:AA),"",INDEX(AA:AA,SMALL(IF(AA$1:AA$29<>"",ROW($1:$29)),ROW($AA25)))) -> 
A29: MSA | B29: 600 | C29: MSA600 | G29: =Auslegung!$D$32 -> 550 | H29: 300 | I29: 1000 | J29: 250 | K29: =Auslegung!$D$32/(PI()/4*(Grunddaten!J29/1000)^2*3600) -> 3.112363332 | L29: =SUM('DAL359-CAP'!$C$40,'DAL358-CAP'!$C$40,'DRS-CAP'!$C$40,'DIA-CAP'!$C$40,'MSA-CAP'!$C$40)*Grunddaten!G29^(SUM('DAL359-CAP'!$C$41,'DAL358-CAP'!$C$41,'DRS-CAP'!$C$41,'DIA-CAP'!$C$41,'MSA-CAP'!$C$41)) -> 12.08859461 | M29: =SUM('DAL359-CAP'!$C$68,'DAL358-CAP'!$C$68,'DRS-CAP'!$C$68,'DIA-CAP'!$C$68,'MSA-CAP'!$C$68)*Grunddaten!G29^(SUM('DAL359-CAP'!$C$69,'DAL358-CAP'!$C$69,'DRS-CAP'!$C$69,'DIA-CAP'!$C$69,'MSA-CAP'!$C$69)) -> 0 | N29: 365 | O29: 614 | P29: 595 | Q29: -/- | R29: =IF(Vorgaben!$D$8/Vorgaben!$D$9>=Grunddaten!$H29,"x","") -> x | S29: =IF(Vorgaben!$D$8/Vorgaben!$D$9<=Grunddaten!$I29,"x","") -> x | T29: -140.7851678 | U29: 62.43298112 | V29: =T29+U29*LOG(Vorgaben!$D$8/Vorgaben!$D$9) -> 30.30384422 | W29: x | X29: =IF(V29<=Vorgaben!$D$12,"x","") -> x | Y29: x | Z29: x | AA29: MSA DN 600 | AB29: =IF(ROW(AA26)>COUNTA(AA:AA),"",INDEX(AA:AA,SMALL(IF(AA$1:AA$29<>"",ROW($1:$29)),ROW($AA26)))) -> 
AB30: =IF(ROW(AA27)>COUNTA(AA:AA),"",INDEX(AA:AA,SMALL(IF(AA$1:AA$29<>"",ROW($1:$29)),ROW($AA27)))) -> 
D31: 2 | E31: 3 | F31: 4 | G31: 5 | H31: 6 | I31: 7 | J31: 8 | K31: 9 | L31: 10 | M31: 11 | N31: 12 | O31: 13 | P31: 14 | Q31: 15 | R31: 16 | S31: 17 | T31: 18 | U31: 19 | V31: 20 | X31: 21 | Z31: 22 | AB31: =IF(ROW(AA28)>COUNTA(AA:AA),"",INDEX(AA:AA,SMALL(IF(AA$1:AA$29<>"",ROW($1:$29)),ROW($AA28)))) -> 
AB32: Formel in Spalte AB ist Matrixformel!
A33: Auswahl: | B33: Zuluft | C33: =CONCATENATE(Auslegung!$D$12,Auslegung!$D$25) -> DAL 358800 | D33: =VLOOKUP($C$33,$C$4:$L$30,D31,FALSE) -> 0 | E33: 0 | F33: 0 | G33: 550 | H33: 400 | I33: 1750 | J33: =VLOOKUP($C$33,$C$4:$L$30,J31,FALSE) -> 315 | K33: 1.96042034 | L33: =VLOOKUP($C$33,$C$4:$L$30,L31,FALSE) -> 12.08859461 | M33: =VLOOKUP($C$33,$C$4:$M$30,M31,FALSE) -> 0 | N33: =VLOOKUP($C$33,$C$4:$N$30,N31,FALSE) -> 430 | O33: =VLOOKUP($C$33,$C$4:$Q$30,O31,FALSE) -> 794 | P33: =VLOOKUP($C$33,$C$4:$Q$30,P31,FALSE) -> 800 | Q33: =VLOOKUP($C$33,$C$4:$Q$30,Q31,FALSE) -> 800 | R33: =VLOOKUP($C$33,$C$4:$R$30,R31,FALSE) -> x | S33: =VLOOKUP($C$33,$C$4:$Z$30,S31,FALSE) -> x | T33: =VLOOKUP($C$33,$C$4:$Z$30,T31,FALSE) -> -141.4 | U33: =VLOOKUP($C$33,$C$4:$Z$30,U31,FALSE) -> 62.47 | V33: =VLOOKUP($C$33,$C$4:$Z$30,V31,FALSE) -> 29.79045721 | X33: =VLOOKUP($C$33,$C$4:$Z$30,X31,FALSE) -> x | Z33: =VLOOKUP($C$33,$C$4:$Z$30,Z31,FALSE) -> x | AB33: Funktioniert nur bei Bestätigung
B34: Abluft | C34: =CONCATENATE(Auslegung!$D$12,Auslegung!$D$25) -> DAL 358800 | D34: =VLOOKUP($C$34,$C$4:$L$30,D31,FALSE) -> 0 | E34: 0 | F34: 0 | G34: 550 | H34: 400 | I34: 1750 | J34: 315 | K34: 1.96042034 | L34: =VLOOKUP($C$34,$C$4:$L$30,L31,FALSE) -> 12.08859461 | M34: =VLOOKUP($C$33,$C$4:$M$30,M31,FALSE) -> 0 | N34: =VLOOKUP($C$34,$C$4:$N$30,N31,FALSE) -> 430 | O34: =VLOOKUP($C$34,$C$4:$Q$30,O31,FALSE) -> 794 | P34: =VLOOKUP($C$34,$C$4:$Q$30,P31,FALSE) -> 800 | Q34: =VLOOKUP($C$34,$C$4:$Q$30,Q31,FALSE) -> 800 | R34: =VLOOKUP($C$34,$C$4:$R$30,R31,FALSE) -> x | AB34: mit Strg+Shift+Enter!
D36: Stand: | E36: 2020-10-30 | N36: Abmessungen DRS und DIA mit AK-rund aus CAP!
A39: Blendengröße | C39: 300 | D39: 400 | E39: 500 | F39: 600 | G39: 625 | H39: 800
A40: mögl. Lochbild | C40: 100 | D40: 100 | E40: 100 | F40: 100 | G40: 100 | H40: 100
C41: 125 | D41: 125 | E41: 125 | F41: 125 | G41: 125 | H41: 125
C42: 180 | D42: 180 | E42: 180 | F42: 180 | G42: 180 | H42: 180
D43: 250 | E43: 250 | F43: 250 | G43: 250 | H43: 250
E44: 315 | F44: 315 | G44: 315 | H44: 315
F45: 355 | G45: 355 | H45: 355
A47: Blendengröße | C47: 300 | D47: 400 | E47: 500 | F47: 600 | G47: 625 | H47: 800
C48: 300 | D48: 300 | E48: 300 | F48: 300 | G48: 300 | H48: 300
D49: 400 | E49: 400 | F49: 400 | G49: 400 | H49: 400
E50: 500 | F50: 500 | G50: 500 | H50: 500
F51: 600 | G51: 600 | H51: 600
H52: 800

Sheet Lw (hidden)
B2: Terzfrequenzband fm [Hz]
B3: 100 | C3: 125 | D3: 160 | E3: 200 | F3: 250 | G3: 315 | H3: 400 | I3: 500 | J3: 630 | K3: 800 | L3: 1000 | M3: 1250 | N3: 1600 | O3: 2000 | P3: 2500 | Q3: 3150 | R3: 4000 | S3: 5000 | T3: 6300 | U3: 8000 | V3: 10000
A4: Konstantensätze bei Bedarf aktualisieren und Vergleich der unterschiedlichen Berechnungsarten anstellen! Klassische CAP-Berechnung wird unten durchgeführt.
B20: 2 | C20: 3 | D20: 4 | E20: 5 | F20: 6 | G20: 7 | H20: 8 | I20: 9 | J20: 10 | K20: 11 | L20: 12 | M20: 13 | N20: 14 | O20: 15 | P20: 16 | Q20: 17 | R20: 18 | S20: 19 | T20: 20 | U20: 21 | V20: 22
B22: Terzfrequenzband fm [Hz]
B23: 100 | C23: 125 | D23: 160 | E23: 200 | F23: 250 | G23: 315 | H23: 400 | I23: 500 | J23: 630 | K23: 800 | L23: 1000 | M23: 1250 | N23: 1600 | O23: 2000 | P23: 2500 | Q23: 3150 | R23: 4000 | S23: 5000 | T23: 6300 | U23: 8000 | V23: 10000
A24: =Grunddaten!C4 -> DAL 359300 | B24: =B$4+Lw!B$5*LOG(Grunddaten!$G4)+B$6*LOG(Grunddaten!$F4)+B$7*LOG(Grunddaten!$H4) ->  | C24: =C$4+C$5*LOG(Grunddaten!$G4)+C$6*LOG(Grunddaten!$F4)+C$7*LOG(Grunddaten!$H4) ->  | D24: =D$4+D$5*LOG(Grunddaten!$G4)+D$6*LOG(Grunddaten!$F4)+D$7*LOG(Grunddaten!$H4) ->  | E24: =E$4+E$5*LOG(Grunddaten!$G4)+E$6*LOG(Grunddaten!$F4)+E$7*LOG(Grunddaten!$H4) ->  | F24: =F$4+F$5*LOG(Grunddaten!$G4)+F$6*LOG(Grunddaten!$F4)+F$7*LOG(Grunddaten!$H4) ->  | G24: =G$4+G$5*LOG(Grunddaten!$G4)+G$6*LOG(Grunddaten!$F4)+G$7*LOG(Grunddaten!$H4) ->  | H24: =H$4+H$5*LOG(Grunddaten!$G4)+H$6*LOG(Grunddaten!$F4)+H$7*LOG(Grunddaten!$H4) ->  | I24: =I$4+I$5*LOG(Grunddaten!$G4)+I$6*LOG(Grunddaten!$F4)+I$7*LOG(Grunddaten!$H4) ->  | J24: =J$4+J$5*LOG(Grunddaten!$G4)+J$6*LOG(Grunddaten!$F4)+J$7*LOG(Grunddaten!$H4) ->  | K24: =K$4+K$5*LOG(Grunddaten!$G4)+K$6*LOG(Grunddaten!$F4)+K$7*LOG(Grunddaten!$H4) ->  | L24: =L$4+L$5*LOG(Grunddaten!$G4)+L$6*LOG(Grunddaten!$F4)+L$7*LOG(Grunddaten!$H4) ->  | M24: =M$4+M$5*LOG(Grunddaten!$G4)+M$6*LOG(Grunddaten!$F4)+M$7*LOG(Grunddaten!$H4) ->  | N24: =N$4+N$5*LOG(Grunddaten!$G4)+N$6*LOG(Grunddaten!$F4)+N$7*LOG(Grunddaten!$H4) ->  | O24: =O$4+O$5*LOG(Grunddaten!$G4)+O$6*LOG(Grunddaten!$F4)+O$7*LOG(Grunddaten!$H4) ->  | P24: =P$4+P$5*LOG(Grunddaten!$G4)+P$6*LOG(Grunddaten!$F4)+P$7*LOG(Grunddaten!$H4) ->  | Q24: =Q$4+Q$5*LOG(Grunddaten!$G4)+Q$6*LOG(Grunddaten!$F4)+Q$7*LOG(Grunddaten!$H4) ->  | R24: =R$4+R$5*LOG(Grunddaten!$G4)+R$6*LOG(Grunddaten!$F4)+R$7*LOG(Grunddaten!$H4) ->  | S24: =S$4+S$5*LOG(Grunddaten!$G4)+S$6*LOG(Grunddaten!$F4)+S$7*LOG(Grunddaten!$H4) ->  | T24: =T$4+T$5*LOG(Grunddaten!$G4)+T$6*LOG(Grunddaten!$F4)+T$7*LOG(Grunddaten!$H4) ->  | U24: =U$4+U$5*LOG(Grunddaten!$G4)+U$6*LOG(Grunddaten!$F4)+U$7*LOG(Grunddaten!$H4) ->  | V24: =V$4+V$5*LOG(Grunddaten!$G4)+V$6*LOG(Grunddaten!$F4)+V$7*LOG(Grunddaten!$H4) ->  | W24: =10*LOG(10^(0.1*B24)+10^(0.1*C24)+10^(0.1*D24)+10^(0.1*E24)+10^(0.1*F24)+10^(0.1*G24)+10^(0.1*H24)+10^(0.1*I24)+10^(0.1*J24)+10^(0.1*K24)+10^(0.1*L24)+10^(0.1*M24)+10^(0.1*N24)+10^(0.1*O24)+10^(0.1*P24)+10^(0.1*Q24)+10^(0.1*R24)+10^(0.1*S24)+10^(0.1*T24)+10^(0.1*U24)+10^(0.1*V24)) -> 
A25: =Grunddaten!C5 -> DAL 359400 | B25: =B$4+B$5*LOG(Grunddaten!$G5)+B$6*LOG(Grunddaten!$F5)+B$7*LOG(Grunddaten!$H5) ->  | C25: =C$4+C$5*LOG(Grunddaten!$G5)+C$6*LOG(Grunddaten!$F5)+C$7*LOG(Grunddaten!$H5) ->  | D25: =D$4+D$5*LOG(Grunddaten!$G5)+D$6*LOG(Grunddaten!$F5)+D$7*LOG(Grunddaten!$H5) ->  | E25: =E$4+E$5*LOG(Grunddaten!$G5)+E$6*LOG(Grunddaten!$F5)+E$7*LOG(Grunddaten!$H5) ->  | F25: =F$4+F$5*LOG(Grunddaten!$G5)+F$6*LOG(Grunddaten!$F5)+F$7*LOG(Grunddaten!$H5) ->  | G25: =G$4+G$5*LOG(Grunddaten!$G5)+G$6*LOG(Grunddaten!$F5)+G$7*LOG(Grunddaten!$H5) ->  | H25: =H$4+H$5*LOG(Grunddaten!$G5)+H$6*LOG(Grunddaten!$F5)+H$7*LOG(Grunddaten!$H5) ->  | I25: =I$4+I$5*LOG(Grunddaten!$G5)+I$6*LOG(Grunddaten!$F5)+I$7*LOG(Grunddaten!$H5) ->  | J25: =J$4+J$5*LOG(Grunddaten!$G5)+J$6*LOG(Grunddaten!$F5)+J$7*LOG(Grunddaten!$H5) ->  | K25: =K$4+K$5*LOG(Grunddaten!$G5)+K$6*LOG(Grunddaten!$F5)+K$7*LOG(Grunddaten!$H5) ->  | L25: =L$4+L$5*LOG(Grunddaten!$G5)+L$6*LOG(Grunddaten!$F5)+L$7*LOG(Grunddaten!$H5) ->  | M25: =M$4+M$5*LOG(Grunddaten!$G5)+M$6*LOG(Grunddaten!$F5)+M$7*LOG(Grunddaten!$H5) ->  | N25: =N$4+N$5*LOG(Grunddaten!$G5)+N$6*LOG(Grunddaten!$F5)+N$7*LOG(Grunddaten!$H5) ->  | O25: =O$4+O$5*LOG(Grunddaten!$G5)+O$6*LOG(Grunddaten!$F5)+O$7*LOG(Grunddaten!$H5) ->  | P25: =P$4+P$5*LOG(Grunddaten!$G5)+P$6*LOG(Grunddaten!$F5)+P$7*LOG(Grunddaten!$H5) ->  | Q25: =Q$4+Q$5*LOG(Grunddaten!$G5)+Q$6*LOG(Grunddaten!$F5)+Q$7*LOG(Grunddaten!$H5) ->  | R25: =R$4+R$5*LOG(Grunddaten!$G5)+R$6*LOG(Grunddaten!$F5)+R$7*LOG(Grunddaten!$H5) ->  | S25: =S$4+S$5*LOG(Grunddaten!$G5)+S$6*LOG(Grunddaten!$F5)+S$7*LOG(Grunddaten!$H5) ->  | T25: =T$4+T$5*LOG(Grunddaten!$G5)+T$6*LOG(Grunddaten!$F5)+T$7*LOG(Grunddaten!$H5) ->  | U25: =U$4+U$5*LOG(Grunddaten!$G5)+U$6*LOG(Grunddaten!$F5)+U$7*LOG(Grunddaten!$H5) ->  | V25: =V$4+V$5*LOG(Grunddaten!$G5)+V$6*LOG(Grunddaten!$F5)+V$7*LOG(Grunddaten!$H5) ->  | W25: =10*LOG(10^(0.1*B25)+10^(0.1*C25)+10^(0.1*D25)+10^(0.1*E25)+10^(0.1*F25)+10^(0.1*G25)+10^(0.1*H25)+10^(0.1*I25)+10^(0.1*J25)+10^(0.1*K25)+10^(0.1*L25)+10^(0.1*M25)+10^(0.1*N25)+10^(0.1*O25)+10^(0.1*P25)+10^(0.1*Q25)+10^(0.1*R25)+10^(0.1*S25)+10^(0.1*T25)+10^(0.1*U25)+10^(0.1*V25)) -> 
A26: =Grunddaten!C6 -> DAL 359500 | B26: =B$4+B$5*LOG(Grunddaten!$G6)+B$6*LOG(Grunddaten!$F6)+B$7*LOG(Grunddaten!$H6) ->  | C26: =C$4+C$5*LOG(Grunddaten!$G6)+C$6*LOG(Grunddaten!$F6)+C$7*LOG(Grunddaten!$H6) ->  | D26: =D$4+D$5*LOG(Grunddaten!$G6)+D$6*LOG(Grunddaten!$F6)+D$7*LOG(Grunddaten!$H6) ->  | E26: =E$4+E$5*LOG(Grunddaten!$G6)+E$6*LOG(Grunddaten!$F6)+E$7*LOG(Grunddaten!$H6) ->  | F26: =F$4+F$5*LOG(Grunddaten!$G6)+F$6*LOG(Grunddaten!$F6)+F$7*LOG(Grunddaten!$H6) ->  | G26: =G$4+G$5*LOG(Grunddaten!$G6)+G$6*LOG(Grunddaten!$F6)+G$7*LOG(Grunddaten!$H6) ->  | H26: =H$4+H$5*LOG(Grunddaten!$G6)+H$6*LOG(Grunddaten!$F6)+H$7*LOG(Grunddaten!$H6) ->  | I26: =I$4+I$5*LOG(Grunddaten!$G6)+I$6*LOG(Grunddaten!$F6)+I$7*LOG(Grunddaten!$H6) ->  | J26: =J$4+J$5*LOG(Grunddaten!$G6)+J$6*LOG(Grunddaten!$F6)+J$7*LOG(Grunddaten!$H6) ->  | K26: =K$4+K$5*LOG(Grunddaten!$G6)+K$6*LOG(Grunddaten!$F6)+K$7*LOG(Grunddaten!$H6) ->  | L26: =L$4+L$5*LOG(Grunddaten!$G6)+L$6*LOG(Grunddaten!$F6)+L$7*LOG(Grunddaten!$H6) ->  | M26: =M$4+M$5*LOG(Grunddaten!$G6)+M$6*LOG(Grunddaten!$F6)+M$7*LOG(Grunddaten!$H6) ->  | N26: =N$4+N$5*LOG(Grunddaten!$G6)+N$6*LOG(Grunddaten!$F6)+N$7*LOG(Grunddaten!$H6) ->  | O26: =O$4+O$5*LOG(Grunddaten!$G6)+O$6*LOG(Grunddaten!$F6)+O$7*LOG(Grunddaten!$H6) ->  | P26: =P$4+P$5*LOG(Grunddaten!$G6)+P$6*LOG(Grunddaten!$F6)+P$7*LOG(Grunddaten!$H6) ->  | Q26: =Q$4+Q$5*LOG(Grunddaten!$G6)+Q$6*LOG(Grunddaten!$F6)+Q$7*LOG(Grunddaten!$H6) ->  | R26: =R$4+R$5*LOG(Grunddaten!$G6)+R$6*LOG(Grunddaten!$F6)+R$7*LOG(Grunddaten!$H6) ->  | S26: =S$4+S$5*LOG(Grunddaten!$G6)+S$6*LOG(Grunddaten!$F6)+S$7*LOG(Grunddaten!$H6) ->  | T26: =T$4+T$5*LOG(Grunddaten!$G6)+T$6*LOG(Grunddaten!$F6)+T$7*LOG(Grunddaten!$H6) ->  | U26: =U$4+U$5*LOG(Grunddaten!$G6)+U$6*LOG(Grunddaten!$F6)+U$7*LOG(Grunddaten!$H6) ->  | V26: =V$4+V$5*LOG(Grunddaten!$G6)+V$6*LOG(Grunddaten!$F6)+V$7*LOG(Grunddaten!$H6) ->  | W26: =10*LOG(10^(0.1*B26)+10^(0.1*C26)+10^(0.1*D26)+10^(0.1*E26)+10^(0.1*F26)+10^(0.1*G26)+10^(0.1*H26)+10^(0.1*I26)+10^(0.1*J26)+10^(0.1*K26)+10^(0.1*L26)+10^(0.1*M26)+10^(0.1*N26)+10^(0.1*O26)+10^(0.1*P26)+10^(0.1*Q26)+10^(0.1*R26)+10^(0.1*S26)+10^(0.1*T26)+10^(0.1*U26)+10^(0.1*V26)) -> 
A27: =Grunddaten!C7 -> DAL 359600 | B27: =B$4+B$5*LOG(Grunddaten!$G7)+B$6*LOG(Grunddaten!$F7)+B$7*LOG(Grunddaten!$H7) ->  | C27: =C$4+C$5*LOG(Grunddaten!$G7)+C$6*LOG(Grunddaten!$F7)+C$7*LOG(Grunddaten!$H7) ->  | D27: =D$4+D$5*LOG(Grunddaten!$G7)+D$6*LOG(Grunddaten!$F7)+D$7*LOG(Grunddaten!$H7) ->  | E27: =E$4+E$5*LOG(Grunddaten!$G7)+E$6*LOG(Grunddaten!$F7)+E$7*LOG(Grunddaten!$H7) ->  | F27: =F$4+F$5*LOG(Grunddaten!$G7)+F$6*LOG(Grunddaten!$F7)+F$7*LOG(Grunddaten!$H7) ->  | G27: =G$4+G$5*LOG(Grunddaten!$G7)+G$6*LOG(Grunddaten!$F7)+G$7*LOG(Grunddaten!$H7) ->  | H27: =H$4+H$5*LOG(Grunddaten!$G7)+H$6*LOG(Grunddaten!$F7)+H$7*LOG(Grunddaten!$H7) ->  | I27: =I$4+I$5*LOG(Grunddaten!$G7)+I$6*LOG(Grunddaten!$F7)+I$7*LOG(Grunddaten!$H7) ->  | J27: =J$4+J$5*LOG(Grunddaten!$G7)+J$6*LOG(Grunddaten!$F7)+J$7*LOG(Grunddaten!$H7) ->  | K27: =K$4+K$5*LOG(Grunddaten!$G7)+K$6*LOG(Grunddaten!$F7)+K$7*LOG(Grunddaten!$H7) ->  | L27: =L$4+L$5*LOG(Grunddaten!$G7)+L$6*LOG(Grunddaten!$F7)+L$7*LOG(Grunddaten!$H7) ->  | M27: =M$4+M$5*LOG(Grunddaten!$G7)+M$6*LOG(Grunddaten!$F7)+M$7*LOG(Grunddaten!$H7) ->  | N27: =N$4+N$5*LOG(Grunddaten!$G7)+N$6*LOG(Grunddaten!$F7)+N$7*LOG(Grunddaten!$H7) ->  | O27: =O$4+O$5*LOG(Grunddaten!$G7)+O$6*LOG(Grunddaten!$F7)+O$7*LOG(Grunddaten!$H7) ->  | P27: =P$4+P$5*LOG(Grunddaten!$G7)+P$6*LOG(Grunddaten!$F7)+P$7*LOG(Grunddaten!$H7) ->  | Q27: =Q$4+Q$5*LOG(Grunddaten!$G7)+Q$6*LOG(Grunddaten!$F7)+Q$7*LOG(Grunddaten!$H7) ->  | R27: =R$4+R$5*LOG(Grunddaten!$G7)+R$6*LOG(Grunddaten!$F7)+R$7*LOG(Grunddaten!$H7) ->  | S27: =S$4+S$5*LOG(Grunddaten!$G7)+S$6*LOG(Grunddaten!$F7)+S$7*LOG(Grunddaten!$H7) ->  | T27: =T$4+T$5*LOG(Grunddaten!$G7)+T$6*LOG(Grunddaten!$F7)+T$7*LOG(Grunddaten!$H7) ->  | U27: =U$4+U$5*LOG(Grunddaten!$G7)+U$6*LOG(Grunddaten!$F7)+U$7*LOG(Grunddaten!$H7) ->  | V27: =V$4+V$5*LOG(Grunddaten!$G7)+V$6*LOG(Grunddaten!$F7)+V$7*LOG(Grunddaten!$H7) ->  | W27: =10*LOG(10^(0.1*B27)+10^(0.1*C27)+10^(0.1*D27)+10^(0.1*E27)+10^(0.1*F27)+10^(0.1*G27)+10^(0.1*H27)+10^(0.1*I27)+10^(0.1*J27)+10^(0.1*K27)+10^(0.1*L27)+10^(0.1*M27)+10^(0.1*N27)+10^(0.1*O27)+10^(0.1*P27)+10^(0.1*Q27)+10^(0.1*R27)+10^(0.1*S27)+10^(0.1*T27)+10^(0.1*U27)+10^(0.1*V27)) -> 
A28: =Grunddaten!C8 -> DAL 359800 | B28: =B$8+B$9*LOG(Grunddaten!$G8)+B$10*LOG(Grunddaten!$F8)+B$11*LOG(Grunddaten!$H8) ->  | C28: =C$8+C$9*LOG(Grunddaten!$G8)+C$10*LOG(Grunddaten!$F8)+C$11*LOG(Grunddaten!$H8) ->  | D28: =D$8+D$9*LOG(Grunddaten!$G8)+D$10*LOG(Grunddaten!$F8)+D$11*LOG(Grunddaten!$H8) ->  | E28: =E$8+E$9*LOG(Grunddaten!$G8)+E$10*LOG(Grunddaten!$F8)+E$11*LOG(Grunddaten!$H8) ->  | F28: =F$8+F$9*LOG(Grunddaten!$G8)+F$10*LOG(Grunddaten!$F8)+F$11*LOG(Grunddaten!$H8) ->  | G28: =G$8+G$9*LOG(Grunddaten!$G8)+G$10*LOG(Grunddaten!$F8)+G$11*LOG(Grunddaten!$H8) ->  | H28: =H$8+H$9*LOG(Grunddaten!$G8)+H$10*LOG(Grunddaten!$F8)+H$11*LOG(Grunddaten!$H8) ->  | I28: =I$8+I$9*LOG(Grunddaten!$G8)+I$10*LOG(Grunddaten!$F8)+I$11*LOG(Grunddaten!$H8) ->  | J28: =J$8+J$9*LOG(Grunddaten!$G8)+J$10*LOG(Grunddaten!$F8)+J$11*LOG(Grunddaten!$H8) ->  | K28: =K$8+K$9*LOG(Grunddaten!$G8)+K$10*LOG(Grunddaten!$F8)+K$11*LOG(Grunddaten!$H8) ->  | L28: =L$8+L$9*LOG(Grunddaten!$G8)+L$10*LOG(Grunddaten!$F8)+L$11*LOG(Grunddaten!$H8) ->  | M28: =M$8+M$9*LOG(Grunddaten!$G8)+M$10*LOG(Grunddaten!$F8)+M$11*LOG(Grunddaten!$H8) ->  | N28: =N$8+N$9*LOG(Grunddaten!$G8)+N$10*LOG(Grunddaten!$F8)+N$11*LOG(Grunddaten!$H8) ->  | O28: =O$8+O$9*LOG(Grunddaten!$G8)+O$10*LOG(Grunddaten!$F8)+O$11*LOG(Grunddaten!$H8) ->  | P28: =P$8+P$9*LOG(Grunddaten!$G8)+P$10*LOG(Grunddaten!$F8)+P$11*LOG(Grunddaten!$H8) ->  | Q28: =Q$8+Q$9*LOG(Grunddaten!$G8)+Q$10*LOG(Grunddaten!$F8)+Q$11*LOG(Grunddaten!$H8) ->  | R28: =R$8+R$9*LOG(Grunddaten!$G8)+R$10*LOG(Grunddaten!$F8)+R$11*LOG(Grunddaten!$H8) ->  | S28: =S$8+S$9*LOG(Grunddaten!$G8)+S$10*LOG(Grunddaten!$F8)+S$11*LOG(Grunddaten!$H8) ->  | T28: =T$8+T$9*LOG(Grunddaten!$G8)+T$10*LOG(Grunddaten!$F8)+T$11*LOG(Grunddaten!$H8) ->  | U28: =U$8+U$9*LOG(Grunddaten!$G8)+U$10*LOG(Grunddaten!$F8)+U$11*LOG(Grunddaten!$H8) ->  | V28: =V$8+V$9*LOG(Grunddaten!$G8)+V$10*LOG(Grunddaten!$F8)+V$11*LOG(Grunddaten!$H8) ->  | W28: =10*LOG(10^(0.1*B28)+10^(0.1*C28)+10^(0.1*D28)+10^(0.1*E28)+10^(0.1*F28)+10^(0.1*G28)+10^(0.1*H28)+10^(0.1*I28)+10^(0.1*J28)+10^(0.1*K28)+10^(0.1*L28)+10^(0.1*M28)+10^(0.1*N28)+10^(0.1*O28)+10^(0.1*P28)+10^(0.1*Q28)+10^(0.1*R28)+10^(0.1*S28)+10^(0.1*T28)+10^(0.1*U28)+10^(0.1*V28)) -> 
A29: =Grunddaten!C9 -> DAL 358300 | B29: =B$8+B$9*LOG(Grunddaten!$G9)+B$10*LOG(Grunddaten!$F9)+B$11*LOG(Grunddaten!$H9) ->  | C29: =C$8+C$9*LOG(Grunddaten!$G9)+C$10*LOG(Grunddaten!$F9)+C$11*LOG(Grunddaten!$H9) ->  | D29: =D$8+D$9*LOG(Grunddaten!$G9)+D$10*LOG(Grunddaten!$F9)+D$11*LOG(Grunddaten!$H9) ->  | E29: =E$8+E$9*LOG(Grunddaten!$G9)+E$10*LOG(Grunddaten!$F9)+E$11*LOG(Grunddaten!$H9) ->  | F29: =F$8+F$9*LOG(Grunddaten!$G9)+F$10*LOG(Grunddaten!$F9)+F$11*LOG(Grunddaten!$H9) ->  | G29: =G$8+G$9*LOG(Grunddaten!$G9)+G$10*LOG(Grunddaten!$F9)+G$11*LOG(Grunddaten!$H9) ->  | H29: =H$8+H$9*LOG(Grunddaten!$G9)+H$10*LOG(Grunddaten!$F9)+H$11*LOG(Grunddaten!$H9) ->  | I29: =I$8+I$9*LOG(Grunddaten!$G9)+I$10*LOG(Grunddaten!$F9)+I$11*LOG(Grunddaten!$H9) ->  | J29: =J$8+J$9*LOG(Grunddaten!$G9)+J$10*LOG(Grunddaten!$F9)+J$11*LOG(Grunddaten!$H9) ->  | K29: =K$8+K$9*LOG(Grunddaten!$G9)+K$10*LOG(Grunddaten!$F9)+K$11*LOG(Grunddaten!$H9) ->  | L29: =L$8+L$9*LOG(Grunddaten!$G9)+L$10*LOG(Grunddaten!$F9)+L$11*LOG(Grunddaten!$H9) ->  | M29: =M$8+M$9*LOG(Grunddaten!$G9)+M$10*LOG(Grunddaten!$F9)+M$11*LOG(Grunddaten!$H9) ->  | N29: =N$8+N$9*LOG(Grunddaten!$G9)+N$10*LOG(Grunddaten!$F9)+N$11*LOG(Grunddaten!$H9) ->  | O29: =O$8+O$9*LOG(Grunddaten!$G9)+O$10*LOG(Grunddaten!$F9)+O$11*LOG(Grunddaten!$H9) ->  | P29: =P$8+P$9*LOG(Grunddaten!$G9)+P$10*LOG(Grunddaten!$F9)+P$11*LOG(Grunddaten!$H9) ->  | Q29: =Q$8+Q$9*LOG(Grunddaten!$G9)+Q$10*LOG(Grunddaten!$F9)+Q$11*LOG(Grunddaten!$H9) ->  | R29: =R$8+R$9*LOG(Grunddaten!$G9)+R$10*LOG(Grunddaten!$F9)+R$11*LOG(Grunddaten!$H9) ->  | S29: =S$8+S$9*LOG(Grunddaten!$G9)+S$10*LOG(Grunddaten!$F9)+S$11*LOG(Grunddaten!$H9) ->  | T29: =T$8+T$9*LOG(Grunddaten!$G9)+T$10*LOG(Grunddaten!$F9)+T$11*LOG(Grunddaten!$H9) ->  | U29: =U$8+U$9*LOG(Grunddaten!$G9)+U$10*LOG(Grunddaten!$F9)+U$11*LOG(Grunddaten!$H9) ->  | V29: =V$8+V$9*LOG(Grunddaten!$G9)+V$10*LOG(Grunddaten!$F9)+V$11*LOG(Grunddaten!$H9) -> 
A30: =Grunddaten!C10 -> DAL 358400 | B30: =B$8+B$9*LOG(Grunddaten!$G10)+B$10*LOG(Grunddaten!$F10)+B$11*LOG(Grunddaten!$H10) ->  | C30: =C$8+C$9*LOG(Grunddaten!$G10)+C$10*LOG(Grunddaten!$F10)+C$11*LOG(Grunddaten!$H10) ->  | D30: =D$8+D$9*LOG(Grunddaten!$G10)+D$10*LOG(Grunddaten!$F10)+D$11*LOG(Grunddaten!$H10) ->  | E30: =E$8+E$9*LOG(Grunddaten!$G10)+E$10*LOG(Grunddaten!$F10)+E$11*LOG(Grunddaten!$H10) ->  | F30: =F$8+F$9*LOG(Grunddaten!$G10)+F$10*LOG(Grunddaten!$F10)+F$11*LOG(Grunddaten!$H10) ->  | G30: =G$8+G$9*LOG(Grunddaten!$G10)+G$10*LOG(Grunddaten!$F10)+G$11*LOG(Grunddaten!$H10) ->  | H30: =H$8+H$9*LOG(Grunddaten!$G10)+H$10*LOG(Grunddaten!$F10)+H$11*LOG(Grunddaten!$H10) ->  | I30: =I$8+I$9*LOG(Grunddaten!$G10)+I$10*LOG(Grunddaten!$F10)+I$11*LOG(Grunddaten!$H10) ->  | J30: =J$8+J$9*LOG(Grunddaten!$G10)+J$10*LOG(Grunddaten!$F10)+J$11*LOG(Grunddaten!$H10) ->  | K30: =K$8+K$9*LOG(Grunddaten!$G10)+K$10*LOG(Grunddaten!$F10)+K$11*LOG(Grunddaten!$H10) ->  | L30: =L$8+L$9*LOG(Grunddaten!$G10)+L$10*LOG(Grunddaten!$F10)+L$11*LOG(Grunddaten!$H10) ->  | M30: =M$8+M$9*LOG(Grunddaten!$G10)+M$10*LOG(Grunddaten!$F10)+M$11*LOG(Grunddaten!$H10) ->  | N30: =N$8+N$9*LOG(Grunddaten!$G10)+N$10*LOG(Grunddaten!$F10)+N$11*LOG(Grunddaten!$H10) ->  | O30: =O$8+O$9*LOG(Grunddaten!$G10)+O$10*LOG(Grunddaten!$F10)+O$11*LOG(Grunddaten!$H10) ->  | P30: =P$8+P$9*LOG(Grunddaten!$G10)+P$10*LOG(Grunddaten!$F10)+P$11*LOG(Grunddaten!$H10) ->  | Q30: =Q$8+Q$9*LOG(Grunddaten!$G10)+Q$10*LOG(Grunddaten!$F10)+Q$11*LOG(Grunddaten!$H10) ->  | R30: =R$8+R$9*LOG(Grunddaten!$G10)+R$10*LOG(Grunddaten!$F10)+R$11*LOG(Grunddaten!$H10) ->  | S30: =S$8+S$9*LOG(Grunddaten!$G10)+S$10*LOG(Grunddaten!$F10)+S$11*LOG(Grunddaten!$H10) ->  | T30: =T$8+T$9*LOG(Grunddaten!$G10)+T$10*LOG(Grunddaten!$F10)+T$11*LOG(Grunddaten!$H10) ->  | U30: =U$8+U$9*LOG(Grunddaten!$G10)+U$10*LOG(Grunddaten!$F10)+U$11*LOG(Grunddaten!$H10) ->  | V30: =V$8+V$9*LOG(Grunddaten!$G10)+V$10*LOG(Grunddaten!$F10)+V$11*LOG(Grunddaten!$H10) -> 
A31: =Grunddaten!C11 -> DAL 358500 | B31: =B$8+B$9*LOG(Grunddaten!$G11)+B$10*LOG(Grunddaten!$F11)+B$11*LOG(Grunddaten!$H11) ->  | C31: =C$8+C$9*LOG(Grunddaten!$G11)+C$10*LOG(Grunddaten!$F11)+C$11*LOG(Grunddaten!$H11) ->  | D31: =D$8+D$9*LOG(Grunddaten!$G11)+D$10*LOG(Grunddaten!$F11)+D$11*LOG(Grunddaten!$H11) ->  | E31: =E$8+E$9*LOG(Grunddaten!$G11)+E$10*LOG(Grunddaten!$F11)+E$11*LOG(Grunddaten!$H11) ->  | F31: =F$8+F$9*LOG(Grunddaten!$G11)+F$10*LOG(Grunddaten!$F11)+F$11*LOG(Grunddaten!$H11) ->  | G31: =G$8+G$9*LOG(Grunddaten!$G11)+G$10*LOG(Grunddaten!$F11)+G$11*LOG(Grunddaten!$H11) ->  | H31: =H$8+H$9*LOG(Grunddaten!$G11)+H$10*LOG(Grunddaten!$F11)+H$11*LOG(Grunddaten!$H11) ->  | I31: =I$8+I$9*LOG(Grunddaten!$G11)+I$10*LOG(Grunddaten!$F11)+I$11*LOG(Grunddaten!$H11) ->  | J31: =J$8+J$9*LOG(Grunddaten!$G11)+J$10*LOG(Grunddaten!$F11)+J$11*LOG(Grunddaten!$H11) ->  | K31: =K$8+K$9*LOG(Grunddaten!$G11)+K$10*LOG(Grunddaten!$F11)+K$11*LOG(Grunddaten!$H11) ->  | L31: =L$8+L$9*LOG(Grunddaten!$G11)+L$10*LOG(Grunddaten!$F11)+L$11*LOG(Grunddaten!$H11) ->  | M31: =M$8+M$9*LOG(Grunddaten!$G11)+M$10*LOG(Grunddaten!$F11)+M$11*LOG(Grunddaten!$H11) ->  | N31: =N$8+N$9*LOG(Grunddaten!$G11)+N$10*LOG(Grunddaten!$F11)+N$11*LOG(Grunddaten!$H11) ->  | O31: =O$8+O$9*LOG(Grunddaten!$G11)+O$10*LOG(Grunddaten!$F11)+O$11*LOG(Grunddaten!$H11) ->  | P31: =P$8+P$9*LOG(Grunddaten!$G11)+P$10*LOG(Grunddaten!$F11)+P$11*LOG(Grunddaten!$H11) ->  | Q31: =Q$8+Q$9*LOG(Grunddaten!$G11)+Q$10*LOG(Grunddaten!$F11)+Q$11*LOG(Grunddaten!$H11) ->  | R31: =R$8+R$9*LOG(Grunddaten!$G11)+R$10*LOG(Grunddaten!$F11)+R$11*LOG(Grunddaten!$H11) ->  | S31: =S$8+S$9*LOG(Grunddaten!$G11)+S$10*LOG(Grunddaten!$F11)+S$11*LOG(Grunddaten!$H11) ->  | T31: =T$8+T$9*LOG(Grunddaten!$G11)+T$10*LOG(Grunddaten!$F11)+T$11*LOG(Grunddaten!$H11) ->  | U31: =U$8+U$9*LOG(Grunddaten!$G11)+U$10*LOG(Grunddaten!$F11)+U$11*LOG(Grunddaten!$H11) ->  | V31: =V$8+V$9*LOG(Grunddaten!$G11)+V$10*LOG(Grunddaten!$F11)+V$11*LOG(Grunddaten!$H11) -> 
A32: =Grunddaten!C12 -> DAL 358600 | B32: =B$8+B$9*LOG(Grunddaten!$G12)+B$10*LOG(Grunddaten!$F12)+B$11*LOG(Grunddaten!$H12) ->  | C32: =C$8+C$9*LOG(Grunddaten!$G12)+C$10*LOG(Grunddaten!$F12)+C$11*LOG(Grunddaten!$H12) ->  | D32: =D$8+D$9*LOG(Grunddaten!$G12)+D$10*LOG(Grunddaten!$F12)+D$11*LOG(Grunddaten!$H12) ->  | E32: =E$8+E$9*LOG(Grunddaten!$G12)+E$10*LOG(Grunddaten!$F12)+E$11*LOG(Grunddaten!$H12) ->  | F32: =F$8+F$9*LOG(Grunddaten!$G12)+F$10*LOG(Grunddaten!$F12)+F$11*LOG(Grunddaten!$H12) ->  | G32: =G$8+G$9*LOG(Grunddaten!$G12)+G$10*LOG(Grunddaten!$F12)+G$11*LOG(Grunddaten!$H12) ->  | H32: =H$8+H$9*LOG(Grunddaten!$G12)+H$10*LOG(Grunddaten!$F12)+H$11*LOG(Grunddaten!$H12) ->  | I32: =I$8+I$9*LOG(Grunddaten!$G12)+I$10*LOG(Grunddaten!$F12)+I$11*LOG(Grunddaten!$H12) ->  | J32: =J$8+J$9*LOG(Grunddaten!$G12)+J$10*LOG(Grunddaten!$F12)+J$11*LOG(Grunddaten!$H12) ->  | K32: =K$8+K$9*LOG(Grunddaten!$G12)+K$10*LOG(Grunddaten!$F12)+K$11*LOG(Grunddaten!$H12) ->  | L32: =L$8+L$9*LOG(Grunddaten!$G12)+L$10*LOG(Grunddaten!$F12)+L$11*LOG(Grunddaten!$H12) ->  | M32: =M$8+M$9*LOG(Grunddaten!$G12)+M$10*LOG(Grunddaten!$F12)+M$11*LOG(Grunddaten!$H12) ->  | N32: =N$8+N$9*LOG(Grunddaten!$G12)+N$10*LOG(Grunddaten!$F12)+N$11*LOG(Grunddaten!$H12) ->  | O32: =O$8+O$9*LOG(Grunddaten!$G12)+O$10*LOG(Grunddaten!$F12)+O$11*LOG(Grunddaten!$H12) ->  | P32: =P$8+P$9*LOG(Grunddaten!$G12)+P$10*LOG(Grunddaten!$F12)+P$11*LOG(Grunddaten!$H12) ->  | Q32: =Q$8+Q$9*LOG(Grunddaten!$G12)+Q$10*LOG(Grunddaten!$F12)+Q$11*LOG(Grunddaten!$H12) ->  | R32: =R$8+R$9*LOG(Grunddaten!$G12)+R$10*LOG(Grunddaten!$F12)+R$11*LOG(Grunddaten!$H12) ->  | S32: =S$8+S$9*LOG(Grunddaten!$G12)+S$10*LOG(Grunddaten!$F12)+S$11*LOG(Grunddaten!$H12) ->  | T32: =T$8+T$9*LOG(Grunddaten!$G12)+T$10*LOG(Grunddaten!$F12)+T$11*LOG(Grunddaten!$H12) ->  | U32: =U$8+U$9*LOG(Grunddaten!$G12)+U$10*LOG(Grunddaten!$F12)+U$11*LOG(Grunddaten!$H12) ->  | V32: =V$8+V$9*LOG(Grunddaten!$G12)+V$10*LOG(Grunddaten!$F12)+V$11*LOG(Grunddaten!$H12) -> 
A33: =Grunddaten!C13 -> DAL 358800 | B33: =B$8+B$9*LOG(Grunddaten!$G13)+B$10*LOG(Grunddaten!$F13)+B$11*LOG(Grunddaten!$H13) ->  | C33: =C$8+C$9*LOG(Grunddaten!$G13)+C$10*LOG(Grunddaten!$F13)+C$11*LOG(Grunddaten!$H13) ->  | D33: =D$8+D$9*LOG(Grunddaten!$G13)+D$10*LOG(Grunddaten!$F13)+D$11*LOG(Grunddaten!$H13) ->  | E33: =E$8+E$9*LOG(Grunddaten!$G13)+E$10*LOG(Grunddaten!$F13)+E$11*LOG(Grunddaten!$H13) ->  | F33: =F$8+F$9*LOG(Grunddaten!$G13)+F$10*LOG(Grunddaten!$F13)+F$11*LOG(Grunddaten!$H13) ->  | G33: =G$8+G$9*LOG(Grunddaten!$G13)+G$10*LOG(Grunddaten!$F13)+G$11*LOG(Grunddaten!$H13) ->  | H33: =H$8+H$9*LOG(Grunddaten!$G13)+H$10*LOG(Grunddaten!$F13)+H$11*LOG(Grunddaten!$H13) ->  | I33: =I$8+I$9*LOG(Grunddaten!$G13)+I$10*LOG(Grunddaten!$F13)+I$11*LOG(Grunddaten!$H13) ->  | J33: =J$8+J$9*LOG(Grunddaten!$G13)+J$10*LOG(Grunddaten!$F13)+J$11*LOG(Grunddaten!$H13) ->  | K33: =K$8+K$9*LOG(Grunddaten!$G13)+K$10*LOG(Grunddaten!$F13)+K$11*LOG(Grunddaten!$H13) ->  | L33: =L$8+L$9*LOG(Grunddaten!$G13)+L$10*LOG(Grunddaten!$F13)+L$11*LOG(Grunddaten!$H13) ->  | M33: =M$8+M$9*LOG(Grunddaten!$G13)+M$10*LOG(Grunddaten!$F13)+M$11*LOG(Grunddaten!$H13) ->  | N33: =N$8+N$9*LOG(Grunddaten!$G13)+N$10*LOG(Grunddaten!$F13)+N$11*LOG(Grunddaten!$H13) ->  | O33: =O$8+O$9*LOG(Grunddaten!$G13)+O$10*LOG(Grunddaten!$F13)+O$11*LOG(Grunddaten!$H13) ->  | P33: =P$8+P$9*LOG(Grunddaten!$G13)+P$10*LOG(Grunddaten!$F13)+P$11*LOG(Grunddaten!$H13) ->  | Q33: =Q$8+Q$9*LOG(Grunddaten!$G13)+Q$10*LOG(Grunddaten!$F13)+Q$11*LOG(Grunddaten!$H13) ->  | R33: =R$8+R$9*LOG(Grunddaten!$G13)+R$10*LOG(Grunddaten!$F13)+R$11*LOG(Grunddaten!$H13) ->  | S33: =S$8+S$9*LOG(Grunddaten!$G13)+S$10*LOG(Grunddaten!$F13)+S$11*LOG(Grunddaten!$H13) ->  | T33: =T$8+T$9*LOG(Grunddaten!$G13)+T$10*LOG(Grunddaten!$F13)+T$11*LOG(Grunddaten!$H13) ->  | U33: =U$8+U$9*LOG(Grunddaten!$G13)+U$10*LOG(Grunddaten!$F13)+U$11*LOG(Grunddaten!$H13) ->  | V33: =V$8+V$9*LOG(Grunddaten!$G13)+V$10*LOG(Grunddaten!$F13)+V$11*LOG(Grunddaten!$H13) -> 
A34: =Grunddaten!C14 -> DRS100 | B34: =B$8+B$9*LOG(Grunddaten!$G14)+B$10*LOG(Grunddaten!$F14)+B$11*LOG(Grunddaten!$H14) ->  | C34: =C$8+C$9*LOG(Grunddaten!$G14)+C$10*LOG(Grunddaten!$F14)+C$11*LOG(Grunddaten!$H14) ->  | D34: =D$8+D$9*LOG(Grunddaten!$G14)+D$10*LOG(Grunddaten!$F14)+D$11*LOG(Grunddaten!$H14) ->  | E34: =E$8+E$9*LOG(Grunddaten!$G14)+E$10*LOG(Grunddaten!$F14)+E$11*LOG(Grunddaten!$H14) ->  | F34: =F$8+F$9*LOG(Grunddaten!$G14)+F$10*LOG(Grunddaten!$F14)+F$11*LOG(Grunddaten!$H14) ->  | G34: =G$8+G$9*LOG(Grunddaten!$G14)+G$10*LOG(Grunddaten!$F14)+G$11*LOG(Grunddaten!$H14) ->  | H34: =H$8+H$9*LOG(Grunddaten!$G14)+H$10*LOG(Grunddaten!$F14)+H$11*LOG(Grunddaten!$H14) ->  | I34: =I$8+I$9*LOG(Grunddaten!$G14)+I$10*LOG(Grunddaten!$F14)+I$11*LOG(Grunddaten!$H14) ->  | J34: =J$8+J$9*LOG(Grunddaten!$G14)+J$10*LOG(Grunddaten!$F14)+J$11*LOG(Grunddaten!$H14) ->  | K34: =K$8+K$9*LOG(Grunddaten!$G14)+K$10*LOG(Grunddaten!$F14)+K$11*LOG(Grunddaten!$H14) ->  | L34: =L$8+L$9*LOG(Grunddaten!$G14)+L$10*LOG(Grunddaten!$F14)+L$11*LOG(Grunddaten!$H14) ->  | M34: =M$8+M$9*LOG(Grunddaten!$G14)+M$10*LOG(Grunddaten!$F14)+M$11*LOG(Grunddaten!$H14) ->  | N34: =N$8+N$9*LOG(Grunddaten!$G14)+N$10*LOG(Grunddaten!$F14)+N$11*LOG(Grunddaten!$H14) ->  | O34: =O$8+O$9*LOG(Grunddaten!$G14)+O$10*LOG(Grunddaten!$F14)+O$11*LOG(Grunddaten!$H14) ->  | P34: =P$8+P$9*LOG(Grunddaten!$G14)+P$10*LOG(Grunddaten!$F14)+P$11*LOG(Grunddaten!$H14) ->  | Q34: =Q$8+Q$9*LOG(Grunddaten!$G14)+Q$10*LOG(Grunddaten!$F14)+Q$11*LOG(Grunddaten!$H14) ->  | R34: =R$8+R$9*LOG(Grunddaten!$G14)+R$10*LOG(Grunddaten!$F14)+R$11*LOG(Grunddaten!$H14) ->  | S34: =S$8+S$9*LOG(Grunddaten!$G14)+S$10*LOG(Grunddaten!$F14)+S$11*LOG(Grunddaten!$H14) ->  | T34: =T$8+T$9*LOG(Grunddaten!$G14)+T$10*LOG(Grunddaten!$F14)+T$11*LOG(Grunddaten!$H14) ->  | U34: =U$8+U$9*LOG(Grunddaten!$G14)+U$10*LOG(Grunddaten!$F14)+U$11*LOG(Grunddaten!$H14) ->  | V34: =V$8+V$9*LOG(Grunddaten!$G14)+V$10*LOG(Grunddaten!$F14)+V$11*LOG(Grunddaten!$H14) -> 
A35: =Grunddaten!C15 -> DRS125 | B35: =B$8+B$9*LOG(Grunddaten!$G15)+B$10*LOG(Grunddaten!$F15)+B$11*LOG(Grunddaten!$H15) ->  | C35: =C$8+C$9*LOG(Grunddaten!$G15)+C$10*LOG(Grunddaten!$F15)+C$11*LOG(Grunddaten!$H15) ->  | D35: =D$8+D$9*LOG(Grunddaten!$G15)+D$10*LOG(Grunddaten!$F15)+D$11*LOG(Grunddaten!$H15) ->  | E35: =E$8+E$9*LOG(Grunddaten!$G15)+E$10*LOG(Grunddaten!$F15)+E$11*LOG(Grunddaten!$H15) ->  | F35: =F$8+F$9*LOG(Grunddaten!$G15)+F$10*LOG(Grunddaten!$F15)+F$11*LOG(Grunddaten!$H15) ->  | G35: =G$8+G$9*LOG(Grunddaten!$G15)+G$10*LOG(Grunddaten!$F15)+G$11*LOG(Grunddaten!$H15) ->  | H35: =H$8+H$9*LOG(Grunddaten!$G15)+H$10*LOG(Grunddaten!$F15)+H$11*LOG(Grunddaten!$H15) ->  | I35: =I$8+I$9*LOG(Grunddaten!$G15)+I$10*LOG(Grunddaten!$F15)+I$11*LOG(Grunddaten!$H15) ->  | J35: =J$8+J$9*LOG(Grunddaten!$G15)+J$10*LOG(Grunddaten!$F15)+J$11*LOG(Grunddaten!$H15) ->  | K35: =K$8+K$9*LOG(Grunddaten!$G15)+K$10*LOG(Grunddaten!$F15)+K$11*LOG(Grunddaten!$H15) ->  | L35: =L$8+L$9*LOG(Grunddaten!$G15)+L$10*LOG(Grunddaten!$F15)+L$11*LOG(Grunddaten!$H15) ->  | M35: =M$8+M$9*LOG(Grunddaten!$G15)+M$10*LOG(Grunddaten!$F15)+M$11*LOG(Grunddaten!$H15) ->  | N35: =N$8+N$9*LOG(Grunddaten!$G15)+N$10*LOG(Grunddaten!$F15)+N$11*LOG(Grunddaten!$H15) ->  | O35: =O$8+O$9*LOG(Grunddaten!$G15)+O$10*LOG(Grunddaten!$F15)+O$11*LOG(Grunddaten!$H15) ->  | P35: =P$8+P$9*LOG(Grunddaten!$G15)+P$10*LOG(Grunddaten!$F15)+P$11*LOG(Grunddaten!$H15) ->  | Q35: =Q$8+Q$9*LOG(Grunddaten!$G15)+Q$10*LOG(Grunddaten!$F15)+Q$11*LOG(Grunddaten!$H15) ->  | R35: =R$8+R$9*LOG(Grunddaten!$G15)+R$10*LOG(Grunddaten!$F15)+R$11*LOG(Grunddaten!$H15) ->  | S35: =S$8+S$9*LOG(Grunddaten!$G15)+S$10*LOG(Grunddaten!$F15)+S$11*LOG(Grunddaten!$H15) ->  | T35: =T$8+T$9*LOG(Grunddaten!$G15)+T$10*LOG(Grunddaten!$F15)+T$11*LOG(Grunddaten!$H15) ->  | U35: =U$8+U$9*LOG(Grunddaten!$G15)+U$10*LOG(Grunddaten!$F15)+U$11*LOG(Grunddaten!$H15) ->  | V35: =V$8+V$9*LOG(Grunddaten!$G15)+V$10*LOG(Grunddaten!$F15)+V$11*LOG(Grunddaten!$H15) -> 
A36: =Grunddaten!C16 -> DRS180 | B36: =B$8+B$9*LOG(Grunddaten!$G16)+B$10*LOG(Grunddaten!$F16)+B$11*LOG(Grunddaten!$H16) ->  | C36: =C$8+C$9*LOG(Grunddaten!$G16)+C$10*LOG(Grunddaten!$F16)+C$11*LOG(Grunddaten!$H16) ->  | D36: =D$8+D$9*LOG(Grunddaten!$G16)+D$10*LOG(Grunddaten!$F16)+D$11*LOG(Grunddaten!$H16) ->  | E36: =E$8+E$9*LOG(Grunddaten!$G16)+E$10*LOG(Grunddaten!$F16)+E$11*LOG(Grunddaten!$H16) ->  | F36: =F$8+F$9*LOG(Grunddaten!$G16)+F$10*LOG(Grunddaten!$F16)+F$11*LOG(Grunddaten!$H16) ->  | G36: =G$8+G$9*LOG(Grunddaten!$G16)+G$10*LOG(Grunddaten!$F16)+G$11*LOG(Grunddaten!$H16) ->  | H36: =H$8+H$9*LOG(Grunddaten!$G16)+H$10*LOG(Grunddaten!$F16)+H$11*LOG(Grunddaten!$H16) ->  | I36: =I$8+I$9*LOG(Grunddaten!$G16)+I$10*LOG(Grunddaten!$F16)+I$11*LOG(Grunddaten!$H16) ->  | J36: =J$8+J$9*LOG(Grunddaten!$G16)+J$10*LOG(Grunddaten!$F16)+J$11*LOG(Grunddaten!$H16) ->  | K36: =K$8+K$9*LOG(Grunddaten!$G16)+K$10*LOG(Grunddaten!$F16)+K$11*LOG(Grunddaten!$H16) ->  | L36: =L$8+L$9*LOG(Grunddaten!$G16)+L$10*LOG(Grunddaten!$F16)+L$11*LOG(Grunddaten!$H16) ->  | M36: =M$8+M$9*LOG(Grunddaten!$G16)+M$10*LOG(Grunddaten!$F16)+M$11*LOG(Grunddaten!$H16) ->  | N36: =N$8+N$9*LOG(Grunddaten!$G16)+N$10*LOG(Grunddaten!$F16)+N$11*LOG(Grunddaten!$H16) ->  | O36: =O$8+O$9*LOG(Grunddaten!$G16)+O$10*LOG(Grunddaten!$F16)+O$11*LOG(Grunddaten!$H16) ->  | P36: =P$8+P$9*LOG(Grunddaten!$G16)+P$10*LOG(Grunddaten!$F16)+P$11*LOG(Grunddaten!$H16) ->  | Q36: =Q$8+Q$9*LOG(Grunddaten!$G16)+Q$10*LOG(Grunddaten!$F16)+Q$11*LOG(Grunddaten!$H16) ->  | R36: =R$8+R$9*LOG(Grunddaten!$G16)+R$10*LOG(Grunddaten!$F16)+R$11*LOG(Grunddaten!$H16) ->  | S36: =S$8+S$9*LOG(Grunddaten!$G16)+S$10*LOG(Grunddaten!$F16)+S$11*LOG(Grunddaten!$H16) ->  | T36: =T$8+T$9*LOG(Grunddaten!$G16)+T$10*LOG(Grunddaten!$F16)+T$11*LOG(Grunddaten!$H16) ->  | U36: =U$8+U$9*LOG(Grunddaten!$G16)+U$10*LOG(Grunddaten!$F16)+U$11*LOG(Grunddaten!$H16) ->  | V36: =V$8+V$9*LOG(Grunddaten!$G16)+V$10*LOG(Grunddaten!$F16)+V$11*LOG(Grunddaten!$H16) -> 
A37: =Grunddaten!C17 -> DRS250 | B37: =B$8+B$9*LOG(Grunddaten!$G17)+B$10*LOG(Grunddaten!$F17)+B$11*LOG(Grunddaten!$H17) ->  | C37: =C$8+C$9*LOG(Grunddaten!$G17)+C$10*LOG(Grunddaten!$F17)+C$11*LOG(Grunddaten!$H17) ->  | D37: =D$8+D$9*LOG(Grunddaten!$G17)+D$10*LOG(Grunddaten!$F17)+D$11*LOG(Grunddaten!$H17) ->  | E37: =E$8+E$9*LOG(Grunddaten!$G17)+E$10*LOG(Grunddaten!$F17)+E$11*LOG(Grunddaten!$H17) ->  | F37: =F$8+F$9*LOG(Grunddaten!$G17)+F$10*LOG(Grunddaten!$F17)+F$11*LOG(Grunddaten!$H17) ->  | G37: =G$8+G$9*LOG(Grunddaten!$G17)+G$10*LOG(Grunddaten!$F17)+G$11*LOG(Grunddaten!$H17) ->  | H37: =H$8+H$9*LOG(Grunddaten!$G17)+H$10*LOG(Grunddaten!$F17)+H$11*LOG(Grunddaten!$H17) ->  | I37: =I$8+I$9*LOG(Grunddaten!$G17)+I$10*LOG(Grunddaten!$F17)+I$11*LOG(Grunddaten!$H17) ->  | J37: =J$8+J$9*LOG(Grunddaten!$G17)+J$10*LOG(Grunddaten!$F17)+J$11*LOG(Grunddaten!$H17) ->  | K37: =K$8+K$9*LOG(Grunddaten!$G17)+K$10*LOG(Grunddaten!$F17)+K$11*LOG(Grunddaten!$H17) ->  | L37: =L$8+L$9*LOG(Grunddaten!$G17)+L$10*LOG(Grunddaten!$F17)+L$11*LOG(Grunddaten!$H17) ->  | M37: =M$8+M$9*LOG(Grunddaten!$G17)+M$10*LOG(Grunddaten!$F17)+M$11*LOG(Grunddaten!$H17) ->  | N37: =N$8+N$9*LOG(Grunddaten!$G17)+N$10*LOG(Grunddaten!$F17)+N$11*LOG(Grunddaten!$H17) ->  | O37: =O$8+O$9*LOG(Grunddaten!$G17)+O$10*LOG(Grunddaten!$F17)+O$11*LOG(Grunddaten!$H17) ->  | P37: =P$8+P$9*LOG(Grunddaten!$G17)+P$10*LOG(Grunddaten!$F17)+P$11*LOG(Grunddaten!$H17) ->  | Q37: =Q$8+Q$9*LOG(Grunddaten!$G17)+Q$10*LOG(Grunddaten!$F17)+Q$11*LOG(Grunddaten!$H17) ->  | R37: =R$8+R$9*LOG(Grunddaten!$G17)+R$10*LOG(Grunddaten!$F17)+R$11*LOG(Grunddaten!$H17) ->  | S37: =S$8+S$9*LOG(Grunddaten!$G17)+S$10*LOG(Grunddaten!$F17)+S$11*LOG(Grunddaten!$H17) ->  | T37: =T$8+T$9*LOG(Grunddaten!$G17)+T$10*LOG(Grunddaten!$F17)+T$11*LOG(Grunddaten!$H17) ->  | U37: =U$8+U$9*LOG(Grunddaten!$G17)+U$10*LOG(Grunddaten!$F17)+U$11*LOG(Grunddaten!$H17) ->  | V37: =V$8+V$9*LOG(Grunddaten!$G17)+V$10*LOG(Grunddaten!$F17)+V$11*LOG(Grunddaten!$H17) -> 
A38: =Grunddaten!C18 -> DRS315 | B38: =B$8+B$9*LOG(Grunddaten!$G18)+B$10*LOG(Grunddaten!$F18)+B$11*LOG(Grunddaten!$H18) ->  | C38: =C$8+C$9*LOG(Grunddaten!$G18)+C$10*LOG(Grunddaten!$F18)+C$11*LOG(Grunddaten!$H18) ->  | D38: =D$8+D$9*LOG(Grunddaten!$G18)+D$10*LOG(Grunddaten!$F18)+D$11*LOG(Grunddaten!$H18) ->  | E38: =E$8+E$9*LOG(Grunddaten!$G18)+E$10*LOG(Grunddaten!$F18)+E$11*LOG(Grunddaten!$H18) ->  | F38: =F$8+F$9*LOG(Grunddaten!$G18)+F$10*LOG(Grunddaten!$F18)+F$11*LOG(Grunddaten!$H18) ->  | G38: =G$8+G$9*LOG(Grunddaten!$G18)+G$10*LOG(Grunddaten!$F18)+G$11*LOG(Grunddaten!$H18) ->  | H38: =H$8+H$9*LOG(Grunddaten!$G18)+H$10*LOG(Grunddaten!$F18)+H$11*LOG(Grunddaten!$H18) ->  | I38: =I$8+I$9*LOG(Grunddaten!$G18)+I$10*LOG(Grunddaten!$F18)+I$11*LOG(Grunddaten!$H18) ->  | J38: =J$8+J$9*LOG(Grunddaten!$G18)+J$10*LOG(Grunddaten!$F18)+J$11*LOG(Grunddaten!$H18) ->  | K38: =K$8+K$9*LOG(Grunddaten!$G18)+K$10*LOG(Grunddaten!$F18)+K$11*LOG(Grunddaten!$H18) ->  | L38: =L$8+L$9*LOG(Grunddaten!$G18)+L$10*LOG(Grunddaten!$F18)+L$11*LOG(Grunddaten!$H18) ->  | M38: =M$8+M$9*LOG(Grunddaten!$G18)+M$10*LOG(Grunddaten!$F18)+M$11*LOG(Grunddaten!$H18) ->  | N38: =N$8+N$9*LOG(Grunddaten!$G18)+N$10*LOG(Grunddaten!$F18)+N$11*LOG(Grunddaten!$H18) ->  | O38: =O$8+O$9*LOG(Grunddaten!$G18)+O$10*LOG(Grunddaten!$F18)+O$11*LOG(Grunddaten!$H18) ->  | P38: =P$8+P$9*LOG(Grunddaten!$G18)+P$10*LOG(Grunddaten!$F18)+P$11*LOG(Grunddaten!$H18) ->  | Q38: =Q$8+Q$9*LOG(Grunddaten!$G18)+Q$10*LOG(Grunddaten!$F18)+Q$11*LOG(Grunddaten!$H18) ->  | R38: =R$8+R$9*LOG(Grunddaten!$G18)+R$10*LOG(Grunddaten!$F18)+R$11*LOG(Grunddaten!$H18) ->  | S38: =S$8+S$9*LOG(Grunddaten!$G18)+S$10*LOG(Grunddaten!$F18)+S$11*LOG(Grunddaten!$H18) ->  | T38: =T$8+T$9*LOG(Grunddaten!$G18)+T$10*LOG(Grunddaten!$F18)+T$11*LOG(Grunddaten!$H18) ->  | U38: =U$8+U$9*LOG(Grunddaten!$G18)+U$10*LOG(Grunddaten!$F18)+U$11*LOG(Grunddaten!$H18) ->  | V38: =V$8+V$9*LOG(Grunddaten!$G18)+V$10*LOG(Grunddaten!$F18)+V$11*LOG(Grunddaten!$H18) -> 
A39: =Grunddaten!C19 -> DRS355 | B39: =B$8+B$9*LOG(Grunddaten!$G19)+B$10*LOG(Grunddaten!$F19)+B$11*LOG(Grunddaten!$H19) ->  | C39: =C$8+C$9*LOG(Grunddaten!$G19)+C$10*LOG(Grunddaten!$F19)+C$11*LOG(Grunddaten!$H19) ->  | D39: =D$8+D$9*LOG(Grunddaten!$G19)+D$10*LOG(Grunddaten!$F19)+D$11*LOG(Grunddaten!$H19) ->  | E39: =E$8+E$9*LOG(Grunddaten!$G19)+E$10*LOG(Grunddaten!$F19)+E$11*LOG(Grunddaten!$H19) ->  | F39: =F$8+F$9*LOG(Grunddaten!$G19)+F$10*LOG(Grunddaten!$F19)+F$11*LOG(Grunddaten!$H19) ->  | G39: =G$8+G$9*LOG(Grunddaten!$G19)+G$10*LOG(Grunddaten!$F19)+G$11*LOG(Grunddaten!$H19) ->  | H39: =H$8+H$9*LOG(Grunddaten!$G19)+H$10*LOG(Grunddaten!$F19)+H$11*LOG(Grunddaten!$H19) ->  | I39: =I$8+I$9*LOG(Grunddaten!$G19)+I$10*LOG(Grunddaten!$F19)+I$11*LOG(Grunddaten!$H19) ->  | J39: =J$8+J$9*LOG(Grunddaten!$G19)+J$10*LOG(Grunddaten!$F19)+J$11*LOG(Grunddaten!$H19) ->  | K39: =K$8+K$9*LOG(Grunddaten!$G19)+K$10*LOG(Grunddaten!$F19)+K$11*LOG(Grunddaten!$H19) ->  | L39: =L$8+L$9*LOG(Grunddaten!$G19)+L$10*LOG(Grunddaten!$F19)+L$11*LOG(Grunddaten!$H19) ->  | M39: =M$8+M$9*LOG(Grunddaten!$G19)+M$10*LOG(Grunddaten!$F19)+M$11*LOG(Grunddaten!$H19) ->  | N39: =N$8+N$9*LOG(Grunddaten!$G19)+N$10*LOG(Grunddaten!$F19)+N$11*LOG(Grunddaten!$H19) ->  | O39: =O$8+O$9*LOG(Grunddaten!$G19)+O$10*LOG(Grunddaten!$F19)+O$11*LOG(Grunddaten!$H19) ->  | P39: =P$8+P$9*LOG(Grunddaten!$G19)+P$10*LOG(Grunddaten!$F19)+P$11*LOG(Grunddaten!$H19) ->  | Q39: =Q$8+Q$9*LOG(Grunddaten!$G19)+Q$10*LOG(Grunddaten!$F19)+Q$11*LOG(Grunddaten!$H19) ->  | R39: =R$8+R$9*LOG(Grunddaten!$G19)+R$10*LOG(Grunddaten!$F19)+R$11*LOG(Grunddaten!$H19) ->  | S39: =S$8+S$9*LOG(Grunddaten!$G19)+S$10*LOG(Grunddaten!$F19)+S$11*LOG(Grunddaten!$H19) ->  | T39: =T$8+T$9*LOG(Grunddaten!$G19)+T$10*LOG(Grunddaten!$F19)+T$11*LOG(Grunddaten!$H19) ->  | U39: =U$8+U$9*LOG(Grunddaten!$G19)+U$10*LOG(Grunddaten!$F19)+U$11*LOG(Grunddaten!$H19) ->  | V39: =V$8+V$9*LOG(Grunddaten!$G19)+V$10*LOG(Grunddaten!$F19)+V$11*LOG(Grunddaten!$H19) -> 
A40: =Grunddaten!C20 -> DIA100 | B40: =B$8+B$9*LOG(Grunddaten!$G20)+B$10*LOG(Grunddaten!$F20)+B$11*LOG(Grunddaten!$H20) ->  | C40: =C$8+C$9*LOG(Grunddaten!$G20)+C$10*LOG(Grunddaten!$F20)+C$11*LOG(Grunddaten!$H20) ->  | D40: =D$8+D$9*LOG(Grunddaten!$G20)+D$10*LOG(Grunddaten!$F20)+D$11*LOG(Grunddaten!$H20) ->  | E40: =E$8+E$9*LOG(Grunddaten!$G20)+E$10*LOG(Grunddaten!$F20)+E$11*LOG(Grunddaten!$H20) ->  | F40: =F$8+F$9*LOG(Grunddaten!$G20)+F$10*LOG(Grunddaten!$F20)+F$11*LOG(Grunddaten!$H20) ->  | G40: =G$8+G$9*LOG(Grunddaten!$G20)+G$10*LOG(Grunddaten!$F20)+G$11*LOG(Grunddaten!$H20) ->  | H40: =H$8+H$9*LOG(Grunddaten!$G20)+H$10*LOG(Grunddaten!$F20)+H$11*LOG(Grunddaten!$H20) ->  | I40: =I$8+I$9*LOG(Grunddaten!$G20)+I$10*LOG(Grunddaten!$F20)+I$11*LOG(Grunddaten!$H20) ->  | J40: =J$8+J$9*LOG(Grunddaten!$G20)+J$10*LOG(Grunddaten!$F20)+J$11*LOG(Grunddaten!$H20) ->  | K40: =K$8+K$9*LOG(Grunddaten!$G20)+K$10*LOG(Grunddaten!$F20)+K$11*LOG(Grunddaten!$H20) ->  | L40: =L$8+L$9*LOG(Grunddaten!$G20)+L$10*LOG(Grunddaten!$F20)+L$11*LOG(Grunddaten!$H20) ->  | M40: =M$8+M$9*LOG(Grunddaten!$G20)+M$10*LOG(Grunddaten!$F20)+M$11*LOG(Grunddaten!$H20) ->  | N40: =N$8+N$9*LOG(Grunddaten!$G20)+N$10*LOG(Grunddaten!$F20)+N$11*LOG(Grunddaten!$H20) ->  | O40: =O$8+O$9*LOG(Grunddaten!$G20)+O$10*LOG(Grunddaten!$F20)+O$11*LOG(Grunddaten!$H20) ->  | P40: =P$8+P$9*LOG(Grunddaten!$G20)+P$10*LOG(Grunddaten!$F20)+P$11*LOG(Grunddaten!$H20) ->  | Q40: =Q$8+Q$9*LOG(Grunddaten!$G20)+Q$10*LOG(Grunddaten!$F20)+Q$11*LOG(Grunddaten!$H20) ->  | R40: =R$8+R$9*LOG(Grunddaten!$G20)+R$10*LOG(Grunddaten!$F20)+R$11*LOG(Grunddaten!$H20) ->  | S40: =S$8+S$9*LOG(Grunddaten!$G20)+S$10*LOG(Grunddaten!$F20)+S$11*LOG(Grunddaten!$H20) ->  | T40: =T$8+T$9*LOG(Grunddaten!$G20)+T$10*LOG(Grunddaten!$F20)+T$11*LOG(Grunddaten!$H20) ->  | U40: =U$8+U$9*LOG(Grunddaten!$G20)+U$10*LOG(Grunddaten!$F20)+U$11*LOG(Grunddaten!$H20) ->  | V40: =V$8+V$9*LOG(Grunddaten!$G20)+V$10*LOG(Grunddaten!$F20)+V$11*LOG(Grunddaten!$H20) -> 
A41: =Grunddaten!C21 -> DIA125 | B41: =B$8+B$9*LOG(Grunddaten!$G21)+B$10*LOG(Grunddaten!$F21)+B$11*LOG(Grunddaten!$H21) ->  | C41: =C$8+C$9*LOG(Grunddaten!$G21)+C$10*LOG(Grunddaten!$F21)+C$11*LOG(Grunddaten!$H21) ->  | D41: =D$8+D$9*LOG(Grunddaten!$G21)+D$10*LOG(Grunddaten!$F21)+D$11*LOG(Grunddaten!$H21) ->  | E41: =E$8+E$9*LOG(Grunddaten!$G21)+E$10*LOG(Grunddaten!$F21)+E$11*LOG(Grunddaten!$H21) ->  | F41: =F$8+F$9*LOG(Grunddaten!$G21)+F$10*LOG(Grunddaten!$F21)+F$11*LOG(Grunddaten!$H21) ->  | G41: =G$8+G$9*LOG(Grunddaten!$G21)+G$10*LOG(Grunddaten!$F21)+G$11*LOG(Grunddaten!$H21) ->  | H41: =H$8+H$9*LOG(Grunddaten!$G21)+H$10*LOG(Grunddaten!$F21)+H$11*LOG(Grunddaten!$H21) ->  | I41: =I$8+I$9*LOG(Grunddaten!$G21)+I$10*LOG(Grunddaten!$F21)+I$11*LOG(Grunddaten!$H21) ->  | J41: =J$8+J$9*LOG(Grunddaten!$G21)+J$10*LOG(Grunddaten!$F21)+J$11*LOG(Grunddaten!$H21) ->  | K41: =K$8+K$9*LOG(Grunddaten!$G21)+K$10*LOG(Grunddaten!$F21)+K$11*LOG(Grunddaten!$H21) ->  | L41: =L$8+L$9*LOG(Grunddaten!$G21)+L$10*LOG(Grunddaten!$F21)+L$11*LOG(Grunddaten!$H21) ->  | M41: =M$8+M$9*LOG(Grunddaten!$G21)+M$10*LOG(Grunddaten!$F21)+M$11*LOG(Grunddaten!$H21) ->  | N41: =N$8+N$9*LOG(Grunddaten!$G21)+N$10*LOG(Grunddaten!$F21)+N$11*LOG(Grunddaten!$H21) ->  | O41: =O$8+O$9*LOG(Grunddaten!$G21)+O$10*LOG(Grunddaten!$F21)+O$11*LOG(Grunddaten!$H21) ->  | P41: =P$8+P$9*LOG(Grunddaten!$G21)+P$10*LOG(Grunddaten!$F21)+P$11*LOG(Grunddaten!$H21) ->  | Q41: =Q$8+Q$9*LOG(Grunddaten!$G21)+Q$10*LOG(Grunddaten!$F21)+Q$11*LOG(Grunddaten!$H21) ->  | R41: =R$8+R$9*LOG(Grunddaten!$G21)+R$10*LOG(Grunddaten!$F21)+R$11*LOG(Grunddaten!$H21) ->  | S41: =S$8+S$9*LOG(Grunddaten!$G21)+S$10*LOG(Grunddaten!$F21)+S$11*LOG(Grunddaten!$H21) ->  | T41: =T$8+T$9*LOG(Grunddaten!$G21)+T$10*LOG(Grunddaten!$F21)+T$11*LOG(Grunddaten!$H21) ->  | U41: =U$8+U$9*LOG(Grunddaten!$G21)+U$10*LOG(Grunddaten!$F21)+U$11*LOG(Grunddaten!$H21) ->  | V41: =V$8+V$9*LOG(Grunddaten!$G21)+V$10*LOG(Grunddaten!$F21)+V$11*LOG(Grunddaten!$H21) -> 
A42: =Grunddaten!C22 -> DIA180 | B42: =B$8+B$9*LOG(Grunddaten!$G22)+B$10*LOG(Grunddaten!$F22)+B$11*LOG(Grunddaten!$H22) ->  | C42: =C$8+C$9*LOG(Grunddaten!$G22)+C$10*LOG(Grunddaten!$F22)+C$11*LOG(Grunddaten!$H22) ->  | D42: =D$8+D$9*LOG(Grunddaten!$G22)+D$10*LOG(Grunddaten!$F22)+D$11*LOG(Grunddaten!$H22) ->  | E42: =E$8+E$9*LOG(Grunddaten!$G22)+E$10*LOG(Grunddaten!$F22)+E$11*LOG(Grunddaten!$H22) ->  | F42: =F$8+F$9*LOG(Grunddaten!$G22)+F$10*LOG(Grunddaten!$F22)+F$11*LOG(Grunddaten!$H22) ->  | G42: =G$8+G$9*LOG(Grunddaten!$G22)+G$10*LOG(Grunddaten!$F22)+G$11*LOG(Grunddaten!$H22) ->  | H42: =H$8+H$9*LOG(Grunddaten!$G22)+H$10*LOG(Grunddaten!$F22)+H$11*LOG(Grunddaten!$H22) ->  | I42: =I$8+I$9*LOG(Grunddaten!$G22)+I$10*LOG(Grunddaten!$F22)+I$11*LOG(Grunddaten!$H22) ->  | J42: =J$8+J$9*LOG(Grunddaten!$G22)+J$10*LOG(Grunddaten!$F22)+J$11*LOG(Grunddaten!$H22) ->  | K42: =K$8+K$9*LOG(Grunddaten!$G22)+K$10*LOG(Grunddaten!$F22)+K$11*LOG(Grunddaten!$H22) ->  | L42: =L$8+L$9*LOG(Grunddaten!$G22)+L$10*LOG(Grunddaten!$F22)+L$11*LOG(Grunddaten!$H22) ->  | M42: =M$8+M$9*LOG(Grunddaten!$G22)+M$10*LOG(Grunddaten!$F22)+M$11*LOG(Grunddaten!$H22) ->  | N42: =N$8+N$9*LOG(Grunddaten!$G22)+N$10*LOG(Grunddaten!$F22)+N$11*LOG(Grunddaten!$H22) ->  | O42: =O$8+O$9*LOG(Grunddaten!$G22)+O$10*LOG(Grunddaten!$F22)+O$11*LOG(Grunddaten!$H22) ->  | P42: =P$8+P$9*LOG(Grunddaten!$G22)+P$10*LOG(Grunddaten!$F22)+P$11*LOG(Grunddaten!$H22) ->  | Q42: =Q$8+Q$9*LOG(Grunddaten!$G22)+Q$10*LOG(Grunddaten!$F22)+Q$11*LOG(Grunddaten!$H22) ->  | R42: =R$8+R$9*LOG(Grunddaten!$G22)+R$10*LOG(Grunddaten!$F22)+R$11*LOG(Grunddaten!$H22) ->  | S42: =S$8+S$9*LOG(Grunddaten!$G22)+S$10*LOG(Grunddaten!$F22)+S$11*LOG(Grunddaten!$H22) ->  | T42: =T$8+T$9*LOG(Grunddaten!$G22)+T$10*LOG(Grunddaten!$F22)+T$11*LOG(Grunddaten!$H22) ->  | U42: =U$8+U$9*LOG(Grunddaten!$G22)+U$10*LOG(Grunddaten!$F22)+U$11*LOG(Grunddaten!$H22) ->  | V42: =V$8+V$9*LOG(Grunddaten!$G22)+V$10*LOG(Grunddaten!$F22)+V$11*LOG(Grunddaten!$H22) -> 
A43: =Grunddaten!C23 -> DIA250 | B43: =B$8+B$9*LOG(Grunddaten!$G23)+B$10*LOG(Grunddaten!$F23)+B$11*LOG(Grunddaten!$H23) ->  | C43: =C$8+C$9*LOG(Grunddaten!$G23)+C$10*LOG(Grunddaten!$F23)+C$11*LOG(Grunddaten!$H23) ->  | D43: =D$8+D$9*LOG(Grunddaten!$G23)+D$10*LOG(Grunddaten!$F23)+D$11*LOG(Grunddaten!$H23) ->  | E43: =E$8+E$9*LOG(Grunddaten!$G23)+E$10*LOG(Grunddaten!$F23)+E$11*LOG(Grunddaten!$H23) ->  | F43: =F$8+F$9*LOG(Grunddaten!$G23)+F$10*LOG(Grunddaten!$F23)+F$11*LOG(Grunddaten!$H23) ->  | G43: =G$8+G$9*LOG(Grunddaten!$G23)+G$10*LOG(Grunddaten!$F23)+G$11*LOG(Grunddaten!$H23) ->  | H43: =H$8+H$9*LOG(Grunddaten!$G23)+H$10*LOG(Grunddaten!$F23)+H$11*LOG(Grunddaten!$H23) ->  | I43: =I$8+I$9*LOG(Grunddaten!$G23)+I$10*LOG(Grunddaten!$F23)+I$11*LOG(Grunddaten!$H23) ->  | J43: =J$8+J$9*LOG(Grunddaten!$G23)+J$10*LOG(Grunddaten!$F23)+J$11*LOG(Grunddaten!$H23) ->  | K43: =K$8+K$9*LOG(Grunddaten!$G23)+K$10*LOG(Grunddaten!$F23)+K$11*LOG(Grunddaten!$H23) ->  | L43: =L$8+L$9*LOG(Grunddaten!$G23)+L$10*LOG(Grunddaten!$F23)+L$11*LOG(Grunddaten!$H23) ->  | M43: =M$8+M$9*LOG(Grunddaten!$G23)+M$10*LOG(Grunddaten!$F23)+M$11*LOG(Grunddaten!$H23) ->  | N43: =N$8+N$9*LOG(Grunddaten!$G23)+N$10*LOG(Grunddaten!$F23)+N$11*LOG(Grunddaten!$H23) ->  | O43: =O$8+O$9*LOG(Grunddaten!$G23)+O$10*LOG(Grunddaten!$F23)+O$11*LOG(Grunddaten!$H23) ->  | P43: =P$8+P$9*LOG(Grunddaten!$G23)+P$10*LOG(Grunddaten!$F23)+P$11*LOG(Grunddaten!$H23) ->  | Q43: =Q$8+Q$9*LOG(Grunddaten!$G23)+Q$10*LOG(Grunddaten!$F23)+Q$11*LOG(Grunddaten!$H23) ->  | R43: =R$8+R$9*LOG(Grunddaten!$G23)+R$10*LOG(Grunddaten!$F23)+R$11*LOG(Grunddaten!$H23) ->  | S43: =S$8+S$9*LOG(Grunddaten!$G23)+S$10*LOG(Grunddaten!$F23)+S$11*LOG(Grunddaten!$H23) ->  | T43: =T$8+T$9*LOG(Grunddaten!$G23)+T$10*LOG(Grunddaten!$F23)+T$11*LOG(Grunddaten!$H23) ->  | U43: =U$8+U$9*LOG(Grunddaten!$G23)+U$10*LOG(Grunddaten!$F23)+U$11*LOG(Grunddaten!$H23) ->  | V43: =V$8+V$9*LOG(Grunddaten!$G23)+V$10*LOG(Grunddaten!$F23)+V$11*LOG(Grunddaten!$H23) -> 
A44: =Grunddaten!C24 -> DIA315 | B44: =B$8+B$9*LOG(Grunddaten!$G24)+B$10*LOG(Grunddaten!$F24)+B$11*LOG(Grunddaten!$H24) ->  | C44: =C$8+C$9*LOG(Grunddaten!$G24)+C$10*LOG(Grunddaten!$F24)+C$11*LOG(Grunddaten!$H24) ->  | D44: =D$8+D$9*LOG(Grunddaten!$G24)+D$10*LOG(Grunddaten!$F24)+D$11*LOG(Grunddaten!$H24) ->  | E44: =E$8+E$9*LOG(Grunddaten!$G24)+E$10*LOG(Grunddaten!$F24)+E$11*LOG(Grunddaten!$H24) ->  | F44: =F$8+F$9*LOG(Grunddaten!$G24)+F$10*LOG(Grunddaten!$F24)+F$11*LOG(Grunddaten!$H24) ->  | G44: =G$8+G$9*LOG(Grunddaten!$G24)+G$10*LOG(Grunddaten!$F24)+G$11*LOG(Grunddaten!$H24) ->  | H44: =H$8+H$9*LOG(Grunddaten!$G24)+H$10*LOG(Grunddaten!$F24)+H$11*LOG(Grunddaten!$H24) ->  | I44: =I$8+I$9*LOG(Grunddaten!$G24)+I$10*LOG(Grunddaten!$F24)+I$11*LOG(Grunddaten!$H24) ->  | J44: =J$8+J$9*LOG(Grunddaten!$G24)+J$10*LOG(Grunddaten!$F24)+J$11*LOG(Grunddaten!$H24) ->  | K44: =K$8+K$9*LOG(Grunddaten!$G24)+K$10*LOG(Grunddaten!$F24)+K$11*LOG(Grunddaten!$H24) ->  | L44: =L$8+L$9*LOG(Grunddaten!$G24)+L$10*LOG(Grunddaten!$F24)+L$11*LOG(Grunddaten!$H24) ->  | M44: =M$8+M$9*LOG(Grunddaten!$G24)+M$10*LOG(Grunddaten!$F24)+M$11*LOG(Grunddaten!$H24) ->  | N44: =N$8+N$9*LOG(Grunddaten!$G24)+N$10*LOG(Grunddaten!$F24)+N$11*LOG(Grunddaten!$H24) ->  | O44: =O$8+O$9*LOG(Grunddaten!$G24)+O$10*LOG(Grunddaten!$F24)+O$11*LOG(Grunddaten!$H24) ->  | P44: =P$8+P$9*LOG(Grunddaten!$G24)+P$10*LOG(Grunddaten!$F24)+P$11*LOG(Grunddaten!$H24) ->  | Q44: =Q$8+Q$9*LOG(Grunddaten!$G24)+Q$10*LOG(Grunddaten!$F24)+Q$11*LOG(Grunddaten!$H24) ->  | R44: =R$8+R$9*LOG(Grunddaten!$G24)+R$10*LOG(Grunddaten!$F24)+R$11*LOG(Grunddaten!$H24) ->  | S44: =S$8+S$9*LOG(Grunddaten!$G24)+S$10*LOG(Grunddaten!$F24)+S$11*LOG(Grunddaten!$H24) ->  | T44: =T$8+T$9*LOG(Grunddaten!$G24)+T$10*LOG(Grunddaten!$F24)+T$11*LOG(Grunddaten!$H24) ->  | U44: =U$8+U$9*LOG(Grunddaten!$G24)+U$10*LOG(Grunddaten!$F24)+U$11*LOG(Grunddaten!$H24) ->  | V44: =V$8+V$9*LOG(Grunddaten!$G24)+V$10*LOG(Grunddaten!$F24)+V$11*LOG(Grunddaten!$H24) -> 
A45: =Grunddaten!C25 -> DIA355 | B45: =B$8+B$9*LOG(Grunddaten!$G25)+B$10*LOG(Grunddaten!$F25)+B$11*LOG(Grunddaten!$H25) ->  | C45: =C$8+C$9*LOG(Grunddaten!$G25)+C$10*LOG(Grunddaten!$F25)+C$11*LOG(Grunddaten!$H25) ->  | D45: =D$8+D$9*LOG(Grunddaten!$G25)+D$10*LOG(Grunddaten!$F25)+D$11*LOG(Grunddaten!$H25) ->  | E45: =E$8+E$9*LOG(Grunddaten!$G25)+E$10*LOG(Grunddaten!$F25)+E$11*LOG(Grunddaten!$H25) ->  | F45: =F$8+F$9*LOG(Grunddaten!$G25)+F$10*LOG(Grunddaten!$F25)+F$11*LOG(Grunddaten!$H25) ->  | G45: =G$8+G$9*LOG(Grunddaten!$G25)+G$10*LOG(Grunddaten!$F25)+G$11*LOG(Grunddaten!$H25) ->  | H45: =H$8+H$9*LOG(Grunddaten!$G25)+H$10*LOG(Grunddaten!$F25)+H$11*LOG(Grunddaten!$H25) ->  | I45: =I$8+I$9*LOG(Grunddaten!$G25)+I$10*LOG(Grunddaten!$F25)+I$11*LOG(Grunddaten!$H25) ->  | J45: =J$8+J$9*LOG(Grunddaten!$G25)+J$10*LOG(Grunddaten!$F25)+J$11*LOG(Grunddaten!$H25) ->  | K45: =K$8+K$9*LOG(Grunddaten!$G25)+K$10*LOG(Grunddaten!$F25)+K$11*LOG(Grunddaten!$H25) ->  | L45: =L$8+L$9*LOG(Grunddaten!$G25)+L$10*LOG(Grunddaten!$F25)+L$11*LOG(Grunddaten!$H25) ->  | M45: =M$8+M$9*LOG(Grunddaten!$G25)+M$10*LOG(Grunddaten!$F25)+M$11*LOG(Grunddaten!$H25) ->  | N45: =N$8+N$9*LOG(Grunddaten!$G25)+N$10*LOG(Grunddaten!$F25)+N$11*LOG(Grunddaten!$H25) ->  | O45: =O$8+O$9*LOG(Grunddaten!$G25)+O$10*LOG(Grunddaten!$F25)+O$11*LOG(Grunddaten!$H25) ->  | P45: =P$8+P$9*LOG(Grunddaten!$G25)+P$10*LOG(Grunddaten!$F25)+P$11*LOG(Grunddaten!$H25) ->  | Q45: =Q$8+Q$9*LOG(Grunddaten!$G25)+Q$10*LOG(Grunddaten!$F25)+Q$11*LOG(Grunddaten!$H25) ->  | R45: =R$8+R$9*LOG(Grunddaten!$G25)+R$10*LOG(Grunddaten!$F25)+R$11*LOG(Grunddaten!$H25) ->  | S45: =S$8+S$9*LOG(Grunddaten!$G25)+S$10*LOG(Grunddaten!$F25)+S$11*LOG(Grunddaten!$H25) ->  | T45: =T$8+T$9*LOG(Grunddaten!$G25)+T$10*LOG(Grunddaten!$F25)+T$11*LOG(Grunddaten!$H25) ->  | U45: =U$8+U$9*LOG(Grunddaten!$G25)+U$10*LOG(Grunddaten!$F25)+U$11*LOG(Grunddaten!$H25) ->  | V45: =V$8+V$9*LOG(Grunddaten!$G25)+V$10*LOG(Grunddaten!$F25)+V$11*LOG(Grunddaten!$H25) -> 
A46: =Grunddaten!C26 -> MSA300 | B46: =B$8+B$9*LOG(Grunddaten!$G26)+B$10*LOG(Grunddaten!$F26)+B$11*LOG(Grunddaten!$H26) ->  | C46: =C$8+C$9*LOG(Grunddaten!$G26)+C$10*LOG(Grunddaten!$F26)+C$11*LOG(Grunddaten!$H26) ->  | D46: =D$8+D$9*LOG(Grunddaten!$G26)+D$10*LOG(Grunddaten!$F26)+D$11*LOG(Grunddaten!$H26) ->  | E46: =E$8+E$9*LOG(Grunddaten!$G26)+E$10*LOG(Grunddaten!$F26)+E$11*LOG(Grunddaten!$H26) ->  | F46: =F$8+F$9*LOG(Grunddaten!$G26)+F$10*LOG(Grunddaten!$F26)+F$11*LOG(Grunddaten!$H26) ->  | G46: =G$8+G$9*LOG(Grunddaten!$G26)+G$10*LOG(Grunddaten!$F26)+G$11*LOG(Grunddaten!$H26) ->  | H46: =H$8+H$9*LOG(Grunddaten!$G26)+H$10*LOG(Grunddaten!$F26)+H$11*LOG(Grunddaten!$H26) ->  | I46: =I$8+I$9*LOG(Grunddaten!$G26)+I$10*LOG(Grunddaten!$F26)+I$11*LOG(Grunddaten!$H26) ->  | J46: =J$8+J$9*LOG(Grunddaten!$G26)+J$10*LOG(Grunddaten!$F26)+J$11*LOG(Grunddaten!$H26) ->  | K46: =K$8+K$9*LOG(Grunddaten!$G26)+K$10*LOG(Grunddaten!$F26)+K$11*LOG(Grunddaten!$H26) ->  | L46: =L$8+L$9*LOG(Grunddaten!$G26)+L$10*LOG(Grunddaten!$F26)+L$11*LOG(Grunddaten!$H26) ->  | M46: =M$8+M$9*LOG(Grunddaten!$G26)+M$10*LOG(Grunddaten!$F26)+M$11*LOG(Grunddaten!$H26) ->  | N46: =N$8+N$9*LOG(Grunddaten!$G26)+N$10*LOG(Grunddaten!$F26)+N$11*LOG(Grunddaten!$H26) ->  | O46: =O$8+O$9*LOG(Grunddaten!$G26)+O$10*LOG(Grunddaten!$F26)+O$11*LOG(Grunddaten!$H26) ->  | P46: =P$8+P$9*LOG(Grunddaten!$G26)+P$10*LOG(Grunddaten!$F26)+P$11*LOG(Grunddaten!$H26) ->  | Q46: =Q$8+Q$9*LOG(Grunddaten!$G26)+Q$10*LOG(Grunddaten!$F26)+Q$11*LOG(Grunddaten!$H26) ->  | R46: =R$8+R$9*LOG(Grunddaten!$G26)+R$10*LOG(Grunddaten!$F26)+R$11*LOG(Grunddaten!$H26) ->  | S46: =S$8+S$9*LOG(Grunddaten!$G26)+S$10*LOG(Grunddaten!$F26)+S$11*LOG(Grunddaten!$H26) ->  | T46: =T$8+T$9*LOG(Grunddaten!$G26)+T$10*LOG(Grunddaten!$F26)+T$11*LOG(Grunddaten!$H26) ->  | U46: =U$8+U$9*LOG(Grunddaten!$G26)+U$10*LOG(Grunddaten!$F26)+U$11*LOG(Grunddaten!$H26) ->  | V46: =V$8+V$9*LOG(Grunddaten!$G26)+V$10*LOG(Grunddaten!$F26)+V$11*LOG(Grunddaten!$H26) -> 
A47: =Grunddaten!C27 -> MSA400 | B47: =B$8+B$9*LOG(Grunddaten!$G27)+B$10*LOG(Grunddaten!$F27)+B$11*LOG(Grunddaten!$H27) ->  | C47: =C$8+C$9*LOG(Grunddaten!$G27)+C$10*LOG(Grunddaten!$F27)+C$11*LOG(Grunddaten!$H27) ->  | D47: =D$8+D$9*LOG(Grunddaten!$G27)+D$10*LOG(Grunddaten!$F27)+D$11*LOG(Grunddaten!$H27) ->  | E47: =E$8+E$9*LOG(Grunddaten!$G27)+E$10*LOG(Grunddaten!$F27)+E$11*LOG(Grunddaten!$H27) ->  | F47: =F$8+F$9*LOG(Grunddaten!$G27)+F$10*LOG(Grunddaten!$F27)+F$11*LOG(Grunddaten!$H27) ->  | G47: =G$8+G$9*LOG(Grunddaten!$G27)+G$10*LOG(Grunddaten!$F27)+G$11*LOG(Grunddaten!$H27) ->  | H47: =H$8+H$9*LOG(Grunddaten!$G27)+H$10*LOG(Grunddaten!$F27)+H$11*LOG(Grunddaten!$H27) ->  | I47: =I$8+I$9*LOG(Grunddaten!$G27)+I$10*LOG(Grunddaten!$F27)+I$11*LOG(Grunddaten!$H27) ->  | J47: =J$8+J$9*LOG(Grunddaten!$G27)+J$10*LOG(Grunddaten!$F27)+J$11*LOG(Grunddaten!$H27) ->  | K47: =K$8+K$9*LOG(Grunddaten!$G27)+K$10*LOG(Grunddaten!$F27)+K$11*LOG(Grunddaten!$H27) ->  | L47: =L$8+L$9*LOG(Grunddaten!$G27)+L$10*LOG(Grunddaten!$F27)+L$11*LOG(Grunddaten!$H27) ->  | M47: =M$8+M$9*LOG(Grunddaten!$G27)+M$10*LOG(Grunddaten!$F27)+M$11*LOG(Grunddaten!$H27) ->  | N47: =N$8+N$9*LOG(Grunddaten!$G27)+N$10*LOG(Grunddaten!$F27)+N$11*LOG(Grunddaten!$H27) ->  | O47: =O$8+O$9*LOG(Grunddaten!$G27)+O$10*LOG(Grunddaten!$F27)+O$11*LOG(Grunddaten!$H27) ->  | P47: =P$8+P$9*LOG(Grunddaten!$G27)+P$10*LOG(Grunddaten!$F27)+P$11*LOG(Grunddaten!$H27) ->  | Q47: =Q$8+Q$9*LOG(Grunddaten!$G27)+Q$10*LOG(Grunddaten!$F27)+Q$11*LOG(Grunddaten!$H27) ->  | R47: =R$8+R$9*LOG(Grunddaten!$G27)+R$10*LOG(Grunddaten!$F27)+R$11*LOG(Grunddaten!$H27) ->  | S47: =S$8+S$9*LOG(Grunddaten!$G27)+S$10*LOG(Grunddaten!$F27)+S$11*LOG(Grunddaten!$H27) ->  | T47: =T$8+T$9*LOG(Grunddaten!$G27)+T$10*LOG(Grunddaten!$F27)+T$11*LOG(Grunddaten!$H27) ->  | U47: =U$8+U$9*LOG(Grunddaten!$G27)+U$10*LOG(Grunddaten!$F27)+U$11*LOG(Grunddaten!$H27) ->  | V47: =V$8+V$9*LOG(Grunddaten!$G27)+V$10*LOG(Grunddaten!$F27)+V$11*LOG(Grunddaten!$H27) -> 
A48: =Grunddaten!C28 -> MSA500 | B48: =B$8+B$9*LOG(Grunddaten!$G28)+B$10*LOG(Grunddaten!$F28)+B$11*LOG(Grunddaten!$H28) ->  | C48: =C$8+C$9*LOG(Grunddaten!$G28)+C$10*LOG(Grunddaten!$F28)+C$11*LOG(Grunddaten!$H28) ->  | D48: =D$8+D$9*LOG(Grunddaten!$G28)+D$10*LOG(Grunddaten!$F28)+D$11*LOG(Grunddaten!$H28) ->  | E48: =E$8+E$9*LOG(Grunddaten!$G28)+E$10*LOG(Grunddaten!$F28)+E$11*LOG(Grunddaten!$H28) ->  | F48: =F$8+F$9*LOG(Grunddaten!$G28)+F$10*LOG(Grunddaten!$F28)+F$11*LOG(Grunddaten!$H28) ->  | G48: =G$8+G$9*LOG(Grunddaten!$G28)+G$10*LOG(Grunddaten!$F28)+G$11*LOG(Grunddaten!$H28) ->  | H48: =H$8+H$9*LOG(Grunddaten!$G28)+H$10*LOG(Grunddaten!$F28)+H$11*LOG(Grunddaten!$H28) ->  | I48: =I$8+I$9*LOG(Grunddaten!$G28)+I$10*LOG(Grunddaten!$F28)+I$11*LOG(Grunddaten!$H28) ->  | J48: =J$8+J$9*LOG(Grunddaten!$G28)+J$10*LOG(Grunddaten!$F28)+J$11*LOG(Grunddaten!$H28) ->  | K48: =K$8+K$9*LOG(Grunddaten!$G28)+K$10*LOG(Grunddaten!$F28)+K$11*LOG(Grunddaten!$H28) ->  | L48: =L$8+L$9*LOG(Grunddaten!$G28)+L$10*LOG(Grunddaten!$F28)+L$11*LOG(Grunddaten!$H28) ->  | M48: =M$8+M$9*LOG(Grunddaten!$G28)+M$10*LOG(Grunddaten!$F28)+M$11*LOG(Grunddaten!$H28) ->  | N48: =N$8+N$9*LOG(Grunddaten!$G28)+N$10*LOG(Grunddaten!$F28)+N$11*LOG(Grunddaten!$H28) ->  | O48: =O$8+O$9*LOG(Grunddaten!$G28)+O$10*LOG(Grunddaten!$F28)+O$11*LOG(Grunddaten!$H28) ->  | P48: =P$8+P$9*LOG(Grunddaten!$G28)+P$10*LOG(Grunddaten!$F28)+P$11*LOG(Grunddaten!$H28) ->  | Q48: =Q$8+Q$9*LOG(Grunddaten!$G28)+Q$10*LOG(Grunddaten!$F28)+Q$11*LOG(Grunddaten!$H28) ->  | R48: =R$8+R$9*LOG(Grunddaten!$G28)+R$10*LOG(Grunddaten!$F28)+R$11*LOG(Grunddaten!$H28) ->  | S48: =S$8+S$9*LOG(Grunddaten!$G28)+S$10*LOG(Grunddaten!$F28)+S$11*LOG(Grunddaten!$H28) ->  | T48: =T$8+T$9*LOG(Grunddaten!$G28)+T$10*LOG(Grunddaten!$F28)+T$11*LOG(Grunddaten!$H28) ->  | U48: =U$8+U$9*LOG(Grunddaten!$G28)+U$10*LOG(Grunddaten!$F28)+U$11*LOG(Grunddaten!$H28) ->  | V48: =V$8+V$9*LOG(Grunddaten!$G28)+V$10*LOG(Grunddaten!$F28)+V$11*LOG(Grunddaten!$H28) -> 
A49: =Grunddaten!C29 -> MSA600 | B49: =B$8+B$9*LOG(Grunddaten!$G29)+B$10*LOG(Grunddaten!$F29)+B$11*LOG(Grunddaten!$H29) ->  | C49: =C$8+C$9*LOG(Grunddaten!$G29)+C$10*LOG(Grunddaten!$F29)+C$11*LOG(Grunddaten!$H29) ->  | D49: =D$8+D$9*LOG(Grunddaten!$G29)+D$10*LOG(Grunddaten!$F29)+D$11*LOG(Grunddaten!$H29) ->  | E49: =E$8+E$9*LOG(Grunddaten!$G29)+E$10*LOG(Grunddaten!$F29)+E$11*LOG(Grunddaten!$H29) ->  | F49: =F$8+F$9*LOG(Grunddaten!$G29)+F$10*LOG(Grunddaten!$F29)+F$11*LOG(Grunddaten!$H29) ->  | G49: =G$8+G$9*LOG(Grunddaten!$G29)+G$10*LOG(Grunddaten!$F29)+G$11*LOG(Grunddaten!$H29) ->  | H49: =H$8+H$9*LOG(Grunddaten!$G29)+H$10*LOG(Grunddaten!$F29)+H$11*LOG(Grunddaten!$H29) ->  | I49: =I$8+I$9*LOG(Grunddaten!$G29)+I$10*LOG(Grunddaten!$F29)+I$11*LOG(Grunddaten!$H29) ->  | J49: =J$8+J$9*LOG(Grunddaten!$G29)+J$10*LOG(Grunddaten!$F29)+J$11*LOG(Grunddaten!$H29) ->  | K49: =K$8+K$9*LOG(Grunddaten!$G29)+K$10*LOG(Grunddaten!$F29)+K$11*LOG(Grunddaten!$H29) ->  | L49: =L$8+L$9*LOG(Grunddaten!$G29)+L$10*LOG(Grunddaten!$F29)+L$11*LOG(Grunddaten!$H29) ->  | M49: =M$8+M$9*LOG(Grunddaten!$G29)+M$10*LOG(Grunddaten!$F29)+M$11*LOG(Grunddaten!$H29) ->  | N49: =N$8+N$9*LOG(Grunddaten!$G29)+N$10*LOG(Grunddaten!$F29)+N$11*LOG(Grunddaten!$H29) ->  | O49: =O$8+O$9*LOG(Grunddaten!$G29)+O$10*LOG(Grunddaten!$F29)+O$11*LOG(Grunddaten!$H29) ->  | P49: =P$8+P$9*LOG(Grunddaten!$G29)+P$10*LOG(Grunddaten!$F29)+P$11*LOG(Grunddaten!$H29) ->  | Q49: =Q$8+Q$9*LOG(Grunddaten!$G29)+Q$10*LOG(Grunddaten!$F29)+Q$11*LOG(Grunddaten!$H29) ->  | R49: =R$8+R$9*LOG(Grunddaten!$G29)+R$10*LOG(Grunddaten!$F29)+R$11*LOG(Grunddaten!$H29) ->  | S49: =S$8+S$9*LOG(Grunddaten!$G29)+S$10*LOG(Grunddaten!$F29)+S$11*LOG(Grunddaten!$H29) ->  | T49: =T$8+T$9*LOG(Grunddaten!$G29)+T$10*LOG(Grunddaten!$F29)+T$11*LOG(Grunddaten!$H29) ->  | U49: =U$8+U$9*LOG(Grunddaten!$G29)+U$10*LOG(Grunddaten!$F29)+U$11*LOG(Grunddaten!$H29) ->  | V49: =V$8+V$9*LOG(Grunddaten!$G29)+V$10*LOG(Grunddaten!$F29)+V$11*LOG(Grunddaten!$H29) -> 
A52: Werteübergabe für klassische CAP-Berechnung: | D52: Durchlass: | E52: =Auslegung!$D$12 -> DAL 358 | F52: K021 | G52: =SUM('DAL359-CAP'!$C$42,'DAL358-CAP'!$C$42,'DRS-CAP'!$C$42,'DIA-CAP'!$C$42,'MSA-CAP'!$C$42) -> -141.4 | I52: K021Abluft | J52: =IF(SUM('DAL359-CAP'!$C$66,'DAL358-CAP'!$C$66,'DRS-CAP'!$C$66,'DIA-CAP'!$C$66,'MSA-CAP'!$C$66)=0,"",SUM('DAL359-CAP'!$C$66,'DAL358-CAP'!$C$66,'DRS-CAP'!$C$66,'DIA-CAP'!$C$66,'MSA-CAP'!$C$66)) -> 
D53: Lochbild: | E53: =Auslegung!$D$25 -> 800 | F53: K022 | G53: =SUM('DAL359-CAP'!$C$43,'DAL358-CAP'!$C$43,'DRS-CAP'!$C$43,'DIA-CAP'!$C$43,'MSA-CAP'!$C$43) -> 62.47 | I53: K022Abluft | J53: =IF(SUM('DAL359-CAP'!$C$67,'DAL358-CAP'!$C$67,'DRS-CAP'!$C$67,'DIA-CAP'!$C$67,'MSA-CAP'!$C$67)=0,"",SUM('DAL359-CAP'!$C$67,'DAL358-CAP'!$C$67,'DRS-CAP'!$C$67,'DIA-CAP'!$C$67,'MSA-CAP'!$C$67)) -> 
B55: Oktav-Relativspektrum fOkt [Hz] ZULUFT | I55: SLWA
B56: 125 | C56: 250 | D56: 500 | E56: 1000 | F56: 2000 | G56: 4000 | H56: 8000 | I56: Summe
A57: =A24 -> DAL 359300 | B57: -9.748165001 | C57: -2.358797959 | D57: -8.628417107 | E57: -9.717522332 | F57: -15.48859355 | G57: -20.71330657 | H57: -22.67632364 | I57: =10*LOG(10^(0.1*B57)+10^(0.1*C57)+10^(0.1*D57)+10^(0.1*E57)+10^(0.1*F57)+10^(0.1*G57)+10^(0.1*H57)) -> -0.1193317217 | K57: Relativspektrum vom DAL 359DN 300 übernommen vom DN 400!
A58: DAL 359400 | B58: -9.748165001 | C58: -2.358797959 | D58: -8.628417107 | E58: -9.717522332 | F58: -15.48859355 | G58: -20.71330657 | H58: -22.67632364 | I58: =10*LOG(10^(0.1*B58)+10^(0.1*C58)+10^(0.1*D58)+10^(0.1*E58)+10^(0.1*F58)+10^(0.1*G58)+10^(0.1*H58)) -> -0.1193317217 | K58: Datenherkunft: \\EMCO-WI\Daten\daten_EK\EMCOAIR\DAL 359\Berechnung_Oktavspektrum_DAL359_150203
A59: DAL 359500 | B59: -7.55059014 | C59: -2.995308368 | D59: -7.418411346 | E59: -10.16484212 | F59: -17.35509012 | G59: -24.73328783 | H59: -28.10874623 | I59: -0.09542313229
A60: DAL 359600 | B60: -5.775334173 | C60: -3.675297771 | D60: -6.978150661 | E60: -11.09287163 | F60: -20.06969613 | G60: -26.68529922 | H60: -28.43074826 | I60: -0.0645631395
A61: DAL 359800 | B61: -3.305960812 | C61: -6.699925116 | D61: -6.222995599 | E61: -13.34590183 | F61: -23.79710581 | G61: -29.88467594 | H61: -30.39366585 | I61: -0.1237687173
A62: DAL 358300 | B62: -18.15074548 | C62: -8.349474175 | D62: -6.840012016 | E62: -4.991025344 | F62: -9.443980048 | G62: -12.03691857 | H62: -18.1489206 | I62: =10*LOG(10^(0.1*B62)+10^(0.1*C62)+10^(0.1*D62)+10^(0.1*E62)+10^(0.1*F62)+10^(0.1*G62)+10^(0.1*H62)) -> -0.5701328367 | K62: Relativspektrum vom DAL 358DN 300 übernommen vom DN 400!
A63: DAL 358400 | B63: -18.15074548 | C63: -8.349474175 | D63: -6.840012016 | E63: -4.991025344 | F63: -9.443980048 | G63: -12.03691857 | H63: -18.1489206 | I63: =10*LOG(10^(0.1*B63)+10^(0.1*C63)+10^(0.1*D63)+10^(0.1*E63)+10^(0.1*F63)+10^(0.1*G63)+10^(0.1*H63)) -> -0.5701328367
A64: DAL 358500 | B64: -14.77992516 | C64: -7.338513597 | D64: -5.333904866 | E64: -5.243911679 | F64: -10.70824416 | G64: -15.49056519 | H64: -22.17115389 | I64: =10*LOG(10^(0.1*B64)+10^(0.1*C64)+10^(0.1*D64)+10^(0.1*E64)+10^(0.1*F64)+10^(0.1*G64)+10^(0.1*H64)) -> -0.3204156596
A65: =A32 -> DAL 358600 | B65: -12.60360197 | C65: -6.493940723 | D65: -5.252830746 | E65: -6.107896623 | F65: -11.58787683 | G65: -14.26627487 | H65: -21.85030757 | I65: =10*LOG(10^(0.1*B65)+10^(0.1*C65)+10^(0.1*D65)+10^(0.1*E65)+10^(0.1*F65)+10^(0.1*G65)+10^(0.1*H65)) -> -0.2881120299
A66: DAL 358800 | B66: -12.60360197 | C66: -6.493940723 | D66: -5.252830746 | E66: -6.107896623 | F66: -11.58787683 | G66: -14.26627487 | H66: -21.85030757 | I66: -0.2881120299 | K66: Relativspektrum vom DAL 358DN 800 übernommen vom DN 600!
A67: DRS100 | B67: -10.48872965 | C67: -6.22543266 | D67: -5.548944776 | E67: -8.200327665 | F67: -10.61612765 | G67: -14.44929617 | H67: -17.537916 | I67: -0.4664455895
A68: DRS125 | B68: -10.54951894 | C68: -5.612120431 | D68: -5.62311399 | E68: -8.814835384 | F68: -11.11456608 | G68: -15.06847014 | H68: -17.47400587 | I68: -0.4842478046
A69: DRS180 | B69: -7.893614694 | C69: -5.204997645 | D69: -6.202537066 | E69: -10.06398047 | F69: -13.63595283 | G69: -16.89647681 | H69: -17.61430473 | I69: -0.5384516265
A70: DRS250 | B70: -11.04086212 | C70: -7.972244206 | D70: -5.304635102 | E70: -5.344715608 | F70: -10.34565555 | G70: -16.17441147 | H70: -20.65367849 | I70: -0.2219381498
A71: DRS315 | B71: -6.638651636 | C71: -6.619403519 | D71: -6.67163396 | E71: -6.626492325 | F71: -11.0836529 | G71: -19.91795459 | H71: -24.05092683 | I71: -0.1803455623
A72: DRS355 | B72: -5.809450365 | C72: -6.039118201 | D72: -6.999044831 | E72: -7.802198311 | F72: -13.58122566 | G72: -20.33950798 | H72: -21.39326734 | I72: -0.2817676141
A73: DIA100 | B73: =10*LOG(10^(0.1*#REF!)+10^(0.1*#REF!)+10^(0.1*#REF!)) ->  | C73: =10*LOG(10^(0.1*#REF!)+10^(0.1*#REF!)+10^(0.1*#REF!)) ->  | D73: =10*LOG(10^(0.1*#REF!)+10^(0.1*#REF!)+10^(0.1*#REF!)) ->  | E73: =10*LOG(10^(0.1*#REF!)+10^(0.1*#REF!)+10^(0.1*#REF!)) ->  | F73: =10*LOG(10^(0.1*#REF!)+10^(0.1*#REF!)+10^(0.1*#REF!)) ->  | G73: =10*LOG(10^(0.1*#REF!)+10^(0.1*#REF!)+10^(0.1*#REF!)) ->  | H73: =10*LOG(10^(0.1*#REF!)+10^(0.1*#REF!)+10^(0.1*#REF!)) ->  | I73: =10*LOG(10^(0.1*B73)+10^(0.1*C73)+10^(0.1*D73)+10^(0.1*E73)+10^(0.1*F73)+10^(0.1*G73)+10^(0.1*H73)) -> 
A74: DIA125 | B74: =10*LOG(10^(0.1*#REF!)+10^(0.1*#REF!)+10^(0.1*#REF!)) ->  | C74: =10*LOG(10^(0.1*#REF!)+10^(0.1*#REF!)+10^(0.1*#REF!)) ->  | D74: =10*LOG(10^(0.1*#REF!)+10^(0.1*#REF!)+10^(0.1*#REF!)) ->  | E74: =10*LOG(10^(0.1*#REF!)+10^(0.1*#REF!)+10^(0.1*#REF!)) ->  | F74: =10*LOG(10^(0.1*#REF!)+10^(0.1*#REF!)+10^(0.1*#REF!)) ->  | G74: =10*LOG(10^(0.1*#REF!)+10^(0.1*#REF!)+10^(0.1*#REF!)) ->  | H74: =10*LOG(10^(0.1*#REF!)+10^(0.1*#REF!)+10^(0.1*#REF!)) -> 
A75: DIA180 | B75: =10*LOG(10^(0.1*#REF!)+10^(0.1*#REF!)+10^(0.1*#REF!)) ->  | C75: =10*LOG(10^(0.1*#REF!)+10^(0.1*#REF!)+10^(0.1*#REF!)) ->  | D75: =10*LOG(10^(0.1*#REF!)+10^(0.1*#REF!)+10^(0.1*#REF!)) ->  | E75: =10*LOG(10^(0.1*#REF!)+10^(0.1*#REF!)+10^(0.1*#REF!)) ->  | F75: =10*LOG(10^(0.1*#REF!)+10^(0.1*#REF!)+10^(0.1*#REF!)) ->  | G75: =10*LOG(10^(0.1*#REF!)+10^(0.1*#REF!)+10^(0.1*#REF!)) ->  | H75: =10*LOG(10^(0.1*#REF!)+10^(0.1*#REF!)+10^(0.1*#REF!)) ->  | I75: =10*LOG(10^(0.1*B75)+10^(0.1*C75)+10^(0.1*D75)+10^(0.1*E75)+10^(0.1*F75)+10^(0.1*G75)+10^(0.1*H75)) -> 
A76: DIA250 | B76: =10*LOG(10^(0.1*#REF!)+10^(0.1*#REF!)+10^(0.1*#REF!)) ->  | C76: =10*LOG(10^(0.1*#REF!)+10^(0.1*#REF!)+10^(0.1*#REF!)) ->  | D76: =10*LOG(10^(0.1*#REF!)+10^(0.1*#REF!)+10^(0.1*#REF!)) ->  | E76: =10*LOG(10^(0.1*#REF!)+10^(0.1*#REF!)+10^(0.1*#REF!)) ->  | F76: =10*LOG(10^(0.1*#REF!)+10^(0.1*#REF!)+10^(0.1*#REF!)) ->  | G76: =10*LOG(10^(0.1*#REF!)+10^(0.1*#REF!)+10^(0.1*#REF!)) ->  | H76: =10*LOG(10^(0.1*#REF!)+10^(0.1*#REF!)+10^(0.1*#REF!)) ->  | I76: =10*LOG(10^(0.1*B76)+10^(0.1*C76)+10^(0.1*D76)+10^(0.1*E76)+10^(0.1*F76)+10^(0.1*G76)+10^(0.1*H76)) -> 
A77: DIA315 | B77: =10*LOG(10^(0.1*#REF!)+10^(0.1*#REF!)+10^(0.1*#REF!)) ->  | C77: =10*LOG(10^(0.1*#REF!)+10^(0.1*#REF!)+10^(0.1*#REF!)) ->  | D77: =10*LOG(10^(0.1*#REF!)+10^(0.1*#REF!)+10^(0.1*#REF!)) ->  | E77: =10*LOG(10^(0.1*#REF!)+10^(0.1*#REF!)+10^(0.1*#REF!)) ->  | F77: =10*LOG(10^(0.1*#REF!)+10^(0.1*#REF!)+10^(0.1*#REF!)) ->  | G77: =10*LOG(10^(0.1*#REF!)+10^(0.1*#REF!)+10^(0.1*#REF!)) ->  | H77: =10*LOG(10^(0.1*#REF!)+10^(0.1*#REF!)+10^(0.1*#REF!)) -> 
A78: DIA355 | B78: =10*LOG(10^(0.1*#REF!)+10^(0.1*#REF!)+10^(0.1*#REF!)) ->  | C78: =10*LOG(10^(0.1*#REF!)+10^(0.1*#REF!)+10^(0.1*#REF!)) ->  | D78: =10*LOG(10^(0.1*#REF!)+10^(0.1*#REF!)+10^(0.1*#REF!)) ->  | E78: =10*LOG(10^(0.1*#REF!)+10^(0.1*#REF!)+10^(0.1*#REF!)) ->  | F78: =10*LOG(10^(0.1*#REF!)+10^(0.1*#REF!)+10^(0.1*#REF!)) ->  | G78: =10*LOG(10^(0.1*#REF!)+10^(0.1*#REF!)+10^(0.1*#REF!)) ->  | H78: =10*LOG(10^(0.1*#REF!)+10^(0.1*#REF!)+10^(0.1*#REF!)) -> 
A79: MSA300 | B79: -8.796058201 | C79: -5.528053023 | D79: -7.883921799 | E79: -11.0744343 | F79: -15.37579457 | G79: -14.35469593 | H79: -11.26740643 | I79: -1.006095842
A80: MSA400 | B80: -15.89724876 | C80: -7.256522994 | D80: -5.994432904 | E80: -5.917834861 | F80: -12.13230791 | G80: -16.27902398 | H80: -21.91104567 | I80: -0.9017775252
A81: MSA500 | B81: -12.27557331 | C81: -5.851434575 | D81: -5.663442755 | E81: -7.67661765 | F81: -15.28613017 | G81: -19.1029178 | H81: -22.64856526 | I81: =10*LOG(10^(0.1*B81)+10^(0.1*C81)+10^(0.1*D81)+10^(0.1*E81)+10^(0.1*F81)+10^(0.1*G81)+10^(0.1*H81)) -> -0.9223853573
A82: MSA600 | B82: -9.495571838 | C82: -4.954663649 | D82: -5.965649983 | E82: -9.04351386 | F82: -17.35454442 | G82: -20.92773615 | H82: -22.77118684 | I82: -0.7498135635
B83: 2 | C83: 3 | D83: 4 | E83: 5 | F83: 6 | G83: 7 | H83: 8 | I83: 9
A84: Gewählter Durchlass, Zuluft:
A85: =CONCATENATE(E52,E53) -> DAL 358800 | B85: =VLOOKUP($A$85,$A$57:$H$82,B83,FALSE) -> -12.60360197 | C85: =VLOOKUP($A$85,$A$57:$H$82,C83,FALSE) -> -6.493940723 | D85: -5.252830746 | E85: -6.107896623 | F85: -11.58787683 | G85: -14.26627487 | H85: -21.85030757
A86: Gewählter Durchlass, Abluft:
A87: =CONCATENATE(E52,E53) -> DAL 358800 | B87: =VLOOKUP($A$87,$A$96:$H$121,B83,FALSE) -> -7.529477034 | C87: =VLOOKUP($A$87,$A$96:$H$121,C83,FALSE) -> -6.970713922 | D87: -7.462051982 | E87: -8.754916989 | F87: -11.15850287 | G87: -13.56268665 | H87: -16.08687747
A88: A-Bewertung: | B88: -16.1 | C88: -8.6 | D88: -3.2 | E88: 0 | F88: 1.2 | G88: 1 | H88: -1.1
A89: =CONCATENATE(Auslegung!$D$8,"ZUL",Auslegung!$D$12,Auslegung!$D$18) -> ZULDAL 358800 | B89: =$I$89+B85 -> 17.18685525 | C89: =$I$89+C85 -> 23.29651649 | D89: 24.53762647 | E89: 23.68256059 | F89: 18.20258038 | G89: 15.52418234 | H89: 7.940149646 | I89: =IF($G$52+$G$53*LOG(Auslegung!$D$32)<25,"<25",$G$52+$G$53*LOG(Auslegung!$D$32)) -> 29.79045721
A90: =CONCATENATE(Auslegung!$D$8,"ABL",Auslegung!$D$12,Auslegung!$D$18) -> ABLDAL 358800 | B90: =$I$90+B87 ->  | C90: =$I$90+C87 ->  | H90: =$I$90+H87 ->  | I90: =IF($J$52+$J$53*LOG(Auslegung!$D$32)<25,"<25",$J$52+$J$53*LOG(Auslegung!$D$32)) -> 
A91: Rückgabe ZUL | B91: =IF($I$89="<25","",B89-B88) -> 33.28685525 | C91: =IF($I$89="<25","",C89-C88) -> 31.89651649 | D91: =IF($I$89="<25","",D89-D88) -> 27.73762647 | E91: =IF($I$89="<25","",E89-E88) -> 23.68256059 | F91: 17.00258038 | G91: 14.52418234 | H91: 9.040149646
A92: Rückgabe ABL | B92: =IF($I$90="<25","",B90-B88) ->  | C92: =IF($I$90="<25","",C90-C88) -> 
B94: Oktav-Relativspektrum fOkt [Hz] ABLUFT | I94: SLWA
B95: 125 | C95: 250 | D95: 500 | E95: 1000 | F95: 2000 | G95: 4000 | H95: 8000 | I95: Summe
A96: =A57 -> DAL 359300 | B96: -11.69228865 | C96: -7.557038824 | D96: -9.273466312 | E96: -6.248076041 | F96: -7.050834781 | G96: -12.13027091 | H96: -14.23897161 | I96: =10*LOG(10^(0.1*B96)+10^(0.1*C96)+10^(0.1*D96)+10^(0.1*E96)+10^(0.1*F96)+10^(0.1*G96)+10^(0.1*H96)) -> -0.4827245788
A97: DAL 359400 | B97: -11.15960932 | C97: -7.177932093 | D97: -7.601575086 | E97: -6.063741844 | F97: -9.587138234 | G97: -14.70181972 | H97: -16.09521227 | I97: =10*LOG(10^(0.1*B97)+10^(0.1*C97)+10^(0.1*D97)+10^(0.1*E97)+10^(0.1*F97)+10^(0.1*G97)+10^(0.1*H97)) -> -0.6664097657
A98: DAL 359500 | B98: -10.50509419 | C98: -8.411118781 | D98: -7.117677977 | E98: -5.88900751 | F98: -9.214357983 | G98: -15.16407138 | H98: -17.0978009 | I98: -0.6810158611
A99: DAL 359600 | B99: -8.061064242 | C99: -8.885976082 | D99: -7.623577303 | E99: -8.272515937 | F99: -11.27754736 | G99: -14.37708518 | H99: -13.75212377 | I99: -1.189742673
A100: DAL 359800 | B100: -8.061064242 | C100: -8.885976082 | D100: -7.623577303 | E100: -8.272515937 | F100: -11.27754736 | G100: -14.37708518 | H100: -13.75212377 | I100: -1.189742673 | K100: Relativspektrum vom DAL 359DN 800 übernommen vom DN 600!
A101: DAL 358300 | B101: -10.87695916 | C101: -5.809979296 | D101: -8.610648973 | E101: -10.2637425 | F101: -11.88267272 | G101: -11.99761864 | H101: -11.92666486 | I101: =10*LOG(10^(0.1*B101)+10^(0.1*C101)+10^(0.1*D101)+10^(0.1*E101)+10^(0.1*F101)+10^(0.1*G101)+10^(0.1*H101)) -> -1.145987278
A102: DAL 358400 | B102: -9.335055085 | C102: -5.747804685 | D102: -7.443752471 | E102: -8.521604863 | F102: -11.69501402 | G102: -13.08159731 | H102: -14.87366761 | I102: =10*LOG(10^(0.1*B102)+10^(0.1*C102)+10^(0.1*D102)+10^(0.1*E102)+10^(0.1*F102)+10^(0.1*G102)+10^(0.1*H102)) -> -0.6911252437
A103: DAL 358500 | B103: -10.42169349 | C103: -6.598461384 | D103: -6.971789973 | E103: -8.735964009 | F103: -11.75727932 | G103: -13.39805832 | H103: -15.18067023 | I103: =10*LOG(10^(0.1*B103)+10^(0.1*C103)+10^(0.1*D103)+10^(0.1*E103)+10^(0.1*F103)+10^(0.1*G103)+10^(0.1*H103)) -> -1.040271379
A104: DAL 358600 | B104: -7.529477034 | C104: -6.970713922 | D104: -7.462051982 | E104: -8.754916989 | F104: -11.15850287 | G104: -13.56268665 | H104: -16.08687747 | I104: =10*LOG(10^(0.1*B104)+10^(0.1*C104)+10^(0.1*D104)+10^(0.1*E104)+10^(0.1*F104)+10^(0.1*G104)+10^(0.1*H104)) -> -0.7814357878
A105: DAL 358800 | B105: -7.529477034 | C105: -6.970713922 | D105: -7.462051982 | E105: -8.754916989 | F105: -11.15850287 | G105: -13.56268665 | H105: -16.08687747 | I105: -0.7814357878 | K105: Relativspektrum vom DAL 358DN 800 übernommen vom DN 600!
A106: DRS100 | B106: -18.6948085 | C106: -13.44056196 | D106: -7.958565648 | E106: -6.7940057 | F106: -7.974683559 | G106: -15.32617346 | H106: -18.53435565 | I106: -2.001212362
A107: DRS125 | B107: -15.22386743 | C107: -11.2268193 | D107: -9.001729913 | E107: -5.741170761 | F107: -11.61807889 | G107: -17.51863985 | H107: -16.62311042 | I107: -2.173518411
A108: DRS180 | B108: -14.53514301 | C108: -10.09069085 | D108: -6.997939065 | E108: -6.7244355 | F108: -13.05881972 | G108: -15.30179344 | H108: -13.72203638 | I108: -1.760481337
A109: DRS250 | B109: -13.64420229 | C109: -10.39546815 | D109: -6.470845474 | E109: -3.672394391 | F109: -13.40516888 | G109: -19.30172793 | H109: -18.60463732 | I109: -0.6531300804
A110: DRS315 | B110: -6.883328302 | C110: -10.13422433 | D110: -7.871394112 | E110: -9.391912285 | F110: -12.67143497 | G110: -12.25321924 | H110: -9.41411968 | I110: -0.9247029252
A111: DRS355 | B111: -7.315663675 | C111: -9.479714064 | D111: -8.295541904 | E111: -7.913817923 | F111: -12.86223407 | G111: -14.16266931 | H111: -11.4242983 | I111: -1.134445941
A112: DIA100 | I112: 8.4509804
A113: DIA125 | I113: 8.4509804
A114: DIA180 | I114: 8.4509804
A115: =A76 -> DIA250 | I115: =10*LOG(10^(0.1*B115)+10^(0.1*C115)+10^(0.1*D115)+10^(0.1*E115)+10^(0.1*F115)+10^(0.1*G115)+10^(0.1*H115)) -> 8.4509804
A116: DIA315 | I116: 8.4509804
A117: DIA355 | I117: 8.4509804
A118: MSA300 | B118: -12.85954097 | C118: -9.000649938 | D118: -7.360948168 | E118: -4.921631773 | F118: -10.54685155 | G118: -14.80843459 | H118: -16.74034622 | I118: -0.8320977675
A119: MSA400 | B119: -10.27457753 | C119: -7.815098925 | D119: -7.951946182 | E119: -7.380421431 | F119: -12.98158312 | G119: -14.49385865 | H119: -13.34499542 | I119: =10*LOG(10^(0.1*B119)+10^(0.1*C119)+10^(0.1*D119)+10^(0.1*E119)+10^(0.1*F119)+10^(0.1*G119)+10^(0.1*H119)) -> -1.340343867
A120: MSA500 | B120: -8.808216755 | C120: -7.331000561 | D120: -6.840568194 | E120: -9.375895269 | F120: -14.03718775 | G120: -14.00616388 | H120: -10.86145557 | I120: -0.9683651006
A121: MSA600 | B121: -7.60899446 | C121: -10.45934238 | D121: -8.068930805 | E121: -10.1676208 | F121: -14.41071744 | G121: -13.4606569 | H121: -10.10089371 | I121: -1.582725477
A124: T[s] nach VDI 2081 | E124: Nachhallzeit | F124: Richtungsfaktor | G124: Raumvolumen | H124: äqu. Absorptionsfläche
A125: Raumart | C125: s | E125: t | F125: Q | G125: V | H125: A
A126: Einzelbüro | C126: 0.5 | E126: s | G126: m³ | H126: m²Sabine
A127: Großraumbüro | C127: 0.5 | D127: =Auslegung!D45 -> Großraumbüro | E127: =VLOOKUP(D127,Lw!$A$126:$C$149,3,FALSE) -> 0.5 | F127: 4 | G127: =Auslegung!D37*Auslegung!D39*Auslegung!D40 -> 126.392 | H127: =0.163*G127/E127 -> 41.203792
A128: Werkstätten | C128: 1.5
A129: Ruheraum, Pausenraum | C129: 1
A130: Untersuchungsraum Krankenhaus | C130: 2
A131: Rundfunk-, Fernsehstudio | C131: 0.5
A132: Chemielabor | C132: 2
A133: Wasch- und WC-Raum, Umkleide | C133: 2
A134: Schwimmbad | C134: 2
A135: EDV-Raum | C135: 1.5
A136: Konzertsaal | C136: 1.5
A137: Lesesaal | C137: 1
A138: Museum | C138: 1.5
A139: Küche | C139: 1.5
A140: Theater, Kino | C140: 1
A141: Klassen- Seminarraum | C141: 1
A142: Gaststätte | C142: 1
A143: kein Typ | C143: x
A144: Konferenzraum | C144: 1
A145: Hotelzimmer | C145: 0.5
A146: Hörsaal | C146: 1
A147: Bettenzimmer Krankenhaus | C147: 1
A148: Verkaufsraum | C148: 1
A149: Sporthalle | C149: 2

Sheet DR (hidden)
A1: Berechnung des Zugluftrisikos
A2: Achtung: Automatisierte Konstantenauswahl aus den "-CAP" Arbeitsblättern
A3: Annahme: | B3: Turbulenzgrad = | C3: 40 | D3: %
A5: Konstanten Temperaturverhältnis | C5: K051 | D5: =SUM('DAL359-CAP'!$C$51,'DAL358-CAP'!$C$51,'DRS-CAP'!$C$51,'DIA-CAP'!$C$51,'MSA-CAP'!$C$51) -> 0.22
C6: K052 | D6: =SUM('DAL359-CAP'!$C$52,'DAL358-CAP'!$C$52,'DRS-CAP'!$C$52,'DIA-CAP'!$C$52,'MSA-CAP'!$C$52) -> 1
A7: Temperaturen | B7: Zuluft | C7: =Auslegung!$D$34 -> 16
B8: Raum | C8: =Auslegung!$D$35 -> 26
A10: 1. Zugluftrisiko im Fußbodenbereich
B11: Lauflänge | C11: =xkr._vx!$L$24 -> 4.46
B12: Luftgeschwindigkeit, errechnet | C12: =xkr._vx!$N$24 -> 0.09578139013
B13: Luftgeschwindigkeit, gesetzt | C13: =IF(C12<0.05,0.05,C12) -> 0.09578139013
B14: lok. Temperaturdifferenz | C14: =($C$8-$C$7)*$D$5*(1/C11)^$D$6 -> 0.4932735426
B15: Absolute Temperatur | C15: =C8-C14 -> 25.50672646
B16: Zugluftrisiko | C16: =IF((34-C15)*((C13-0.05)^0.62)*(0.37*C13*$C$3+3.14)>100,100,IF((34-C15)*((C13-0.05)^0.62)*(0.37*C13*$C$3+3.14)<0,0,(34-C15)*((C13-0.05)^0.62)*(0.37*C13*$C$3+3.14))) -> 5.720514717
A18: 2. Zugluftrisiko nach Stoßpunkt
B19: Lauflänge | C19: =xkr._vx!$L$26 -> 3.22
B20: Luftgeschwindigkeit, errechnet | C20: =xkr._vx!$N$26 -> 0.1292385188
B21: Luftgeschwindigkeit, gesetzt | C21: =IF(C20<0.05,0.05,C20) -> 0.1292385188
B22: lok. Temperaturdifferenz | C22: =($C$8-$C$7)*$D$5*(1/C19)^$D$6 -> 0.6832298137
B23: Absolute Temperatur | C23: =C8-C22 -> 25.31677019
B24: Zugluftrisiko | C24: =IF((34-C23)*((C21-0.05)^0.62)*(0.37*C21*$C$3+3.14)>100,100,IF((34-C23)*((C21-0.05)^0.62)*(0.37*C21*$C$3+3.14)<0,0,(34-C23)*((C21-0.05)^0.62)*(0.37*C21*$C$3+3.14))) -> 9.11061994 | D24: =IF(C24<C32,C32,C24) -> 11.68999597
A26: 3. Zugluftrisiko nach Ablösen an X_kritisch
B27: Lauflänge | C27: =xkr._vx!$L$28 -> 2.777611784
B28: Luftgeschwindigkeit, errechnet | C28: =xkr._vx!N28 -> 0.1537957905
B29: Luftgeschwindigkeit, gesetzt | C29: =IF(C28<0.05,0.05,C28) -> 0.1537957905
B30: lok. Temperaturdifferenz | C30: =($C$8-$C$7)*$D$5*(1/C27)^$D$6 -> 0.7920473311
B31: Absolute Temperatur | C31: =C8-C30 -> 25.20795267
B32: Zugluftrisiko | C32: =IF((34-C31)*((C29-0.05)^0.62)*(0.37*C29*$C$3+3.14)>100,100,IF((34-C31)*((C29-0.05)^0.62)*(0.37*C29*$C$3+3.14)<0,0,(34-C31)*((C29-0.05)^0.62)*(0.37*C29*$C$3+3.14))) -> 11.68999597

Sheet xkr._vx (hidden)
A1: Geschwindigkeit im Strahl und kritischer Strahlweg | G1: Annahme: | H1: Winkel nach xkrit | I1: 45
A2: Achtung: Automatisierte Konstantenauswahl aus den "-CAP" Arbeitsblättern
A3: Konstanten | B3: K031 | C3: =SUM('DAL359-CAP'!C44,'DAL358-CAP'!C44,'DRS-CAP'!C44,'DIA-CAP'!C44,'MSA-CAP'!C44) -> 0.0007767 | E3: Konstanten: | F3: K041 | G3: =SUM('DAL359-CAP'!C48,'DAL358-CAP'!C48,'DRS-CAP'!C48,'DIA-CAP'!C48,'MSA-CAP'!C48) -> 0.006001 | I3: Konstanten | J3: K071 | K3: =SUM('DAL358-CAP'!C53,'MSA-CAP'!C53) -> 0.001058289474
B4: K032 | C4: =SUM('DAL359-CAP'!C45,'DAL358-CAP'!C45,'DRS-CAP'!C45,'DIA-CAP'!C45,'MSA-CAP'!C45) -> 1.07 | F4: K042 | G4: =SUM('DAL359-CAP'!C49,'DAL358-CAP'!C49,'DRS-CAP'!C49,'DIA-CAP'!C49,'MSA-CAP'!C49) -> 0.4918 | J4: K072 | K4: =SUM('DAL358-CAP'!C54,'MSA-CAP'!C54) -> 0.5
B5: K033 | C5: =SUM('DAL359-CAP'!C46,'DAL358-CAP'!C46,'DRS-CAP'!C46,'DIA-CAP'!C46,'MSA-CAP'!C46) -> 1 | F5: K043 | G5: =SUM('DAL359-CAP'!C50,'DAL358-CAP'!C50,'DRS-CAP'!C50,'DIA-CAP'!C50,'MSA-CAP'!C50) -> 0.9983 | J5: K081 | K5: =SUM('DAL358-CAP'!C55,'MSA-CAP'!C55) -> 0.002680263158
B6: K034 | C6: =SUM('DAL359-CAP'!C47,'DAL358-CAP'!C47,'DRS-CAP'!C47,'DIA-CAP'!C47,'MSA-CAP'!C47) -> 0.707 | F6: Dt0 | G6: =IF(Auslegung!$D$35-Auslegung!$D$34>0,Auslegung!$D$35-Auslegung!$D$34,ABS(Auslegung!$D$35-Auslegung!$D$34)) -> 10 | J6: K082 | K6: =SUM('DAL358-CAP'!C56,'MSA-CAP'!C56) -> 0.643
J7: K083 | K7: =SUM('DAL358-CAP'!C57,'MSA-CAP'!C57) -> 1.287
B8: Lauflänge | C8: Geschwindigkeit im Strahl horizontal | D8: Geschwindigkeit im Strahl vertikal | F8: kritischer Strahlweg Anzeige | G8: kritischer Strahlweg | H8: vertikaler Strahlweg | J8: Geschwindigkeit im Strahl an xKr
B9: L | C9: v0 | D9: v1 | F9: xkr._Anzeige | G9: xkr. | H9: y | J9: v0
B10: m | C10: m/s | D10: m/s | F10: m | G10: m | H10: m | J10: m/s
B11: 0.5 | C11: =$C$3*Auslegung!$D$32*(1/xkr._vx!B11)^xkr._vx!$C$5 -> 0.85437 | D11: =1/B11*$J$11 -> 0.8119294432 | F11: =IF($J$27<Auslegung!$D$39,$J$27,">Raumlänge") -> 1.052271238 | G11: =IF(J27<Auslegung!D39,xkr._vx!J27,Auslegung!D39) -> 1.052271238 | H11: =(Auslegung!$D$37-Auslegung!$D$38)/SIN(45/180*PI()) -> 1.725340546 | J11: =$C$3*Auslegung!$D$32*(1/xkr._vx!G11)^(xkr._vx!$C$5) -> 0.4059647216
B12: 0.6 | C12: =$C$3*Auslegung!$D$32*(1/xkr._vx!B12)^xkr._vx!$C$5 -> 0.711975 | D12: =1/B12*$J$11 -> 0.6766078693
B13: 0.7 | C13: =$C$3*Auslegung!$D$32*(1/xkr._vx!B13)^xkr._vx!$C$5 -> 0.6102642857 | D13: 0.5799496023
B14: 0.8 | C14: =$C$3*Auslegung!$D$32*(1/xkr._vx!B14)^xkr._vx!$C$5 -> 0.53398125 | D14: 0.507455902
B15: 0.9 | C15: =$C$3*Auslegung!$D$32*(1/xkr._vx!B15)^xkr._vx!$C$5 -> 0.47465 | D15: =1/B15*$J$11 -> 0.4510719129
B16: 1 | C16: =$C$3*Auslegung!$D$32*(1/xkr._vx!B16)^xkr._vx!$C$5 -> 0.427185 | D16: 0.4059647216
B17: 1.1 | C17: =$C$3*Auslegung!$D$32*(1/xkr._vx!B17)^xkr._vx!$C$5 -> 0.38835 | D17: 0.3690588378
B18: 1.2 | C18: =$C$3*Auslegung!$D$32*(1/xkr._vx!B18)^xkr._vx!$C$5 -> 0.3559875 | D18: 0.3383039347
B19: 1.3 | C19: =$C$3*Auslegung!$D$32*(1/xkr._vx!B19)^xkr._vx!$C$5 -> 0.3286038462 | D19: 0.3122805551
B20: 1.4 | C20: =$C$3*Auslegung!$D$32*(1/xkr._vx!B20)^xkr._vx!$C$5 -> 0.3051321429 | D20: =1/B20*$J$11 -> 0.2899748011
B21: 1.5 | C21: =$C$3*Auslegung!$D$32*(1/xkr._vx!B21)^xkr._vx!$C$5 -> 0.28479 | D21: 0.2706431477
B22: 1.6 | C22: =$C$3*Auslegung!$D$32*(1/xkr._vx!B22)^xkr._vx!$C$5 -> 0.266990625 | D22: 0.253727951 | I22: 1/2 Durchlassabstand | J22: hor. Lauflänge | K22: ver. Lauflänge | L22: ges. Lauflänge | M22: Geschw. Endpunkt | N22: Geschw. OK A-Ber.
B23: 1.7 | C23: =$C$3*Auslegung!$D$32*(1/xkr._vx!B23)^xkr._vx!$C$5 -> 0.2512852941 | D23: 0.2388027774 | E23: Betrachtung Strahlweg frei entlang der Decke bis Wandkante | J23: =Auslegung!$D$41 -> 0.91 | M23: =$C$3*Auslegung!$D$32*(1/xkr._vx!J23)^xkr._vx!$C$5 -> 0.4694340659
B24: 1.8 | C24: =$C$3*Auslegung!$D$32*(1/xkr._vx!B24)^xkr._vx!$C$5 -> 0.237325 | D24: 0.2255359564 | E24: Betrachtung Strahlweg von Wandkante bis Fußboden Aufenthaltsbereich | K24: =Auslegung!$D$37+0.5 -> 3.55 | L24: =K24+J23 -> 4.46 | N24: =$C$3*Auslegung!$D$32*(1/xkr._vx!L24)^xkr._vx!$C$5 -> 0.09578139013
B25: 1.9 | C25: =$C$3*Auslegung!$D$32*(1/xkr._vx!B25)^xkr._vx!$C$5 -> 0.2248342105 | D25: 0.2136656429 | E25: Betrachtung Strahlweg von Durchlassmitte bis Stoßpunkt | I25: =Auslegung!$D$42 -> 2 | M25: =$C$3*Auslegung!$D$32*(1/xkr._vx!I25)^xkr._vx!$C$5 -> 0.2135925
B26: 2 | C26: =$C$3*Auslegung!$D$32*(1/xkr._vx!B26)^xkr._vx!$C$5 -> 0.2135925 | D26: 0.2029823608 | E26: Betrachtung Freistrahl ab Stoßpunkt bis Oberkante Aufenthaltsbereich | K26: =Auslegung!$D$37-Auslegung!$D$38 -> 1.22 | L26: =K26+I25 -> 3.22 | N26: =$C$3*Auslegung!$D$32*(1/((xkr._vx!I25)+xkr._vx!$C$4*xkr._vx!K26))^xkr._vx!$C$5 -> 0.1292385188 | O26: =IF(N26<N28,N28,N26) -> 0.1537957905
B27: 2.1 | C27: =$C$3*Auslegung!$D$32*(1/xkr._vx!B27)^xkr._vx!$C$5 -> 0.2034214286 | D27: 0.1933165341 | E27: Betrachtung Strahlweg bis xkritisch | J27: =$G$3*Auslegung!$D$32^$G$5*(1/xkr._vx!$G$6^(xkr._vx!$G$4)) -> 1.052271238 | M27: =$C$3*Auslegung!$D$32*(1/xkr._vx!J27)^xkr._vx!$C$5 -> 0.4059647216
B28: 2.2 | C28: =$C$3*Auslegung!$D$32*(1/xkr._vx!B28)^xkr._vx!$C$5 -> 0.194175 | D28: 0.1845294189 | E28: Betrachtung von xkritisch bis Oberkante Aufenthaltsbereich | K28: =(Auslegung!$D$37-Auslegung!$D$38)/SIN($I$1/180*PI()) -> 1.725340546 | L28: =J27+K28 -> 2.777611784 | N28: =$C$3*Auslegung!$D$32*(1/xkr._vx!L28)^xkr._vx!$C$5 -> 0.1537957905
B29: 2.3 | C29: =$C$3*Auslegung!$D$32*(1/xkr._vx!B29)^xkr._vx!$C$5 -> 0.1857326087 | D29: 0.1765064007
B30: 2.4 | C30: =$C$3*Auslegung!$D$32*(1/xkr._vx!B30)^xkr._vx!$C$5 -> 0.17799375 | D30: 0.1691519673 | E30: Betrachtung Heizfall (Für MSA), Walzenstellung CD
B31: 2.5 | C31: =$C$3*Auslegung!$D$32*(1/xkr._vx!B31)^xkr._vx!$C$5 -> 0.170874 | D31: 0.1623858886 | K31: =Auslegung!$D$37-Auslegung!$D$38 -> 1.22 | L31: =K31+I30 -> 1.22 | M31: =$K$5*(Auslegung!$D$32^xkr._vx!$K$7)/(xkr._vx!G6^xkr._vx!K6) -> 2.051276563 | N31: =$C$3*Auslegung!$D$32*(1/((xkr._vx!I30+xkr._vx!K31)+xkr._vx!$C$4*xkr._vx!K31))^xkr._vx!$C$5 -> 0.1691553813
B32: 2.6 | C32: =$C$3*Auslegung!$D$32*(1/xkr._vx!B32)^xkr._vx!$C$5 -> 0.1643019231 | D32: 0.1561402775
B33: 2.7 | C33: =$C$3*Auslegung!$D$32*(1/xkr._vx!B33)^xkr._vx!$C$5 -> 0.1582166667 | D33: 0.1503573043
B34: 2.8 | C34: =$C$3*Auslegung!$D$32*(1/xkr._vx!B34)^xkr._vx!$C$5 -> 0.1525660714 | D34: 0.1449874006
B35: 2.9 | C35: =$C$3*Auslegung!$D$32*(1/xkr._vx!B35)^xkr._vx!$C$5 -> 0.1473051724 | D35: 0.139987835
B36: 3 | C36: =$C$3*Auslegung!$D$32*(1/xkr._vx!B36)^xkr._vx!$C$5 -> 0.142395 | D36: 0.1353215739 | J36: Maximalgeschw. | K36: ges. Lauflänge bis vmax | L36: Lauflänge vertikal | M36: Wandabstand
B37: 3.1 | C37: =$C$3*Auslegung!$D$32*(1/xkr._vx!B37)^xkr._vx!$C$5 -> 0.1378016129 | D37: 0.1309563618
B38: 3.2 | C38: =$C$3*Auslegung!$D$32*(1/xkr._vx!B38)^xkr._vx!$C$5 -> 0.1334953125 | D38: 0.1268639755 | F38: Berechnung Wandabstand bei vorgegebener Max. Geschw. | J38: =Auslegung!$D$33 -> 0.2 | K38: =1/(J38/($C$3*Auslegung!$D$32))^(1/xkr._vx!$C$5) -> 2.135925 | L38: =Auslegung!$D$37-Auslegung!$D$38 -> 1.22 | M38: =K38-L38 -> 0.915925
B39: 3.3 | C39: =$C$3*Auslegung!$D$32*(1/xkr._vx!B39)^xkr._vx!$C$5 -> 0.12945 | D39: 0.1230196126
B40: 3.4 | C40: =$C$3*Auslegung!$D$32*(1/xkr._vx!B40)^xkr._vx!$C$5 -> 0.1256426471 | D40: 0.1194013887
B41: 3.5 | C41: =$C$3*Auslegung!$D$32*(1/xkr._vx!B41)^xkr._vx!$C$5 -> 0.1220528571 | D41: 0.1159899205
B42: 3.6 | C42: =$C$3*Auslegung!$D$32*(1/xkr._vx!B42)^xkr._vx!$C$5 -> 0.1186625 | D42: 0.1127679782
B43: 3.7 | C43: =$C$3*Auslegung!$D$32*(1/xkr._vx!B43)^xkr._vx!$C$5 -> 0.1154554054 | D43: 0.109720195
B44: 3.8 | C44: =$C$3*Auslegung!$D$32*(1/xkr._vx!B44)^xkr._vx!$C$5 -> 0.1124171053 | D44: 0.1068328215
B45: 3.9 | C45: =$C$3*Auslegung!$D$32*(1/xkr._vx!B45)^xkr._vx!$C$5 -> 0.1095346154 | D45: 0.1040935184
B46: 4 | C46: =$C$3*Auslegung!$D$32*(1/xkr._vx!B46)^xkr._vx!$C$5 -> 0.10679625 | D46: 0.1014911804
B47: 4.1 | C47: =$C$3*Auslegung!$D$32*(1/xkr._vx!B47)^xkr._vx!$C$5 -> 0.1041914634 | D47: 0.09901578576
B48: 4.2 | C48: =$C$3*Auslegung!$D$32*(1/xkr._vx!B48)^xkr._vx!$C$5 -> 0.1017107143 | D48: 0.09665826705
B49: 4.3 | C49: =$C$3*Auslegung!$D$32*(1/xkr._vx!B49)^xkr._vx!$C$5 -> 0.09934534884 | D49: 0.09441040037
B50: 4.4 | C50: =$C$3*Auslegung!$D$32*(1/xkr._vx!B50)^xkr._vx!$C$5 -> 0.0970875 | D50: 0.09226470946
B51: 4.5 | C51: =$C$3*Auslegung!$D$32*(1/xkr._vx!B51)^xkr._vx!$C$5 -> 0.09493 | D51: 0.09021438258
B52: 4.6 | C52: =$C$3*Auslegung!$D$32*(1/xkr._vx!B52)^xkr._vx!$C$5 -> 0.09286630435 | D52: 0.08825320035
B53: 4.7 | C53: =$C$3*Auslegung!$D$32*(1/xkr._vx!B53)^xkr._vx!$C$5 -> 0.09089042553 | D53: 0.08637547268
B54: 4.8 | C54: =$C$3*Auslegung!$D$32*(1/xkr._vx!B54)^xkr._vx!$C$5 -> 0.088996875 | D54: 0.08457598367
B55: 4.9 | C55: =$C$3*Auslegung!$D$32*(1/xkr._vx!B55)^xkr._vx!$C$5 -> 0.08718061224 | D55: 0.08284994318
B56: 5 | C56: =$C$3*Auslegung!$D$32*(1/xkr._vx!B56)^xkr._vx!$C$5 -> 0.085437 | D56: 0.08119294432
B57: 5.1 | C57: =$C$3*Auslegung!$D$32*(1/xkr._vx!B57)^xkr._vx!$C$5 -> 0.08376176471 | D57: 0.0796009258
B58: 5.2 | C58: =$C$3*Auslegung!$D$32*(1/xkr._vx!B58)^xkr._vx!$C$5 -> 0.08215096154 | D58: 0.07807013877
B59: 5.3 | C59: =$C$3*Auslegung!$D$32*(1/xkr._vx!B59)^xkr._vx!$C$5 -> 0.0806009434 | D59: 0.07659711728
B60: 5.4 | C60: =$C$3*Auslegung!$D$32*(1/xkr._vx!B60)^xkr._vx!$C$5 -> 0.07910833333 | D60: 0.07517865215
B61: 5.5 | C61: =$C$3*Auslegung!$D$32*(1/xkr._vx!B61)^xkr._vx!$C$5 -> 0.07767 | D61: 0.07381176756
B62: 5.6 | C62: =$C$3*Auslegung!$D$32*(1/xkr._vx!B62)^xkr._vx!$C$5 -> 0.07628303571 | D62: 0.07249370029
B63: 5.7 | C63: =$C$3*Auslegung!$D$32*(1/xkr._vx!B63)^xkr._vx!$C$5 -> 0.07494473684 | D63: 0.07122188098
B64: 5.8 | C64: =$C$3*Auslegung!$D$32*(1/xkr._vx!B64)^xkr._vx!$C$5 -> 0.07365258621 | D64: 0.06999391752
B65: 5.9 | C65: =$C$3*Auslegung!$D$32*(1/xkr._vx!B65)^xkr._vx!$C$5 -> 0.07240423729 | D65: 0.06880757993
B66: 6 | C66: =$C$3*Auslegung!$D$32*(1/xkr._vx!B66)^xkr._vx!$C$5 -> 0.0711975 | D66: 0.06766078693

Sheet Eingabe (hidden)
E2: 1 | F2: = Produktgruppe emcoair
F3: KSW | G3: Artikel
G4: 1 | H4: Schlitzanzahl | I4: 1 Schlitz
G5: 2 | I5: 2 Schlitze
G6: X | I6: Sonder
H7: K | I7: Funktion | J7: Zuluft / Abluft Kombination
H8: Z | J8: Zuluft
H9: A | J9: Abluft
I10: 0500 | J10: Breite
I11: 0600
I12: 0700
I13: 0800
I14: 0900
I15: 1000
I16: 1100
I17: 1200
J18: A | K18: Werkstoff | L18: Aluminium
K21: 9010 | L21: Oberfläche Luftdurchlass | M21: RAL 9010 glänzend
K22: E6C0 | M22: Aluminium naturfarbig eloxiert
K23: XXXX | M23: RAL-Ton **** glänzend
K24: SSSS | M24: Sonderlackierung
L25: S | M25: Farbe Luftlenkelement | N25: schwarz
L26: W | N26: weiß
L27: G | N27: grau
M28: C | N28: Luftlenkeinstellung | O28: DE
M29: S | O29: Sonder
N30: V | O30: Werkstoff Anschlusskasten | P30: Stahl verzinkt
N31: 0 | P31: ohne Anschlusskasten
O32: 1 | P32: Drossel | Q32: mit FBD
O33: 0 | Q33: ohne FBD
P34: B1 | Q34: Innenauskleidung | R34: Dämmung Baustoffklasse B1
P35: A2 | R35: Dämmung Baustoffklasse A2
Q36: 1 | R36: Stutzenanzahl | S36: 1 Stutzen
Q37: x | S37: Sonder
R38: 100 | S38: Stutzendurchmesser | T38: 98 mm
R39: 080 | T39: 78 mm
R40: xxx | T40: Sonder
E41: =E2 -> 1 | F41: =F3 -> KSW | G41: =G4 -> 1 | H41: 1 | I41: =I10 -> 0500 | J41: =J18 -> A | K41: =K21 -> 9010 | L41: =L25 -> S | M41: =M28 -> C | N41: =N30 -> V | O41: =O32 -> 1 | P41: =P34 -> B1 | Q41: =Q36 -> 1 | R41: =R38 -> 100
A45: Schwarz | B45: S
A46: weiß | B46: W
A47: naturfarbig eloxiert | B47: K
A48: weiß (RAL 9010) bepulvert | B48: L
A49: Anschlusskasten ohne Mengeneinstellung | B49: AK1
A50: Anschlusskasten mit Mengeneinstellung* | B50: AK2

Sheet DAL359-CAP (hidden)
A1: Übergabedaten: | C1: Gewählter Durchlass | E1: =CONCATENATE(Auslegung!$D$12,Auslegung!$D$25,"d") -> DAL 358800d
C2: Volumenstrom | E2: =Auslegung!$D$32 -> 550
C3: Temperaturdifferenz | E3: =Auslegung!$D$35-Auslegung!$D$34 -> 10
C4: DAL 359 | D4: DAL 359 | E4: DAL 359 | F4: DAL 359 | G4: DAL 359 | H4: DAL 359 | I4: DAL 359 | J4: DAL 359 | K4: DAL 359
C5: 300 | D5: 400 | E5: 400 | F5: 500 | G5: 500 | H5: 600 | I5: 600 | J5: 800 | K5: 800
C6: =CONCATENATE(C4,C5,"d") -> DAL 359300d | D6: =CONCATENATE(D4,D5,"d") -> DAL 359400d | E6: =CONCATENATE(E4,E5,"f") -> DAL 359400f | F6: =CONCATENATE(F4,F5,"d") -> DAL 359500d | G6: =CONCATENATE(G4,G5,"f") -> DAL 359500f | H6: =CONCATENATE(H4,H5,"d") -> DAL 359600d | I6: =CONCATENATE(I4,I5,"f") -> DAL 359600f | J6: =CONCATENATE(J4,J5,"d") -> DAL 359800d | K6: =CONCATENATE(K4,K5,"f") -> DAL 359800f | L6: 1
C7: Deckenbündig | D7: Deckenbündig | E7: freihängend | F7: Deckenbündig | G7: freihängend | H7: Deckenbündig | I7: freihängend | J7: Deckenbündig | K7: freihängend | L7: 2
A8: Konstante | B8: K011 | C8: 0.001356439645 | D8: 0.000267 | E8: 0.000263 | F8: 0.0001336 | G8: 9.85e-05 | H8: 7.354e-05 | I8: 4.16e-05 | J8: 1.953e-05 | K8: 9.5e-06 | L8: 3
B9: K012 | C9: 2.02153962 | D9: 1.997 | E9: 2 | F9: 1.955 | G9: 2 | H9: 1.922 | I9: 2 | J9: 1.908 | K9: 2 | L9: 4
B10: K021 | C10: -102.888569 | D10: -113.4 | E10: -113.83 | F10: -125.2 | G10: -127.15 | H10: -142.406 | I10: -119.65 | J10: -142.9 | K10: -142.42 | L10: 5
B11: K022 | C11: 65.23416077 | D11: 58.16 | E11: 58.34 | F11: 58.87 | G11: 59.54 | H11: 63.15 | I11: 53.87 | J11: 56.58 | K11: 56.47 | L11: 6
B12: K031 | C12: 0.0032 | D12: 0.002905 | E12: 0.00174 | F12: 0.002346 | G12: 0.00137 | H12: 0.001188 | I12: 0.0009 | J12: 0.0007618 | K12: 0.000418 | L12: 7
B13: K032 | C13: 1 | D13: 1 | E13: 1 | F13: 1 | G13: 1 | H13: 1 | I13: 1 | J13: 1 | K13: 1 | L13: 8
B14: K033 | C14: 1.087 | D14: 1.087 | E14: 1 | F14: 1.087 | G14: 1 | H14: 1.087 | I14: 1.158 | J14: 1.087 | K14: 1 | L14: 9
B15: K034 | C15: 0.707 | D15: 0.707 | F15: 0.707 | H15: 0.707 | J15: 0.707 | L15: 10
B16: K041 | C16: 0.0241 | D16: 0.02087 | F16: 0.01758 | H16: 0.008908 | J16: 0.006043 | L16: 11
B17: K042 | C17: 0.5 | D17: 0.5 | F17: 0.5 | H17: 0.5 | J17: 0.5 | L17: 12
B18: K043 | C18: 1 | D18: 1 | F18: 1 | H18: 1 | J18: 1 | L18: 13
B19: K051 | D19: 0.163 | E19: 0.163 | F19: 0.213 | G19: 0.213 | H19: 0.326 | I19: 0.326 | J19: 0.48 | K19: 0.48 | L19: 14
B20: K052 | D20: 1.207 | E20: 1.207 | F20: 1.207 | G20: 1.207 | H20: 1.207 | I20: 1.207 | J20: 1.207 | K20: 1.207 | L20: 15
B21: K071 | D21: 0 | F21: 0 | H21: 0 | J21: 0 | L21: 16
B22: K072 | D22: 0 | F22: 0 | H22: 0 | J22: 0 | L22: 17
B23: K081 | D23: 0 | F23: 0 | H23: 0 | J23: 0 | L23: 18
B24: K082 | D24: 0 | F24: 0 | H24: 0 | J24: 0 | L24: 19
B25: K083 | D25: 0 | F25: 0 | H25: 0 | J25: 0 | L25: 20
B26: K091 | D26: 0 | F26: 0 | H26: 0 | J26: 0 | L26: 21
B27: K092 | D27: 1500 | F27: 2040 | H27: 3130 | J27: 8960 | L27: 22
B28: K093 | D28: 3 | F28: 3 | H28: 3 | J28: 3 | L28: 23
B29: K094 | D29: 0 | F29: 0 | H29: 0 | J29: 0 | L29: 24
B30: K101 | D30: -0.693 | F30: -0.693 | H30: -0.693 | J30: -0.693 | L30: 25
B31: K102 | D31: 33 | F31: 33 | H31: 33 | J31: 33 | L31: 26
B32: K103 | D32: 0.06 | F32: 0.075 | H32: 0.095 | J32: 0.12 | L32: 27
B33: K104 | D33: 0.01 | F33: 0.01 | H33: 0.01 | J33: 0.01 | L33: 28
B34: K021Abluft | C34: -99.55825854 | D34: -107.2995058 | E34: -107.2995058 | F34: =-126.937694154299-3 -> -129.9376942 | G34: =-126.937694154299-3 -> -129.9376942 | H34: -81.65209245 | I34: -81.65209245 | L34: 29
B35: K022Abluft | C35: 62.06471087 | D35: 57.54374641 | E35: 57.54374641 | F35: 61.55372798 | G35: 61.55372798 | H35: 41.93173875 | I35: 41.93173875 | L35: 30
B36: K011Abluft | C36: 0.001988136094 | D36: 0.0003085712691 | E36: 0.0003085712691 | F36: 6.789825018e-05 | G36: 6.789825018e-05 | H36: 4.721408979e-05 | I36: 4.721408979e-05 | L36: 31
B37: K012Abluft | C37: 1.951995631 | D37: 1.964418542 | E37: 1.964418542 | F37: 2.07424918 | G37: 2.07424918 | H37: 2.008796827 | I37: 2.008796827 | L37: 32
C38: =IFERROR(HLOOKUP($E$1,$C$6:$K$33,L6,FALSE),"") -> 
C39: =IFERROR(HLOOKUP($E$1,$C$6:$K$33,L7,FALSE),"") -> 
A40: Rückgabe | B40: K011
B41: K012
B42: K021
B43: K022
B44: K031
B45: K032
B46: K033
B47: K034
B48: K041
B49: K042
B50: K043
B51: K051
B52: K052
B53: K071
B54: K072
B55: K081
B56: K082
B57: K083
B58: K091
B59: K092
B60: K093
B61: K094
B62: K101
B63: K102
B64: K103
B65: K104
B66: K021Abluft | C66: =IFERROR(HLOOKUP($E$1,$C$6:$K$35,L34,FALSE),"") -> 
B67: K022Abluft | C67: =IFERROR(HLOOKUP($E$1,$C$6:$K$35,L35,FALSE),"") -> 
B68: K011Abluft | C68: =IFERROR(HLOOKUP($E$1,$C$6:$K$37,L36,FALSE),"") -> 
B69: K012Abluft | C69: =IFERROR(HLOOKUP($E$1,$C$6:$K$37,L37,FALSE),"") -> 

Sheet DAL358-CAP (hidden)
A1: Übergabedaten: | C1: Gewählter Durchlass | E1: =CONCATENATE(Auslegung!$D$12,Auslegung!$D$25,"d") -> DAL 358800d
C2: Volumenstrom | E2: =Auslegung!$D$32 -> 550
C3: Temperaturdifferenz | E3: =Auslegung!$D$35-Auslegung!$D$34 -> 10
C4: DAL 358 | D4: DAL 358 | E4: DAL 358 | F4: DAL 358 | G4: DAL 358 | H4: DAL 358 | I4: DAL 358 | J4: DAL 358 | K4: DAL 358
C5: 300 | D5: 400 | E5: 400 | F5: 500 | G5: 500 | H5: 600 | I5: 600 | J5: 800 | K5: 800
C6: =CONCATENATE(C4,C5,"d") -> DAL 358300d | D6: =CONCATENATE(D4,D5,"d") -> DAL 358400d | E6: =CONCATENATE(E4,E5,"f") -> DAL 358400f | F6: =CONCATENATE(F4,F5,"d") -> DAL 358500d | G6: =CONCATENATE(G4,G5,"f") -> DAL 358500f | H6: =CONCATENATE(H4,H5,"d") -> DAL 358600d | I6: =CONCATENATE(I4,I5,"f") -> DAL 358600f | J6: =CONCATENATE(J4,J5,"d") -> DAL 358800d | K6: =CONCATENATE(K4,K5,"f") -> DAL 358800f | L6: 1
C7: Deckenbündig | D7: Deckenbündig | E7: freihängend | F7: Deckenbündig | G7: freihängend | H7: Deckenbündig | I7: freihängend | J7: Deckenbündig | K7: freihängend | L7: 2 | N7: A1/F6
A8: Konstante | B8: K011 | C8: 0.001511327703 | D8: 0.00286 | E8: 0.00286 | F8: 0.00175 | G8: 0.00175 | H8: 0.000303 | I8: 0.000303 | J8: 0.000301 | K8: 0.000301 | L8: 3 | N8: 0.00252
B9: K012 | C9: 1.994167583 | D9: 1.67 | E9: 1.67 | F9: 1.62 | G9: 1.62 | H9: 1.77 | I9: 1.77 | J9: 1.68 | K9: 1.68 | L9: 4 | N9: 1.92
B10: K021 | C10: -65.68376336 | D10: -97.77 | E10: -97.77 | F10: -124.54 | G10: -124.54 | H10: -136.3 | I10: -136.3 | J10: -141.4 | K10: -141.4 | L10: 5 | N10: -75.6
B11: K022 | C11: 48.46618874 | D11: 56.79 | E11: 56.79 | F11: 62.47 | G11: 62.47 | H11: 63.1 | I11: 63.1 | J11: 62.47 | K11: 62.47 | L11: 6 | N11: 53.72
B12: K031 | C12: 0.0015 | D12: 0.001311 | E12: 0.00103 | F12: 0.001081 | G12: 0.000875 | H12: 0.0009091 | I12: 0.000707 | J12: 0.0007767 | K12: 0.000622 | L12: 7 | N12: 0.005027
B13: K032 | C13: 1.07 | D13: 1.07 | E13: 1 | F13: 1.07 | G13: 1 | H13: 1.07 | I13: 1 | J13: 1.07 | K13: 1 | L13: 8 | N13: 5.8
B14: K033 | C14: 1 | D14: 1 | E14: 1.07 | F14: 1 | G14: 1.07 | H14: 1 | I14: 1.07 | J14: 1 | K14: 1.07 | L14: 9 | N14: 0.5
B15: K034 | C15: 0.707 | D15: 0.707 | F15: 0.707 | H15: 0.707 | J15: 0.707 | L15: 10 | N15: 0.707
B16: K041 | C16: 0.0178 | D16: 0.01762 | F16: 0.01166 | H16: 0.01164 | J16: 0.006001 | L16: 11 | N16: 0.0882
B17: K042 | C17: 0.4968 | D17: 0.4968 | F17: 0.5144 | H17: 0.5211 | J17: 0.4918 | L17: 12 | N17: 0.643
B18: K043 | C18: 1.014 | D18: 1.014 | F18: 1.008 | H18: 0.9626 | J18: 0.9983 | L18: 13 | N18: 1.287
B19: K051 | D19: 0.102 | E19: 0.102 | F19: 0.132 | G19: 0.132 | H19: 0.18 | I19: 0.18 | J19: 0.22 | K19: 0.22 | L19: 14 | N19: 0.04966
B20: K052 | D20: 1 | E20: 1 | F20: 1 | G20: 1 | H20: 1 | I20: 1 | J20: 1 | K20: 1 | L20: 15 | N20: 0.5
B21: K071 | C21: 0.008043 | D21: =N21*(1/2) -> 0.0040215 | F21: =N21*(1/3.2) -> 0.0025134375 | H21: =N21*(1/5.2) -> 0.001546730769 | J21: =N21*(1/7.6) -> 0.001058289474 | L21: 16 | N21: 0.008043 | O21: Heizfallkonstanten SAL 35 aus CAP
B22: K072 | C22: 0.5 | D22: 0.5 | F22: 0.5 | H22: 0.5 | J22: 0.5 | L22: 17 | N22: 0.5
B23: K081 | C23: 0.02037 | D23: =N23*(1/2) -> 0.010185 | F23: =N23*(1/3.2) -> 0.006365625 | H23: =N23*(1/5.2) -> 0.003917307692 | J23: =N23*(1/7.6) -> 0.002680263158 | L23: 18 | N23: 0.02037
B24: K082 | C24: 0.643 | D24: 0.643 | F24: 0.643 | H24: 0.643 | J24: 0.643 | L24: 19 | N24: 0.643
B25: K083 | C25: 1.287 | D25: 1.287 | F25: 1.287 | H25: 1.287 | J25: 1.287 | L25: 20 | N25: 1.287
B26: K091 | D26: 0 | F26: 0 | H26: 0 | J26: 0 | L26: 21 | N26: 0
B27: K092 | D27: 1500 | F27: 2040 | H27: 3130 | J27: 8960 | L27: 22 | N27: 47
B28: K093 | D28: 3 | F28: 3 | H28: 3 | J28: 3 | L28: 23 | N28: 2.5
B29: K094 | D29: 0 | F29: 0 | H29: 0 | J29: 0 | L29: 24 | N29: 0
B30: K101 | D30: -0.693 | F30: -0.693 | H30: -0.693 | J30: -0.693 | L30: 25 | N30: -0.693
B31: K102 | D31: 33 | F31: 33 | H31: 33 | J31: 33 | L31: 26 | N31: 24
B32: K103 | D32: 0.06 | F32: 0.075 | H32: 0.095 | J32: 0.12 | L32: 27 | N32: 0.007
B33: K104 | D33: 0.01 | F33: 0.01 | H33: 0.01 | J33: 0.01 | L33: 28 | N33: 0.01
B34: K021Abluft | C34: -40.11806461 | D34: -83.59957034 | E34: -83.59957034 | F34: -90.01374618 | G34: -90.01374618 | H34: -88.48537161 | I34: -88.48537161 | L34: 29
B35: K022Abluft | C35: 36.37380994 | D35: 50.02460371 | E35: 50.02460371 | F35: 49.03431841 | G35: 49.03431841 | H35: 45.75168963 | I35: 45.75168963 | L35: 30
B36: K011Abluft | C36: 0.002277321837 | D36: 0.0007713241902 | E36: 0.0007713241902 | F36: 0.0001192110798 | G36: 0.0001192110798 | H36: 0.0001811536471 | I36: 0.0001811536471 | L36: 31
B37: K012Abluft | C37: 1.970170485 | D37: 1.891806442 | E37: 1.891806442 | F37: 2.04687571 | G37: 2.04687571 | H37: 1.843564755 | I37: 1.843564755 | L37: 32
C38: =IFERROR(HLOOKUP($E$1,$C$6:$K$33,L6,FALSE),"") -> DAL 358800d
C39: =IFERROR(HLOOKUP($E$1,$C$6:$K$33,L7,FALSE),"") -> Deckenbündig
A40: Rückgabe | B40: K011 | C40: 0.000301
B41: K012 | C41: 1.68 | J41: 0.0066795 | K41: =0.0508/J41 -> 7.605359683
B42: K021 | C42: -141.4
B43: K022 | C43: 62.47
B44: K031 | C44: 0.0007767
B45: K032 | C45: 1.07
B46: K033 | C46: 1
B47: K034 | C47: 0.707
B48: K041 | C48: 0.006001
B49: K042 | C49: 0.4918
B50: K043 | C50: 0.9983
B51: K051 | C51: 0.22
B52: K052 | C52: 1
B53: K071 | C53: 0.001058289474
B54: K072 | C54: 0.5
B55: K081 | C55: 0.002680263158
B56: K082 | C56: 0.643
B57: K083 | C57: 1.287
B58: K091 | C58: 0
B59: K092 | C59: 8960
B60: K093 | C60: 3
B61: K094 | C61: 0
B62: K101 | C62: -0.693
B63: K102 | C63: 33
B64: K103 | C64: 0.12
B65: K104 | C65: 0.01
B66: K021Abluft | C66: =IFERROR(HLOOKUP($E$1,$C$6:$K$35,L34,FALSE),"") -> 0
B67: K022Abluft | C67: =IFERROR(HLOOKUP($E$1,$C$6:$K$35,L35,FALSE),"") -> 0
B68: K011Abluft | C68: =IFERROR(HLOOKUP($E$1,$C$6:$K$37,L36,FALSE),"") -> 0
B69: K012Abluft | C69: =IFERROR(HLOOKUP($E$1,$C$6:$K$37,L37,FALSE),"") -> 0

Sheet DRS-CAP (hidden)
A1: Übergabedaten: | C1: Gewählter Durchlass | E1: =CONCATENATE(Auslegung!$D$12,Auslegung!$D$25,"d") -> DAL 358800d
C2: Volumenstrom | E2: =Auslegung!$D$32 -> 550
C3: Temperaturdifferenz | E3: =Auslegung!$D$35-Auslegung!$D$34 -> 10
C4: DRS | D4: DRS | E4: DRS | F4: DRS | G4: DRS | H4: DRS | I4: DRS | J4: DRS | K4: DRS | L4: DRS | M4: DRS | N4: DRS | O4: 1
C5: 100 | D5: 100 | E5: 125 | F5: 125 | G5: 180 | H5: 180 | I5: 250 | J5: 250 | K5: 315 | L5: 315 | M5: 355 | N5: 355 | O5: 2
C6: =CONCATENATE(C4,C5,"d") -> DRS100d | D6: =CONCATENATE(D4,D5,"f") -> DRS100f | E6: =CONCATENATE(E4,E5,"d") -> DRS125d | F6: =CONCATENATE(F4,F5,"f") -> DRS125f | G6: =CONCATENATE(G4,G5,"d") -> DRS180d | H6: =CONCATENATE(H4,H5,"f") -> DRS180f | I6: =CONCATENATE(I4,I5,"d") -> DRS250d | J6: =CONCATENATE(J4,J5,"f") -> DRS250f | K6: =CONCATENATE(K4,K5,"d") -> DRS315d | L6: =CONCATENATE(L4,L5,"f") -> DRS315f | M6: =CONCATENATE(M4,M5,"d") -> DRS355d | N6: =CONCATENATE(N4,N5,"f") -> DRS355f | O6: 1
C7: Deckenbündig | D7: freihängend | E7: Deckenbündig | F7: freihängend | G7: Deckenbündig | H7: freihängend | I7: Deckenbündig | J7: freihängend | K7: Deckenbündig | L7: freihängend | M7: Deckenbündig | N7: freihängend | O7: 2
A8: Konstante | B8: K011 | C8: 0.006209 | D8: 0.005 | E8: 0.002931 | F8: 0.0025 | G8: 0.0007703 | H8: 0.00075 | I8: 0.0001771 | J8: 0.000222 | K8: 0.0001275 | L8: 9.38e-05 | M8: 0.0001774 | N8: 5.56e-05 | O8: 3
B9: K012 | C9: 1.944 | D9: 2 | E9: 1.97 | F9: 2 | G9: 1.989 | H9: 2 | I9: 2.035 | J9: 2 | K9: 1.947 | L9: 2 | M9: 1.837 | N9: 2 | O9: 4
B10: K021 | C10: -63.18 | D10: -76.2 | E10: -84.65 | F10: -84.94 | G10: -124.9 | H10: -103.77 | I10: -125 | J10: -133.61 | K10: -131.8 | L10: -124.86 | M10: -140 | N10: -138.8 | O10: 5
B11: K022 | C11: 49.43 | D11: 54.83 | E11: 56.22 | F11: 56.47 | G11: 67.27 | H11: 58.13 | I11: 60.59 | J11: 64.03 | K11: 59.05 | L11: 56.79 | M11: 59.15 | N11: 58.6 | O11: 6
B12: K031 | C12: 0.003769 | D12: 0.002422 | E12: 0.003267 | F12: 0.002037 | G12: 0.002407 | H12: 0.001533 | I12: 0.001878 | J12: 0.001183 | K12: 0.001599 | L12: 0.000987 | M12: 0.001405 | N12: 0.0009 | O12: 7
B13: K032 | C13: 1.3 | D13: 1.61 | E13: 1.3 | F13: 1.61 | G13: 1.3 | H13: 1.61 | I13: 1.3 | J13: 1.61 | K13: 1.3 | L13: 1.61 | M13: 1.3 | N13: 1.61 | O13: 8
B14: K033 | C14: 1 | D14: 1 | E14: 1 | F14: 1 | G14: 1 | H14: 1 | I14: 1 | J14: 1 | K14: 1 | L14: 1 | M14: 1 | N14: 1 | O14: 9
B15: K034 | C15: 0.707 | E15: 0.707 | G15: 0.707 | I15: 0.707 | K15: 0.707 | M15: 0.707 | O15: 10
B16: K041 | C16: 0.1356 | E16: 0.0613 | G16: 0.03004 | I16: 0.02274 | K16: 0.007983 | M16: 0.005762 | O16: 11
B17: K042 | C17: 0.4885 | E17: 0.4795 | G17: 0.5064 | I17: 0.4642 | K17: 0.4829 | M17: 0.5092 | O17: 12
B18: K043 | C18: 0.9818 | E18: 1.035 | G18: 1.027 | I18: 0.9233 | K18: 1.01 | M18: 1.023 | O18: 13
B19: K051 | C19: 0.04 | E19: 0.051 | G19: 0.1 | I19: 0.13 | K19: 0.15 | M19: 0.16 | O19: 14
B20: K052 | C20: 1 | E20: 0.959 | G20: 1 | I20: 1.016 | K20: 1 | M20: 1.016 | O20: 15
B21: K071 | C21: 0 | E21: 0 | G21: 0 | I21: 0 | K21: 0 | M21: 0 | O21: 16
B22: K072 | C22: 0 | E22: 0 | G22: 0 | I22: 0 | K22: 0 | M22: 0 | O22: 17
B23: K081 | C23: 0 | E23: 0 | G23: 0 | I23: 0 | K23: 0 | M23: 0 | O23: 18
B24: K082 | C24: 0 | E24: 0 | G24: 0 | I24: 0 | K24: 0 | M24: 0 | O24: 19
B25: K083 | C25: 0 | E25: 0 | G25: 0 | I25: 0 | K25: 0 | M25: 0 | O25: 20
B26: K091 | C26: 0 | E26: 0 | G26: 0 | I26: 0 | K26: 0 | M26: 0 | O26: 21
B27: K092 | C27: 167 | E27: 240 | G27: 960 | I27: 2667 | K27: 6000 | M27: 8560 | O27: 22
B28: K093 | C28: 3 | E28: 3 | G28: 3 | I28: 3 | K28: 3 | M28: 3 | O28: 23
B29: K094 | C29: 0 | E29: 0 | G29: 0 | I29: 0 | K29: 0 | M29: 0 | O29: 24
B30: K101 | C30: -0.693 | E30: -0.693 | G30: -0.693 | I30: -0.693 | K30: -0.693 | M30: -0.693 | O30: 25
B31: K102 | C31: 33 | E31: 33 | G31: 33 | I31: 33 | K31: 33 | M31: 33 | O31: 26
B32: K103 | C32: 0.023 | E32: 0.027 | G32: 0.041 | I32: 0.056 | K32: 0.073 | M32: 0.081 | O32: 27
B33: K104 | C33: 0.01 | E33: 0.01 | G33: 0.01 | I33: 0.01 | K33: 0.01 | M33: 0.01 | O33: 28
B34: K021Abluft | C34: -67.26442573 | D34: -67.26442573 | E34: -88.57550674 | F34: -88.57550674 | G34: -155.0168219 | H34: -155.0168219 | I34: -175.5612171 | J34: -175.5612171 | K34: -37.53352652 | L34: -37.53352652 | M34: -131.7782384 | N34: -131.7782384 | O34: 29
B35: K022Abluft | C35: 54.7133126 | D35: 54.7133126 | E35: 59.99660885 | F35: 59.99660885 | G35: 78.17740588 | H35: 78.17740588 | I35: 79.12023862 | J35: 79.12023862 | K35: 24.95325673 | L35: 24.95325673 | M35: 58.54965643 | N35: 58.54965643 | O35: 30
B36: K011Abluft | C36: 0.00528177947 | D36: 0.00528177947 | E36: 0.002472103525 | F36: 0.002472103525 | G36: 0.0003529269748 | H36: 0.0003529269748 | I36: 0.0002489870405 | J36: 0.0002489870405 | K36: 1.911662431e-05 | L36: 1.911662431e-05 | M36: 0.0001256191282 | N36: 0.0001256191282
B37: K012Abluft | C37: 1.98099345 | D37: 1.98099345 | E37: 1.926556813 | F37: 1.926556813 | G37: 2.002878193 | H37: 2.002878193 | I37: 1.896284986 | J37: 1.896284986 | K37: 2.163273451 | L37: 2.163273451 | M37: 1.860647181 | N37: 1.860647181
C38: =IFERROR(HLOOKUP($E$1,$C$6:$N$33,O6,FALSE),"") -> 
A40: Rückgabe | B40: K011
B41: K012 | C41: =IFERROR(HLOOKUP($E$1,$C$6:$N$33,O9,FALSE),"") -> 
B42: K021
B43: K022
B44: K031
B45: K032
B46: K033
B47: K034
B48: K041
B49: K042
B50: K043
B51: K051
B52: K052
B53: K071
B54: K072
B55: K081
B56: K082
B57: K083
B58: K091
B59: K092
B60: K093 | C60: =IFERROR(HLOOKUP($E$1,$C$6:$N$33,O28,FALSE),"") -> 
B61: K094
B62: K101
B63: K102
B64: K103
B65: K104
B66: K021Abluft | C66: =IFERROR(HLOOKUP($E$1,$C$6:$N$35,O34,FALSE),"") -> 
B67: K022Abluft | C67: =IFERROR(HLOOKUP($E$1,$C$6:$N$37,O35,FALSE),"") -> 
B68: K011Abluft | C68: =IFERROR(HLOOKUP($E$1,$C$6:$N$37,O36,FALSE),"") -> 
B69: K012Abluft

Sheet DIA-CAP (hidden)
A1: Übergabedaten: | C1: Gewählter Durchlass | E1: =CONCATENATE(Auslegung!$D$12,Auslegung!$D$25,"d") -> DAL 358800d
C2: Volumenstrom | E2: =Auslegung!$D$32 -> 550
C3: Temperaturdifferenz | E3: =Auslegung!$D$35-Auslegung!$D$34 -> 10
C4: DIA | D4: DIA | E4: DIA | F4: DIA | G4: DIA | H4: DIA | I4: DIA | J4: DIA | K4: DIA | L4: DIA | M4: DIA | N4: DIA | O4: DIA
C5: 100 | D5: 100 | E5: 125 | F5: 125 | G5: 180 | H5: 180 | I5: 250 | J5: 250 | K5: 315 | L5: 315 | M5: 355 | N5: 355 | O5: 100 | P5: 125 | Q5: 180 | R5: 250 | S5: 315 | T5: 355
C6: =CONCATENATE(C4,C5,"d") -> DIA100d | D6: =CONCATENATE(D4,D5,"f") -> DIA100f | E6: =CONCATENATE(E4,E5,"d") -> DIA125d | F6: =CONCATENATE(F4,F5,"f") -> DIA125f | G6: =CONCATENATE(G4,G5,"d") -> DIA180d | H6: =CONCATENATE(H4,H5,"f") -> DIA180f | I6: =CONCATENATE(I4,I5,"d") -> DIA250d | J6: =CONCATENATE(J4,J5,"f") -> DIA250f | K6: =CONCATENATE(K4,K5,"d") -> DIA315d | L6: =CONCATENATE(L4,L5,"f") -> DIA315f | M6: =CONCATENATE(M4,M5,"d") -> DIA355d | N6: =CONCATENATE(N4,N5,"f") -> DIA355f | U6: 1
C7: Deckenbündig | D7: freihängend | E7: Deckenbündig | F7: freihängend | G7: Deckenbündig | H7: freihängend | I7: Deckenbündig | J7: freihängend | K7: Deckenbündig | L7: freihängend | M7: Deckenbündig | N7: freihängend | U7: 2
A8: Konstante | B8: K011 | C8: 0.006209 | D8: 0.005 | E8: 0.002931 | F8: 0.0025 | G8: 0.0007703 | H8: 0.00075 | I8: 0.0001771 | J8: 0.000222 | K8: 0.0001275 | L8: 9.38e-05 | M8: 0.0001774 | N8: 5.56e-05 | O8: Verwendung des DRS-Konstantensatzes, | U8: 3
B9: K012 | C9: 1.944 | D9: 2 | E9: 1.97 | F9: 2 | G9: 1.989 | H9: 2 | I9: 2.035 | J9: 2 | K9: 1.947 | L9: 2 | M9: 1.837 | N9: 2 | O9: Erhöhung des Druckverlustes um Faktor 1,1 bei gleichem Volumenstrom | U9: 4
B10: K021 | C10: -60.68 | D10: -73.7 | E10: -82.15 | F10: -82.44 | G10: -122.4 | H10: -101.27 | I10: -122.5 | J10: -131.11 | K10: -129.3 | L10: -122.36 | M10: -137.5 | N10: -133.8 | O10: Verwendung des DRS-Konstantensatzes, | U10: 5
B11: K022 | C11: 49.43 | D11: 54.83 | E11: 56.22 | F11: 56.47 | G11: 67.27 | H11: 58.13 | I11: 60.59 | J11: 64.03 | K11: 59.05 | L11: 56.79 | M11: 59.15 | N11: 58.6 | O11: Erhöhung des Schallleistungspegels um 2,5 dB | U11: 6
B12: K031 | C12: 0.003769 | D12: 0.002422 | E12: 0.003267 | F12: 0.002037 | G12: 0.002407 | H12: 0.001533 | I12: 0.001878 | J12: 0.001183 | K12: 0.001599 | L12: 0.000987 | M12: 0.001405 | N12: 0.0009 | U12: 7
B13: K032 | C13: 1.3 | D13: 1.61 | E13: 1.3 | F13: 1.61 | G13: 1.3 | H13: 1.61 | I13: 1.3 | J13: 1.61 | K13: 1.3 | L13: 1.61 | M13: 1.3 | N13: 1.61 | U13: 8
B14: K033 | C14: 1 | D14: 1 | E14: 1 | F14: 1 | G14: 1 | H14: 1 | I14: 1 | J14: 1 | K14: 1 | L14: 1 | M14: 1 | N14: 1 | O14: Hinweise: | P14: Korrektur Totaldruck in Arbeitsblatt "Grunddaten" | U14: 9
B15: K034 | C15: 0.707 | E15: 0.707 | G15: 0.707 | I15: 0.707 | K15: 0.707 | M15: 0.707 | P15: Korrektur Schallleistungspegel hier durchgeführt | U15: 10
B16: K041 | C16: 0.1356 | E16: 0.0613 | G16: 0.03004 | I16: 0.02274 | K16: 0.007983 | M16: 0.005762 | U16: 11
B17: K042 | C17: 0.4885 | E17: 0.4795 | G17: 0.5064 | I17: 0.4642 | K17: 0.4829 | M17: 0.5092 | U17: 12
B18: K043 | C18: 0.9818 | E18: 1.035 | G18: 1.027 | I18: 0.9233 | K18: 1.01 | M18: 1.023 | U18: 13
B19: K051 | C19: 0.04 | E19: 0.051 | G19: 0.1 | I19: 0.13 | K19: 0.15 | M19: 0.16 | U19: 14
B20: K052 | C20: 1 | E20: 0.959 | G20: 1 | I20: 1.016 | K20: 1 | M20: 1.016 | U20: 15
B21: K071 | C21: 0 | E21: 0 | G21: 0 | I21: 0 | K21: 0 | M21: 0 | U21: 16
B22: K072 | C22: 0 | E22: 0 | G22: 0 | I22: 0 | K22: 0 | M22: 0 | U22: 17
B23: K081 | C23: 0 | E23: 0 | G23: 0 | I23: 0 | K23: 0 | M23: 0 | U23: 18
B24: K082 | C24: 0 | E24: 0 | G24: 0 | I24: 0 | K24: 0 | M24: 0 | U24: 19
B25: K083 | C25: 0 | E25: 0 | G25: 0 | I25: 0 | K25: 0 | M25: 0 | U25: 20
B26: K091 | C26: 0 | E26: 0 | G26: 0 | I26: 0 | K26: 0 | M26: 0 | U26: 21
B27: K092 | C27: 167 | E27: 240 | G27: 960 | I27: 2667 | K27: 6000 | M27: 8560 | U27: 22
B28: K093 | C28: 3 | E28: 3 | G28: 3 | I28: 3 | K28: 3 | M28: 3 | U28: 23
B29: K094 | C29: 0 | E29: 0 | G29: 0 | I29: 0 | K29: 0 | M29: 0 | U29: 24
B30: K101 | C30: -0.693 | E30: -0.693 | G30: -0.693 | I30: -0.693 | K30: -0.693 | M30: -0.693 | U30: 25
B31: K102 | C31: 33 | E31: 33 | G31: 33 | I31: 33 | K31: 33 | M31: 33 | U31: 26
B32: K103 | C32: 0.023 | E32: 0.027 | G32: 0.041 | I32: 0.056 | K32: 0.073 | M32: 0.081 | U32: 27
B33: K104 | C33: 0.01 | E33: 0.01 | G33: 0.01 | I33: 0.01 | K33: 0.01 | M33: 0.01 | U33: 28
B34: K021Abluft | U34: 29
B35: K022Abluft | U35: 30
B36: K011Abluft
B37: K012Abluft
C38: =IFERROR(HLOOKUP($E$1,$C$6:$N$37,U6,FALSE),"") -> 
C39: =IFERROR(HLOOKUP($E$1,$C$6:$N$37,U7,FALSE),"") -> 
A40: Rückgabe | B40: K011
B41: K012
B42: K021
B43: K022
B44: K031
B45: K032
B46: K033
B47: K034
B48: K041
B49: K042
B50: K043
B51: K051
B52: K052
B53: K071
B54: K072
B55: K081
B56: K082
B57: K083
B58: K091
B59: K092
B60: K093
B61: K094
B62: K101
B63: K102
B64: K103
B65: K104
B66: K021Abluft
B67: K022Abluft | C67: =IFERROR(HLOOKUP($E$1,$C$6:$N$37,U35,FALSE),"") -> 
B68: K011Abluft | C68: =IFERROR(HLOOKUP($E$1,$C$6:$N$37,U36,FALSE),"") -> 
B69: K012Abluft

Sheet MSA-CAP (hidden)
A1: Übergabedaten: | C1: Gewählter Durchlass | E1: =CONCATENATE(Auslegung!$D$12,Auslegung!$D$25) -> DAL 358800
C2: Volumenstrom | E2: =Auslegung!$D$32 -> 550 | J2: Konstantenerrechnung K031-K034 erfolgt über spezifische Volumenströme mit Auslegungskonstanten SAL35
C3: Temperaturdifferenz | E3: =Auslegung!$D$35-Auslegung!$D$34 -> 10 | J3: Konstanten für die Auslegung stammen vom SAL35!
C4: MSA | D4: MSA | E4: MSA | F4: MSA | G4: MSA-V | J4: Für die Berechnungen in dieser Arbeitsmappe wurde K031 erweitert auf K031(neu) = K031(SAL35)*Wurzel(Schlitzanzahl)*1/aktive Länge
C5: 300 | D5: 400 | E5: 500 | F5: 600 | J5: K041 wurde ebenfalls angepasst nach K041(neu)=K041(alt)*Wurzel(Schlitzanzahl)*(1/aktive Länge)
C6: =CONCATENATE(C4,C5) -> MSA300 | D6: =CONCATENATE(D4,D5) -> MSA400 | E6: MSA500 | F6: MSA600 | G6: MSA-V | H6: 1
H7: 2 | K7: A1/F6
A8: Konstante | B8: K011 | C8: 0.0009557511834 | D8: 0.0002189823531 | E8: 0.0003435770408 | F8: 6.289714711e-05 | G8: 5.974881514e-05 | H8: 3 | K8: 0.00252 | M8: Daten für Druckverlust und Schallleistung beruhen auf Katalogangaben!
B9: K012 | C9: 2.013900477 | D9: 2.039290056 | E9: 1.718159168 | F9: 1.872375327 | G9: 1.917851395 | H9: 4 | K9: 1.92
B10: K021 | C10: -102.8910841 | D10: -124.0497211 | E10: -116.9152717 | F10: -140.7851678 | G10: -120.7005743 | H10: 5 | K10: -75.6
B11: K022 | C11: 60.56077098 | D11: 65.35058246 | E11: 56.58966645 | F11: 62.43298112 | G11: 53.47757548 | H11: 6 | K11: 53.72
B12: K031 | C12: 0.006422432459 | D12: 0.00426937902 | E12: 0.002802524931 | F12: 0.002175936027 | H12: 7 | K12: 0.005027
B13: K032 | C13: 1 | D13: 1 | E13: 1 | F13: 1 | H13: 8 | K13: 5.8
B14: K033 | C14: 1.007499997 | D14: 1.019915526 | E14: 0.9988040495 | F14: 1.031928471 | H14: 9 | K14: 0.5
B15: K034 | C15: 1 | D15: 1 | E15: 1 | F15: 1 | H15: 10 | K15: 0.707
B16: K041 | C16: 0.04618629854 | D16: 0.02923850612 | E16: 0.0240564935 | F16: 0.01070416258 | H16: 11 | K16: 0.0882
B17: K042 | C17: 0.4734621778 | D17: 0.4610764903 | E17: 0.4752783447 | F17: 0.4696597697 | H17: 12 | K17: 0.643
B18: K043 | C18: 0.9848490075 | D18: 0.9746592631 | E18: 0.9448133408 | F18: 0.982977167 | H18: 13 | K18: 1.287
B19: K051 | C19: 0.04966 | D19: 0.04966 | E19: 0.04966 | F19: 0.04966 | H19: 14 | K19: 0.04966
B20: K052 | C20: 0.5 | D20: 0.5 | E20: 0.5 | F20: 0.5 | H20: 15 | K20: 0.5
B21: K071 | C21: =$K$21*SQRT(6)*(1/1.2) -> 0.016417705 | D21: =$K$21*SQRT(8)*(1/2.4) -> 0.009478766402 | E21: =$K$21*SQRT(12)*(1/4.8) -> 0.005804535269 | F21: =$K$21*SQRT(14)*(1/7) -> 0.004299164337 | H21: 16 | K21: 0.008043 | L21: Heizfallkonstanten SAL 35 aus CAP
B22: K072 | C22: 0.5 | D22: 0.5 | E22: 0.5 | F22: 0.5 | H22: 17 | K22: 0.5
B23: K081 | C23: =$K$23*SQRT(6)*(1/1.2) -> 0.04158008838 | D23: =$K$23*SQRT(8)*(1/2.4) -> 0.02400627522 | E23: =$K$23*SQRT(12)*(1/4.8) -> 0.01470078123 | F23: =$K$23*SQRT(14)*(1/7) -> 0.010888223 | H23: 18 | K23: 0.02037 | M23: K081 wurde angepasst nach K081(neu)=K081(alt)*Wurzel(Schlitzanzahl)*(1/aktive Länge)
B24: K082 | C24: 0.643 | D24: 0.643 | E24: 0.643 | F24: 0.643 | H24: 19 | K24: 0.643
B25: K083 | C25: 1.287 | D25: 1.287 | E25: 1.287 | F25: 1.287 | H25: 20 | K25: 1.287
B26: K091 | C26: 0 | D26: 0 | E26: 0 | F26: 0 | H26: 21 | K26: 0
B27: K092 | C27: 47 | D27: 47 | E27: 47 | F27: 47 | H27: 22 | K27: 47
B28: K093 | C28: 2.5 | D28: 2.5 | E28: 2.5 | F28: 2.5 | H28: 23 | K28: 2.5
B29: K094 | C29: 0 | D29: 0 | E29: 0 | F29: 0 | H29: 24 | K29: 0
B30: K101 | C30: -0.693 | D30: -0.693 | E30: -0.693 | F30: -0.693 | H30: 25 | K30: -0.693
B31: K102 | C31: 24 | D31: 24 | E31: 24 | F31: 24 | H31: 26 | K31: 24
B32: K103 | C32: 0.007 | D32: 0.007 | E32: 0.007 | F32: 0.007 | H32: 27 | K32: 0.007
B33: K104 | C33: 0.01 | D33: 0.01 | E33: 0.01 | F33: 0.01 | H33: 28 | K33: 0.01
B34: K021Abluft | C34: -103.9402665 | D34: -121.0104651 | E34: -151.3518165 | F34: -140.9026803 | H34: 29
B35: K022Abluft | C35: 64.67010016 | D35: 64.17189919 | E35: 69.86921644 | F35: 63.09756458 | H35: 30
B36: K011Abluft | C36: 0.003730511034 | D36: 0.0007642907877 | E36: 7.58786471e-05 | F36: 4.571190217e-05 | H36: 31
B37: K012Abluft | C37: 1.782809462 | D37: 1.828243538 | E37: 2.014484221 | F37: 1.983032427 | H37: 32
C38: =IFERROR(HLOOKUP($E$1,$C$6:$F$33,H6,FALSE),"") -> 
C39: =IFERROR(HLOOKUP($E$1,$C$6:$F$33,H7,FALSE),"") -> 
A40: Rückgabe | B40: K011
B41: K012
B42: K021
B43: K022
B44: K031
B45: K032
B46: K033
B47: K034
B48: K041
B49: K042
B50: K043
B51: K051
B52: K052
B53: K071
B54: K072
B55: K081
B56: K082
B57: K083
B58: K091
B59: K092
B60: K093
B61: K094
B62: K101
B63: K102
B64: K103
B65: K104
B66: K021Abluft | C66: =IFERROR(HLOOKUP($E$1,$C$6:$F$35,H34,FALSE),"") -> 
B67: K022Abluft | C67: =IFERROR(HLOOKUP($E$1,$C$6:$F$35,H35,FALSE),"") -> 
B68: K011Abluft | C68: =IFERROR(HLOOKUP($E$1,$C$6:$F$37,H36,FALSE),"") -> 
B69: K012Abluft | C69: =IFERROR(HLOOKUP($E$1,$C$6:$F$37,H37,FALSE),"") -> 
